Workbook

Sheet Uitleg
A1: Sudoku:
A2: Voor het oplossen van een Sudoku zijn 3 zaken van belang.
A3: 1)in alle 9 vakjes dienen de cijfers(getallen) 1 tot 9 voor te komen.
A4: 2)Op alle rijen dienen de cijfers(getallen) 1 tot 9 voor te komen.
A5: 3)In elke kolom dienen de cijfers(getallen) 1 tot 9 voor te komen.
A6: Een voorbeeld hieronder.
A7: Het cijfer(getal) 3 kan niet meer links onder in het vakje komen te staan.
A8: De cijfers(getallen) 2 en 3 kunnen niet meer op de laatste rij voorkomen.
A9: De cijfers(getallen 1,3 en 7 kunnen niet meer in de eerste kolom voorkomen.
A10: 1 | B10: 9 | C10: 8 | E10: 3
A11: 7 | E11: 5
C12: 5 | E12: 8 | F12: 9 | H12: 4
H13: 3
B14: 5 | C14: 7 | G14: 9 | I14: 6
C15: 6 | E15: 1 | F15: 4 | G15: 8
F16: 8 | H16: 6
D17: 1 | E17: 7 | H17: 5 | I17: 9
A18: 3 | D18: 2
A21: Voor de oplossing zie het tabblad Oplossingen

Sheet Sudoku 2
BN1: A2091
K2: De totalen van elke rij en kolom dienen 45 te zijn. | AK2: +12 doen | AL2: A2919 | AN2: 0 | AO2: 1 | AP2: 2 | AQ2: 3 | AR2: 4 | AS2: 5 | AT2: 6 | AU2: 7 | AV2: 8 | AX2: A3 | AY2: 1 | AZ2: A303 | BA2: 26 | BB2: A603 | BC2: 51 | BD2: A903 | BE2: 76 | BF2: A1203 | BG2: 101 | BH2: A1503 | BI2: 126 | BJ2: A1803 | BK2: 151 | BL2: A2103 | BM2: 176 | BN2: =LEFT(BN1,1)&RIGHT(BN1,4)+12 -> A2103 | BO2: 1
J3: =SUM(A3:I3) -> 0 | K3: Naargelang de Opgave cel AL2 aanpassen.(A…) | AM3: 0 | AN3: =OFFSET( INDIRECT("Oplossingen!" & $AL$2 ), $AM3, AN$2 ) -> 3 | AO3: =OFFSET( INDIRECT("Oplossingen!" & $AL$2 ), $AM3, AO$2 ) -> 1 | AP3: =OFFSET( INDIRECT("Oplossingen!" & $AL$2 ), $AM3, AP$2 ) -> 7 | AQ3: =OFFSET( INDIRECT("Oplossingen!" & $AL$2 ), $AM3, AQ$2 ) -> 6 | AR3: =OFFSET( INDIRECT("Oplossingen!" & $AL$2 ), $AM3, AR$2 ) -> 4 | AS3: =OFFSET( INDIRECT("Oplossingen!" & $AL$2 ), $AM3, AS$2 ) -> 5 | AT3: =OFFSET( INDIRECT("Oplossingen!" & $AL$2 ), $AM3, AT$2 ) -> 8 | AU3: =OFFSET( INDIRECT("Oplossingen!" & $AL$2 ), $AM3, AU$2 ) -> 2 | AV3: =OFFSET( INDIRECT("Oplossingen!" & $AL$2 ), $AM3, AV$2 ) -> 9 | AX3: A15 | AY3: 2 | AZ3: A315 | BA3: 27 | BB3: A615 | BC3: 52 | BD3: A915 | BE3: 77 | BF3: A1215 | BG3: 102 | BH3: A1515 | BI3: 127 | BJ3: A1815 | BK3: 152 | BL3: A2115 | BM3: 177 | BN3: =LEFT(BN2,1)&RIGHT(BN2,4)+12 -> A2115 | BO3: 2
J4: =SUM(A4:I4) -> 0 | AK4: Opgave: | AL4: =VLOOKUP(AL2,AZ1:BO52,2,0) -> 244 | AM4: 1 | AN4: =OFFSET( INDIRECT("Oplossingen!" & $AL$2 ), $AM4, AN$2 ) -> 4 | AO4: =OFFSET( INDIRECT("Oplossingen!" & $AL$2 ), $AM4, AO$2 ) -> 9 | AP4: =OFFSET( INDIRECT("Oplossingen!" & $AL$2 ), $AM4, AP$2 ) -> 2 | AQ4: =OFFSET( INDIRECT("Oplossingen!" & $AL$2 ), $AM4, AQ$2 ) -> 3 | AR4: =OFFSET( INDIRECT("Oplossingen!" & $AL$2 ), $AM4, AR$2 ) -> 8 | AS4: =OFFSET( INDIRECT("Oplossingen!" & $AL$2 ), $AM4, AS$2 ) -> 1 | AT4: =OFFSET( INDIRECT("Oplossingen!" & $AL$2 ), $AM4, AT$2 ) -> 6 | AU4: =OFFSET( INDIRECT("Oplossingen!" & $AL$2 ), $AM4, AU$2 ) -> 5 | AV4: =OFFSET( INDIRECT("Oplossingen!" & $AL$2 ), $AM4, AV$2 ) -> 7 | AX4: A27 | AY4: 3 | AZ4: A327 | BA4: 28 | BB4: A627 | BC4: 53 | BD4: A927 | BE4: 78 | BF4: A1227 | BG4: 103 | BH4: A1527 | BI4: 128 | BJ4: A1827 | BK4: 153 | BL4: A2127 | BM4: 178 | BN4: A2127 | BO4: 3
J5: =SUM(A5:I5) -> 0 | AK5: Opletten formule | AM5: 2 | AN5: =OFFSET( INDIRECT("Oplossingen!" & $AL$2 ), $AM5, AN$2 ) -> 8 | AO5: =OFFSET( INDIRECT("Oplossingen!" & $AL$2 ), $AM5, AO$2 ) -> 6 | AP5: =OFFSET( INDIRECT("Oplossingen!" & $AL$2 ), $AM5, AP$2 ) -> 5 | AQ5: =OFFSET( INDIRECT("Oplossingen!" & $AL$2 ), $AM5, AQ$2 ) -> 7 | AR5: =OFFSET( INDIRECT("Oplossingen!" & $AL$2 ), $AM5, AR$2 ) -> 9 | AS5: =OFFSET( INDIRECT("Oplossingen!" & $AL$2 ), $AM5, AS$2 ) -> 2 | AT5: =OFFSET( INDIRECT("Oplossingen!" & $AL$2 ), $AM5, AT$2 ) -> 3 | AU5: =OFFSET( INDIRECT("Oplossingen!" & $AL$2 ), $AM5, AU$2 ) -> 4 | AV5: =OFFSET( INDIRECT("Oplossingen!" & $AL$2 ), $AM5, AV$2 ) -> 1 | AX5: A39 | AY5: 4 | AZ5: A339 | BA5: 29 | BB5: A639 | BC5: 54 | BD5: A939 | BE5: 79 | BF5: A1239 | BG5: 104 | BH5: A1539 | BI5: 129 | BJ5: A1839 | BK5: 154 | BL5: A2139 | BM5: 179 | BN5: =LEFT(BN4,1)&RIGHT(BN4,4)+12 -> A2139 | BO5: 4
J6: 0 | AK6: aanpassen | AM6: 3 | AN6: =OFFSET( INDIRECT("Oplossingen!" & $AL$2 ), $AM6, AN$2 ) -> 9 | AO6: =OFFSET( INDIRECT("Oplossingen!" & $AL$2 ), $AM6, AO$2 ) -> 4 | AP6: =OFFSET( INDIRECT("Oplossingen!" & $AL$2 ), $AM6, AP$2 ) -> 6 | AQ6: =OFFSET( INDIRECT("Oplossingen!" & $AL$2 ), $AM6, AQ$2 ) -> 5 | AR6: =OFFSET( INDIRECT("Oplossingen!" & $AL$2 ), $AM6, AR$2 ) -> 2 | AS6: =OFFSET( INDIRECT("Oplossingen!" & $AL$2 ), $AM6, AS$2 ) -> 3 | AT6: =OFFSET( INDIRECT("Oplossingen!" & $AL$2 ), $AM6, AT$2 ) -> 1 | AU6: =OFFSET( INDIRECT("Oplossingen!" & $AL$2 ), $AM6, AU$2 ) -> 7 | AV6: =OFFSET( INDIRECT("Oplossingen!" & $AL$2 ), $AM6, AV$2 ) -> 8 | AX6: A51 | AY6: 5 | AZ6: A351 | BA6: 30 | BB6: A651 | BC6: 55 | BD6: A951 | BE6: 80 | BF6: A1251 | BG6: 105 | BH6: A1551 | BI6: 130 | BJ6: A1851 | BK6: 155 | BL6: A2151 | BM6: 180 | BN6: A2151 | BO6: 5
J7: 0 | AK7: In welke kolom? | AM7: 4 | AN7: =OFFSET( INDIRECT("Oplossingen!" & $AL$2 ), $AM7, AN$2 ) -> 1 | AO7: =OFFSET( INDIRECT("Oplossingen!" & $AL$2 ), $AM7, AO$2 ) -> 2 | AP7: =OFFSET( INDIRECT("Oplossingen!" & $AL$2 ), $AM7, AP$2 ) -> 8 | AQ7: =OFFSET( INDIRECT("Oplossingen!" & $AL$2 ), $AM7, AQ$2 ) -> 9 | AR7: =OFFSET( INDIRECT("Oplossingen!" & $AL$2 ), $AM7, AR$2 ) -> 6 | AS7: =OFFSET( INDIRECT("Oplossingen!" & $AL$2 ), $AM7, AS$2 ) -> 7 | AT7: =OFFSET( INDIRECT("Oplossingen!" & $AL$2 ), $AM7, AT$2 ) -> 5 | AU7: =OFFSET( INDIRECT("Oplossingen!" & $AL$2 ), $AM7, AU$2 ) -> 3 | AV7: =OFFSET( INDIRECT("Oplossingen!" & $AL$2 ), $AM7, AV$2 ) -> 4 | AX7: A63 | AY7: 6 | AZ7: A363 | BA7: 31 | BB7: A663 | BC7: 56 | BD7: A963 | BE7: 81 | BF7: A1263 | BG7: 106 | BH7: A1563 | BI7: 131 | BJ7: A1863 | BK7: 156 | BL7: A2163 | BM7: 181 | BN7: =LEFT(BN6,1)&RIGHT(BN6,4)+12 -> A2163 | BO7: 6
J8: 0 | AK8: AX1 naar AZ1 enz… | AM8: 5 | AN8: =OFFSET( INDIRECT("Oplossingen!" & $AL$2 ), $AM8, AN$2 ) -> 5 | AO8: =OFFSET( INDIRECT("Oplossingen!" & $AL$2 ), $AM8, AO$2 ) -> 7 | AP8: =OFFSET( INDIRECT("Oplossingen!" & $AL$2 ), $AM8, AP$2 ) -> 3 | AQ8: =OFFSET( INDIRECT("Oplossingen!" & $AL$2 ), $AM8, AQ$2 ) -> 8 | AR8: =OFFSET( INDIRECT("Oplossingen!" & $AL$2 ), $AM8, AR$2 ) -> 1 | AS8: =OFFSET( INDIRECT("Oplossingen!" & $AL$2 ), $AM8, AS$2 ) -> 4 | AT8: =OFFSET( INDIRECT("Oplossingen!" & $AL$2 ), $AM8, AT$2 ) -> 9 | AU8: =OFFSET( INDIRECT("Oplossingen!" & $AL$2 ), $AM8, AU$2 ) -> 6 | AV8: =OFFSET( INDIRECT("Oplossingen!" & $AL$2 ), $AM8, AV$2 ) -> 2 | AX8: A75 | AY8: 7 | AZ8: A375 | BA8: 32 | BB8: A675 | BC8: 57 | BD8: A975 | BE8: 82 | BF8: A1275 | BG8: 107 | BH8: A1575 | BI8: 132 | BJ8: A1875 | BK8: 157 | BL8: A2175 | BM8: 182 | BN8: A2175 | BO8: 7
J9: 0 | AK9: BO52 naar BO78 | AM9: 6 | AN9: =OFFSET( INDIRECT("Oplossingen!" & $AL$2 ), $AM9, AN$2 ) -> 7 | AO9: =OFFSET( INDIRECT("Oplossingen!" & $AL$2 ), $AM9, AO$2 ) -> 8 | AP9: =OFFSET( INDIRECT("Oplossingen!" & $AL$2 ), $AM9, AP$2 ) -> 4 | AQ9: =OFFSET( INDIRECT("Oplossingen!" & $AL$2 ), $AM9, AQ$2 ) -> 1 | AR9: =OFFSET( INDIRECT("Oplossingen!" & $AL$2 ), $AM9, AR$2 ) -> 5 | AS9: =OFFSET( INDIRECT("Oplossingen!" & $AL$2 ), $AM9, AS$2 ) -> 6 | AT9: =OFFSET( INDIRECT("Oplossingen!" & $AL$2 ), $AM9, AT$2 ) -> 2 | AU9: =OFFSET( INDIRECT("Oplossingen!" & $AL$2 ), $AM9, AU$2 ) -> 9 | AV9: =OFFSET( INDIRECT("Oplossingen!" & $AL$2 ), $AM9, AV$2 ) -> 3 | AX9: A87 | AY9: 8 | AZ9: A387 | BA9: 33 | BB9: A687 | BC9: 58 | BD9: A987 | BE9: 83 | BF9: A1287 | BG9: 108 | BH9: A1587 | BI9: 133 | BJ9: A1887 | BK9: 158 | BL9: A2187 | BM9: 183 | BN9: A2187 | BO9: 8
J10: 0 | AM10: 7 | AN10: =OFFSET( INDIRECT("Oplossingen!" & $AL$2 ), $AM10, AN$2 ) -> 6 | AO10: =OFFSET( INDIRECT("Oplossingen!" & $AL$2 ), $AM10, AO$2 ) -> 3 | AP10: =OFFSET( INDIRECT("Oplossingen!" & $AL$2 ), $AM10, AP$2 ) -> 9 | AQ10: =OFFSET( INDIRECT("Oplossingen!" & $AL$2 ), $AM10, AQ$2 ) -> 2 | AR10: =OFFSET( INDIRECT("Oplossingen!" & $AL$2 ), $AM10, AR$2 ) -> 7 | AS10: =OFFSET( INDIRECT("Oplossingen!" & $AL$2 ), $AM10, AS$2 ) -> 8 | AT10: =OFFSET( INDIRECT("Oplossingen!" & $AL$2 ), $AM10, AT$2 ) -> 4 | AU10: =OFFSET( INDIRECT("Oplossingen!" & $AL$2 ), $AM10, AU$2 ) -> 1 | AV10: =OFFSET( INDIRECT("Oplossingen!" & $AL$2 ), $AM10, AV$2 ) -> 5 | AX10: A99 | AY10: 9 | AZ10: A399 | BA10: 34 | BB10: A699 | BC10: 59 | BD10: A999 | BE10: 84 | BF10: A1299 | BG10: 109 | BH10: A1599 | BI10: 134 | BJ10: A1899 | BK10: 159 | BL10: A2199 | BM10: 184 | BN10: A2199 | BO10: 9
J11: 0 | AM11: 8 | AN11: =OFFSET( INDIRECT("Oplossingen!" & $AL$2 ), $AM11, AN$2 ) -> 2 | AO11: =OFFSET( INDIRECT("Oplossingen!" & $AL$2 ), $AM11, AO$2 ) -> 5 | AP11: =OFFSET( INDIRECT("Oplossingen!" & $AL$2 ), $AM11, AP$2 ) -> 1 | AQ11: =OFFSET( INDIRECT("Oplossingen!" & $AL$2 ), $AM11, AQ$2 ) -> 4 | AR11: =OFFSET( INDIRECT("Oplossingen!" & $AL$2 ), $AM11, AR$2 ) -> 3 | AS11: =OFFSET( INDIRECT("Oplossingen!" & $AL$2 ), $AM11, AS$2 ) -> 9 | AT11: =OFFSET( INDIRECT("Oplossingen!" & $AL$2 ), $AM11, AT$2 ) -> 7 | AU11: =OFFSET( INDIRECT("Oplossingen!" & $AL$2 ), $AM11, AU$2 ) -> 8 | AV11: =OFFSET( INDIRECT("Oplossingen!" & $AL$2 ), $AM11, AV$2 ) -> 6 | AX11: A111 | AY11: 10 | AZ11: A411 | BA11: 35 | BB11: A711 | BC11: 60 | BD11: A1011 | BE11: 85 | BF11: A1311 | BG11: 110 | BH11: A1611 | BI11: 135 | BJ11: A1911 | BK11: 160 | BL11: A2211 | BM11: 185 | BN11: A2211 | BO11: 10
A12: =SUM(A3:A11) -> 0 | B12: 0 | C12: 0 | D12: 0 | E12: 0 | F12: 0 | G12: 0 | H12: 0 | I12: 0 | AX12: A123 | AY12: 11 | AZ12: A423 | BA12: 36 | BB12: A723 | BC12: 61 | BD12: A1023 | BE12: 86 | BF12: A1323 | BG12: 111 | BH12: A1623 | BI12: 136 | BJ12: A1923 | BK12: 161 | BL12: A2223 | BM12: 186 | BN12: A2223 | BO12: 11
AX13: A135 | AY13: 12 | AZ13: A435 | BA13: 37 | BB13: A735 | BC13: 62 | BD13: A1035 | BE13: 87 | BF13: A1335 | BG13: 112 | BH13: A1635 | BI13: 137 | BJ13: A1935 | BK13: 162 | BL13: A2235 | BM13: 187 | BN13: A2235 | BO13: 12
AX14: A147 | AY14: 13 | AZ14: A447 | BA14: 38 | BB14: A747 | BC14: 63 | BD14: A1047 | BE14: 88 | BF14: A1347 | BG14: 113 | BH14: A1647 | BI14: 138 | BJ14: A1947 | BK14: 163 | BL14: A2247 | BM14: 188 | BN14: A2247 | BO14: 13
AX15: A159 | AY15: 14 | AZ15: A459 | BA15: 39 | BB15: A759 | BC15: 64 | BD15: A1059 | BE15: 89 | BF15: A1359 | BG15: 114 | BH15: A1659 | BI15: 139 | BJ15: A1959 | BK15: 164 | BL15: A2259 | BM15: 189 | BN15: A2259 | BO15: 14
AX16: A171 | AY16: 15 | AZ16: A471 | BA16: 40 | BB16: A771 | BC16: 65 | BD16: A1071 | BE16: 90 | BF16: A1371 | BG16: 115 | BH16: A1671 | BI16: 140 | BJ16: A1971 | BK16: 165 | BL16: A2271 | BM16: 190 | BN16: A2271 | BO16: 15
AX17: A183 | AY17: 16 | AZ17: A483 | BA17: 41 | BB17: A783 | BC17: 66 | BD17: A1083 | BE17: 91 | BF17: A1383 | BG17: 116 | BH17: A1683 | BI17: 141 | BJ17: A1983 | BK17: 166 | BL17: A2283 | BM17: 191 | BN17: A2283 | BO17: 16
AX18: A195 | AY18: 17 | AZ18: A495 | BA18: 42 | BB18: A795 | BC18: 67 | BD18: A1095 | BE18: 92 | BF18: A1395 | BG18: 117 | BH18: A1695 | BI18: 142 | BJ18: A1995 | BK18: 167 | BL18: A2295 | BM18: 192 | BN18: A2295 | BO18: 17
AX19: A207 | AY19: 18 | AZ19: A507 | BA19: 43 | BB19: A807 | BC19: 68 | BD19: A1107 | BE19: 93 | BF19: A1407 | BG19: 118 | BH19: A1707 | BI19: 143 | BJ19: A2007 | BK19: 168 | BL19: A2307 | BM19: 193 | BN19: A2307 | BO19: 18
AX20: A219 | AY20: 19 | AZ20: A519 | BA20: 44 | BB20: A819 | BC20: 69 | BD20: A1119 | BE20: 94 | BF20: A1419 | BG20: 119 | BH20: A1719 | BI20: 144 | BJ20: A2019 | BK20: 169 | BL20: A2319 | BM20: 194 | BN20: A2319 | BO20: 19
AX21: A231 | AY21: 20 | AZ21: A531 | BA21: 45 | BB21: A831 | BC21: 70 | BD21: A1131 | BE21: 95 | BF21: A1431 | BG21: 120 | BH21: A1731 | BI21: 145 | BJ21: A2031 | BK21: 170 | BL21: A2331 | BM21: 195 | BN21: A2331 | BO21: 20
AX22: A243 | AY22: 21 | AZ22: A543 | BA22: 46 | BB22: A843 | BC22: 71 | BD22: A1143 | BE22: 96 | BF22: A1443 | BG22: 121 | BH22: A1743 | BI22: 146 | BJ22: A2043 | BK22: 171 | BL22: A2343 | BM22: 196 | BN22: A2343 | BO22: 21
AX23: A255 | AY23: 22 | AZ23: A555 | BA23: 47 | BB23: A855 | BC23: 72 | BD23: A1155 | BE23: 97 | BF23: A1455 | BG23: 122 | BH23: A1755 | BI23: 147 | BJ23: A2055 | BK23: 172 | BL23: A2355 | BM23: 197 | BN23: A2355 | BO23: 22
AX24: A267 | AY24: 23 | AZ24: A567 | BA24: 48 | BB24: A867 | BC24: 73 | BD24: A1167 | BE24: 98 | BF24: A1467 | BG24: 123 | BH24: A1767 | BI24: 148 | BJ24: A2067 | BK24: 173 | BL24: A2367 | BM24: 198 | BN24: A2367 | BO24: 23
AX25: A279 | AY25: 24 | AZ25: A579 | BA25: 49 | BB25: A879 | BC25: 74 | BD25: A1179 | BE25: 99 | BF25: A1479 | BG25: 124 | BH25: A1779 | BI25: 149 | BJ25: A2079 | BK25: 174 | BL25: A2379 | BM25: 199 | BN25: =LEFT(BN24,1)&RIGHT(BN24,4)+12 -> A2379 | BO25: 24
AX26: A291 | AY26: 25 | AZ26: A591 | BA26: 50 | BB26: A891 | BC26: 75 | BD26: A1191 | BE26: 100 | BF26: A1491 | BG26: 125 | BH26: A1791 | BI26: 150 | BJ26: A2091 | BK26: 175 | BL26: A2391 | BM26: 200 | BN26: =LEFT(BN25,1)&RIGHT(BN25,4)+12 -> A2391 | BO26: 25
BN27: A4791
AX28: A2403 | AY28: 201 | AZ28: A2703 | BA28: 226 | BB28: A3003 | BC28: 251 | BD28: A3303 | BE28: 276 | BF28: A3603 | BG28: 301 | BH28: A3903 | BI28: 326 | BJ28: A4203 | BK28: 351 | BL28: A4503 | BM28: 376 | BN28: =LEFT(BN27,1)&RIGHT(BN27,4)+12 -> A4803 | BO28: 1
AX29: A2415 | AY29: 202 | AZ29: A2715 | BA29: 227 | BB29: A3015 | BC29: 252 | BD29: A3315 | BE29: 277 | BF29: A3615 | BG29: 302 | BH29: A3915 | BI29: 327 | BJ29: A4215 | BK29: 352 | BL29: A4515 | BM29: 377 | BN29: =LEFT(BN28,1)&RIGHT(BN28,4)+12 -> A4815 | BO29: 2
AX30: A2427 | AY30: 203 | AZ30: A2727 | BA30: 228 | BB30: A3027 | BC30: 253 | BD30: A3327 | BE30: 278 | BF30: A3627 | BG30: 303 | BH30: A3927 | BI30: 328 | BJ30: A4227 | BK30: 353 | BL30: A4527 | BM30: 378 | BN30: A4827 | BO30: 3
AX31: A2439 | AY31: 204 | AZ31: A2739 | BA31: 229 | BB31: A3039 | BC31: 254 | BD31: A3339 | BE31: 279 | BF31: A3639 | BG31: 304 | BH31: A3939 | BI31: 329 | BJ31: A4239 | BK31: 354 | BL31: A4539 | BM31: 379 | BN31: =LEFT(BN30,1)&RIGHT(BN30,4)+12 -> A4839 | BO31: 4
AX32: A2451 | AY32: 205 | AZ32: A2751 | BA32: 230 | BB32: A3051 | BC32: 255 | BD32: A3351 | BE32: 280 | BF32: A3651 | BG32: 305 | BH32: A3951 | BI32: 330 | BJ32: A4251 | BK32: 355 | BL32: A4551 | BM32: 380 | BN32: A4851 | BO32: 5
AX33: A2463 | AY33: 206 | AZ33: A2763 | BA33: 231 | BB33: A3063 | BC33: 256 | BD33: A3363 | BE33: 281 | BF33: A3663 | BG33: 306 | BH33: A3963 | BI33: 331 | BJ33: A4263 | BK33: 356 | BL33: A4563 | BM33: 381 | BN33: A4863 | BO33: 6
AX34: A2475 | AY34: 207 | AZ34: A2775 | BA34: 232 | BB34: A3075 | BC34: 257 | BD34: A3375 | BE34: 282 | BF34: A3675 | BG34: 307 | BH34: A3975 | BI34: 332 | BJ34: A4275 | BK34: 357 | BL34: A4575 | BM34: 382 | BN34: A4875 | BO34: 7
AX35: A2487 | AY35: 208 | AZ35: A2787 | BA35: 233 | BB35: A3087 | BC35: 258 | BD35: A3387 | BE35: 283 | BF35: A3687 | BG35: 308 | BH35: A3987 | BI35: 333 | BJ35: A4287 | BK35: 358 | BL35: A4587 | BM35: 383 | BN35: A4887 | BO35: 8
AX36: A2499 | AY36: 209 | AZ36: A2799 | BA36: 234 | BB36: A3099 | BC36: 259 | BD36: A3399 | BE36: 284 | BF36: A3699 | BG36: 309 | BH36: A3999 | BI36: 334 | BJ36: A4299 | BK36: 359 | BL36: A4599 | BM36: 384 | BN36: A4899 | BO36: 9
AX37: A2511 | AY37: 210 | AZ37: A2811 | BA37: 235 | BB37: A3111 | BC37: 260 | BD37: A3411 | BE37: 285 | BF37: A3711 | BG37: 310 | BH37: A4011 | BI37: 335 | BJ37: A4311 | BK37: 360 | BL37: A4611 | BM37: 385 | BN37: A4911 | BO37: 10
AX38: A2523 | AY38: 211 | AZ38: A2823 | BA38: 236 | BB38: A3123 | BC38: 261 | BD38: A3423 | BE38: 286 | BF38: A3723 | BG38: 311 | BH38: A4023 | BI38: 336 | BJ38: A4323 | BK38: 361 | BL38: A4623 | BM38: 386 | BN38: A4923 | BO38: 11
AX39: A2535 | AY39: 212 | AZ39: A2835 | BA39: 237 | BB39: A3135 | BC39: 262 | BD39: A3435 | BE39: 287 | BF39: A3735 | BG39: 312 | BH39: A4035 | BI39: 337 | BJ39: A4335 | BK39: 362 | BL39: A4635 | BM39: 387 | BN39: A4935 | BO39: 12
AX40: A2547 | AY40: 213 | AZ40: A2847 | BA40: 238 | BB40: A3147 | BC40: 263 | BD40: A3447 | BE40: 288 | BF40: A3747 | BG40: 313 | BH40: A4047 | BI40: 338 | BJ40: A4347 | BK40: 363 | BL40: A4647 | BM40: 388 | BN40: A4947 | BO40: 13
AX41: A2559 | AY41: 214 | AZ41: A2859 | BA41: 239 | BB41: A3159 | BC41: 264 | BD41: A3459 | BE41: 289 | BF41: A3759 | BG41: 314 | BH41: A4059 | BI41: 339 | BJ41: A4359 | BK41: 364 | BL41: A4659 | BM41: 389 | BN41: A4959 | BO41: 14
AX42: A2571 | AY42: 215 | AZ42: A2871 | BA42: 240 | BB42: A3171 | BC42: 265 | BD42: A3471 | BE42: 290 | BF42: A3771 | BG42: 315 | BH42: A4071 | BI42: 340 | BJ42: A4371 | BK42: 365 | BL42: A4671 | BM42: 390 | BN42: A4971 | BO42: 15
AX43: A2583 | AY43: 216 | AZ43: A2883 | BA43: 241 | BB43: A3183 | BC43: 266 | BD43: A3483 | BE43: 291 | BF43: A3783 | BG43: 316 | BH43: A4083 | BI43: 341 | BJ43: A4383 | BK43: 366 | BL43: A4683 | BM43: 391 | BN43: A4983 | BO43: 16
AX44: A2595 | AY44: 217 | AZ44: A2895 | BA44: 242 | BB44: A3195 | BC44: 267 | BD44: A3495 | BE44: 292 | BF44: A3795 | BG44: 317 | BH44: A4095 | BI44: 342 | BJ44: A4395 | BK44: 367 | BL44: A4695 | BM44: 392 | BN44: A4995 | BO44: 17
AX45: A2607 | AY45: 218 | AZ45: A2907 | BA45: 243 | BB45: A3207 | BC45: 268 | BD45: A3507 | BE45: 293 | BF45: A3807 | BG45: 318 | BH45: A4107 | BI45: 343 | BJ45: A4407 | BK45: 368 | BL45: A4707 | BM45: 393 | BN45: A5007 | BO45: 18
AX46: A2619 | AY46: 219 | AZ46: A2919 | BA46: 244 | BB46: A3219 | BC46: 269 | BD46: A3519 | BE46: 294 | BF46: A3819 | BG46: 319 | BH46: A4119 | BI46: 344 | BJ46: A4419 | BK46: 369 | BL46: A4719 | BM46: 394 | BN46: A5019 | BO46: 19
AX47: A2631 | AY47: 220 | AZ47: A2931 | BA47: 245 | BB47: A3231 | BC47: 270 | BD47: A3531 | BE47: 295 | BF47: A3831 | BG47: 320 | BH47: A4131 | BI47: 345 | BJ47: A4431 | BK47: 370 | BL47: A4731 | BM47: 395 | BN47: A5031 | BO47: 20
AX48: A2643 | AY48: 221 | AZ48: A2943 | BA48: 246 | BB48: A3243 | BC48: 271 | BD48: A3543 | BE48: 296 | BF48: A3843 | BG48: 321 | BH48: A4143 | BI48: 346 | BJ48: A4443 | BK48: 371 | BL48: A4743 | BM48: 396 | BN48: A5043 | BO48: 21
AX49: A2655 | AY49: 222 | AZ49: A2955 | BA49: 247 | BB49: A3255 | BC49: 272 | BD49: A3555 | BE49: 297 | BF49: A3855 | BG49: 322 | BH49: A4155 | BI49: 347 | BJ49: A4455 | BK49: 372 | BL49: A4755 | BM49: 397 | BN49: A5055 | BO49: 22
AX50: A2667 | AY50: 223 | AZ50: A2967 | BA50: 248 | BB50: A3267 | BC50: 273 | BD50: A3567 | BE50: 298 | BF50: A3867 | BG50: 323 | BH50: A4167 | BI50: 348 | BJ50: A4467 | BK50: 373 | BL50: A4767 | BM50: 398 | BN50: A5067 | BO50: 23
AX51: A2679 | AY51: 224 | AZ51: A2979 | BA51: 249 | BB51: A3279 | BC51: 274 | BD51: A3579 | BE51: 299 | BF51: A3879 | BG51: 324 | BH51: A4179 | BI51: 349 | BJ51: A4479 | BK51: 374 | BL51: A4779 | BM51: 399 | BN51: A5079 | BO51: 24
AX52: A2691 | AY52: 225 | AZ52: A2991 | BA52: 250 | BB52: A3291 | BC52: 275 | BD52: A3591 | BE52: 300 | BF52: A3891 | BG52: 325 | BH52: A4191 | BI52: 350 | BJ52: A4491 | BK52: 375 | BL52: A4791 | BM52: 400 | BN52: =LEFT(BN51,1)&RIGHT(BN51,4)+12 -> A5091 | BO52: 25
BN53: A7191
AX54: A4803 | AY54: 401 | AZ54: A5103 | BA54: 426 | BB54: A5403 | BC54: 451 | BD54: A5703 | BE54: 476 | BF54: A6003 | BG54: 501 | BH54: A6303 | BI54: 526 | BJ54: A6603 | BK54: 551 | BL54: A6903 | BM54: 576 | BN54: =LEFT(BN53,1)&RIGHT(BN53,4)+12 -> A7203 | BO54: 1
AX55: A4815 | AY55: 402 | AZ55: A5115 | BA55: 427 | BB55: A5415 | BC55: 452 | BD55: A5715 | BE55: 477 | BF55: A6015 | BG55: 502 | BH55: A6315 | BI55: 527 | BJ55: A6615 | BK55: 552 | BL55: A6915 | BM55: 577 | BN55: =LEFT(BN54,1)&RIGHT(BN54,4)+12 -> A7215 | BO55: 2
AX56: A4827 | AY56: 403 | AZ56: A5127 | BA56: 428 | BB56: A5427 | BC56: 453 | BD56: A5727 | BE56: 478 | BF56: A6027 | BG56: 503 | BH56: A6327 | BI56: 528 | BJ56: A6627 | BK56: 553 | BL56: A6927 | BM56: 578 | BN56: A7227 | BO56: 3
AX57: A4839 | AY57: 404 | AZ57: A5139 | BA57: 429 | BB57: A5439 | BC57: 454 | BD57: A5739 | BE57: 479 | BF57: A6039 | BG57: 504 | BH57: A6339 | BI57: 529 | BJ57: A6639 | BK57: 554 | BL57: A6939 | BM57: 579 | BN57: =LEFT(BN56,1)&RIGHT(BN56,4)+12 -> A7239 | BO57: 4
AX58: A4851 | AY58: 405 | AZ58: A5151 | BA58: 430 | BB58: A5451 | BC58: 455 | BD58: A5751 | BE58: 480 | BF58: A6051 | BG58: 505 | BH58: A6351 | BI58: 530 | BJ58: A6651 | BK58: 555 | BL58: A6951 | BM58: 580 | BN58: A7251 | BO58: 5
AX59: A4863 | AY59: 406 | AZ59: A5163 | BA59: 431 | BB59: A5463 | BC59: 456 | BD59: A5763 | BE59: 481 | BF59: A6063 | BG59: 506 | BH59: A6363 | BI59: 531 | BJ59: A6663 | BK59: 556 | BL59: A6963 | BM59: 581 | BN59: A7263 | BO59: 6
AX60: A4875 | AY60: 407 | AZ60: A5175 | BA60: 432 | BB60: A5475 | BC60: 457 | BD60: A5775 | BE60: 482 | BF60: A6075 | BG60: 507 | BH60: A6375 | BI60: 532 | BJ60: A6675 | BK60: 557 | BL60: A6975 | BM60: 582 | BN60: A7275 | BO60: 7
AX61: A4887 | AY61: 408 | AZ61: A5187 | BA61: 433 | BB61: A5487 | BC61: 458 | BD61: A5787 | BE61: 483 | BF61: A6087 | BG61: 508 | BH61: A6387 | BI61: 533 | BJ61: A6687 | BK61: 558 | BL61: A6987 | BM61: 583 | BN61: A7287 | BO61: 8
AX62: A4899 | AY62: 409 | AZ62: A5199 | BA62: 434 | BB62: A5499 | BC62: 459 | BD62: A5799 | BE62: 484 | BF62: A6099 | BG62: 509 | BH62: A6399 | BI62: 534 | BJ62: A6699 | BK62: 559 | BL62: A6999 | BM62: 584 | BN62: A7299 | BO62: 9
AX63: A4911 | AY63: 410 | AZ63: A5211 | BA63: 435 | BB63: A5511 | BC63: 460 | BD63: A5811 | BE63: 485 | BF63: A6111 | BG63: 510 | BH63: A6411 | BI63: 535 | BJ63: A6711 | BK63: 560 | BL63: A7011 | BM63: 585 | BN63: A7311 | BO63: 10
AX64: A4923 | AY64: 411 | AZ64: A5223 | BA64: 436 | BB64: A5523 | BC64: 461 | BD64: A5823 | BE64: 486 | BF64: A6123 | BG64: 511 | BH64: A6423 | BI64: 536 | BJ64: A6723 | BK64: 561 | BL64: A7023 | BM64: 586 | BN64: A7323 | BO64: 11
AX65: A4935 | AY65: 412 | AZ65: A5235 | BA65: 437 | BB65: A5535 | BC65: 462 | BD65: A5835 | BE65: 487 | BF65: A6135 | BG65: 512 | BH65: A6435 | BI65: 537 | BJ65: A6735 | BK65: 562 | BL65: A7035 | BM65: 587 | BN65: A7335 | BO65: 12
AX66: A4947 | AY66: 413 | AZ66: A5247 | BA66: 438 | BB66: A5547 | BC66: 463 | BD66: A5847 | BE66: 488 | BF66: A6147 | BG66: 513 | BH66: A6447 | BI66: 538 | BJ66: A6747 | BK66: 563 | BL66: A7047 | BM66: 588 | BN66: A7347 | BO66: 13
AX67: A4959 | AY67: 414 | AZ67: A5259 | BA67: 439 | BB67: A5559 | BC67: 464 | BD67: A5859 | BE67: 489 | BF67: A6159 | BG67: 514 | BH67: A6459 | BI67: 539 | BJ67: A6759 | BK67: 564 | BL67: A7059 | BM67: 589 | BN67: A7359 | BO67: 14
AX68: A4971 | AY68: 415 | AZ68: A5271 | BA68: 440 | BB68: A5571 | BC68: 465 | BD68: A5871 | BE68: 490 | BF68: A6171 | BG68: 515 | BH68: A6471 | BI68: 540 | BJ68: A6771 | BK68: 565 | BL68: A7071 | BM68: 590 | BN68: A7371 | BO68: 15
AX69: A4983 | AY69: 416 | AZ69: A5283 | BA69: 441 | BB69: A5583 | BC69: 466 | BD69: A5883 | BE69: 491 | BF69: A6183 | BG69: 516 | BH69: A6483 | BI69: 541 | BJ69: A6783 | BK69: 566 | BL69: A7083 | BM69: 591 | BN69: A7383 | BO69: 16
AX70: A4995 | AY70: 417 | AZ70: A5295 | BA70: 442 | BB70: A5595 | BC70: 467 | BD70: A5895 | BE70: 492 | BF70: A6195 | BG70: 517 | BH70: A6495 | BI70: 542 | BJ70: A6795 | BK70: 567 | BL70: A7095 | BM70: 592 | BN70: A7395 | BO70: 17
AX71: A5007 | AY71: 418 | AZ71: A5307 | BA71: 443 | BB71: A5607 | BC71: 468 | BD71: A5907 | BE71: 493 | BF71: A6207 | BG71: 518 | BH71: A6507 | BI71: 543 | BJ71: A6807 | BK71: 568 | BL71: A7107 | BM71: 593 | BN71: A7407 | BO71: 18
AX72: A5019 | AY72: 419 | AZ72: A5319 | BA72: 444 | BB72: A5619 | BC72: 469 | BD72: A5919 | BE72: 494 | BF72: A6219 | BG72: 519 | BH72: A6519 | BI72: 544 | BJ72: A6819 | BK72: 569 | BL72: A7119 | BM72: 594 | BN72: A7419 | BO72: 19
AX73: A5031 | AY73: 420 | AZ73: A5331 | BA73: 445 | BB73: A5631 | BC73: 470 | BD73: A5931 | BE73: 495 | BF73: A6231 | BG73: 520 | BH73: A6531 | BI73: 545 | BJ73: A6831 | BK73: 570 | BL73: A7131 | BM73: 595 | BN73: A7431 | BO73: 20
AX74: A5043 | AY74: 421 | AZ74: A5343 | BA74: 446 | BB74: A5643 | BC74: 471 | BD74: A5943 | BE74: 496 | BF74: A6243 | BG74: 521 | BH74: A6543 | BI74: 546 | BJ74: A6843 | BK74: 571 | BL74: A7143 | BM74: 596 | BN74: A7443 | BO74: 21
AX75: A5055 | AY75: 422 | AZ75: A5355 | BA75: 447 | BB75: A5655 | BC75: 472 | BD75: A5955 | BE75: 497 | BF75: A6255 | BG75: 522 | BH75: A6555 | BI75: 547 | BJ75: A6855 | BK75: 572 | BL75: A7155 | BM75: 597 | BN75: A7455 | BO75: 22
AX76: A5067 | AY76: 423 | AZ76: A5367 | BA76: 448 | BB76: A5667 | BC76: 473 | BD76: A5967 | BE76: 498 | BF76: A6267 | BG76: 523 | BH76: A6567 | BI76: 548 | BJ76: A6867 | BK76: 573 | BL76: A7167 | BM76: 598 | BN76: A7467 | BO76: 23
AX77: A5079 | AY77: 424 | AZ77: A5379 | BA77: 449 | BB77: A5679 | BC77: 474 | BD77: A5979 | BE77: 499 | BF77: A6279 | BG77: 524 | BH77: A6579 | BI77: 549 | BJ77: A6879 | BK77: 574 | BL77: A7179 | BM77: 599 | BN77: A7479 | BO77: 24
AX78: A5091 | AY78: 425 | AZ78: A5391 | BA78: 450 | BB78: A5691 | BC78: 475 | BD78: A5991 | BE78: 500 | BF78: A6291 | BG78: 525 | BH78: A6591 | BI78: 550 | BJ78: A6891 | BK78: 575 | BL78: A7191 | BM78: 600 | BN78: =LEFT(BN77,1)&RIGHT(BN77,4)+12 -> A7491 | BO78: 25
BN79: A9291
AX80: A7203 | AY80: 601 | AZ80: A7503 | BA80: 626 | BB80: A7803 | BC80: 651 | BD80: A8103 | BE80: 676 | BF80: A8403 | BG80: 701 | BH80: A8703 | BI80: 726 | BJ80: A9003 | BK80: 751 | BL80: A9303 | BM80: 776 | BN80: =LEFT(BN79,1)&RIGHT(BN79,4)+12 -> A9303 | BO80: 1
AX81: A7215 | AY81: 602 | AZ81: A7515 | BA81: 627 | BB81: A7815 | BC81: 652 | BD81: A8115 | BE81: 677 | BF81: A8415 | BG81: 702 | BH81: A8715 | BI81: 727 | BJ81: A9015 | BK81: 752 | BL81: A9315 | BM81: 777 | BN81: =LEFT(BN80,1)&RIGHT(BN80,4)+12 -> A9315 | BO81: 2
AX82: A7227 | AY82: 603 | AZ82: A7527 | BA82: 628 | BB82: A7827 | BC82: 653 | BD82: A8127 | BE82: 678 | BF82: A8427 | BG82: 703 | BH82: A8727 | BI82: 728 | BJ82: A9027 | BK82: 753 | BL82: A9327 | BM82: 778 | BN82: A9327 | BO82: 3
AX83: A7239 | AY83: 604 | AZ83: A7539 | BA83: 629 | BB83: A7839 | BC83: 654 | BD83: A8139 | BE83: 679 | BF83: A8439 | BG83: 704 | BH83: A8739 | BI83: 729 | BJ83: A9039 | BK83: 754 | BL83: A9339 | BM83: 779 | BN83: =LEFT(BN82,1)&RIGHT(BN82,4)+12 -> A9339 | BO83: 4
AX84: A7251 | AY84: 605 | AZ84: A7551 | BA84: 630 | BB84: A7851 | BC84: 655 | BD84: A8151 | BE84: 680 | BF84: A8451 | BG84: 705 | BH84: A8751 | BI84: 730 | BJ84: A9051 | BK84: 755 | BL84: A9351 | BM84: 780 | BN84: A9351 | BO84: 5
AX85: A7263 | AY85: 606 | AZ85: A7563 | BA85: 631 | BB85: A7863 | BC85: 656 | BD85: A8163 | BE85: 681 | BF85: A8463 | BG85: 706 | BH85: A8763 | BI85: 731 | BJ85: A9063 | BK85: 756 | BL85: A9363 | BM85: 781 | BN85: A9363 | BO85: 6
AX86: A7275 | AY86: 607 | AZ86: A7575 | BA86: 632 | BB86: A7875 | BC86: 657 | BD86: A8175 | BE86: 682 | BF86: A8475 | BG86: 707 | BH86: A8775 | BI86: 732 | BJ86: A9075 | BK86: 757 | BL86: A9375 | BM86: 782 | BN86: A9375 | BO86: 7
AX87: A7287 | AY87: 608 | AZ87: A7587 | BA87: 633 | BB87: A7887 | BC87: 658 | BD87: A8187 | BE87: 683 | BF87: A8487 | BG87: 708 | BH87: A8787 | BI87: 733 | BJ87: A9087 | BK87: 758 | BL87: A9387 | BM87: 783 | BN87: A9387 | BO87: 8
AX88: A7299 | AY88: 609 | AZ88: A7599 | BA88: 634 | BB88: A7899 | BC88: 659 | BD88: A8199 | BE88: 684 | BF88: A8499 | BG88: 709 | BH88: A8799 | BI88: 734 | BJ88: A9099 | BK88: 759 | BL88: A9399 | BM88: 784 | BN88: A9399 | BO88: 9
AX89: A7311 | AY89: 610 | AZ89: A7611 | BA89: 635 | BB89: A7911 | BC89: 660 | BD89: A8211 | BE89: 685 | BF89: A8511 | BG89: 710 | BH89: A8811 | BI89: 735 | BJ89: A9111 | BK89: 760 | BL89: A9411 | BM89: 785 | BN89: A9411 | BO89: 10
AX90: A7323 | AY90: 611 | AZ90: A7623 | BA90: 636 | BB90: A7923 | BC90: 661 | BD90: A8223 | BE90: 686 | BF90: A8523 | BG90: 711 | BH90: A8823 | BI90: 736 | BJ90: A9123 | BK90: 761 | BL90: A9423 | BM90: 786 | BN90: A9423 | BO90: 11
AX91: A7335 | AY91: 612 | AZ91: A7635 | BA91: 637 | BB91: A7935 | BC91: 662 | BD91: A8235 | BE91: 687 | BF91: A8535 | BG91: 712 | BH91: A8835 | BI91: 737 | BJ91: A9135 | BK91: 762 | BL91: A9435 | BM91: 787 | BN91: A9435 | BO91: 12
AX92: A7347 | AY92: 613 | AZ92: A7647 | BA92: 638 | BB92: A7947 | BC92: 663 | BD92: A8247 | BE92: 688 | BF92: A8547 | BG92: 713 | BH92: A8847 | BI92: 738 | BJ92: A9147 | BK92: 763 | BL92: A9447 | BM92: 788 | BN92: A9447 | BO92: 13
AX93: A7359 | AY93: 614 | AZ93: A7659 | BA93: 639 | BB93: A7959 | BC93: 664 | BD93: A8259 | BE93: 689 | BF93: A8559 | BG93: 714 | BH93: A8859 | BI93: 739 | BJ93: A9159 | BK93: 764 | BL93: A9459 | BM93: 789 | BN93: A9459 | BO93: 14
AX94: A7371 | AY94: 615 | AZ94: A7671 | BA94: 640 | BB94: A7971 | BC94: 665 | BD94: A8271 | BE94: 690 | BF94: A8571 | BG94: 715 | BH94: A8871 | BI94: 740 | BJ94: A9171 | BK94: 765 | BL94: A9471 | BM94: 790 | BN94: A9471 | BO94: 15
AX95: A7383 | AY95: 616 | AZ95: A7683 | BA95: 641 | BB95: A7983 | BC95: 666 | BD95: A8283 | BE95: 691 | BF95: A8583 | BG95: 716 | BH95: A8883 | BI95: 741 | BJ95: A9183 | BK95: 766 | BL95: A9483 | BM95: 791 | BN95: A9483 | BO95: 16
AX96: A7395 | AY96: 617 | AZ96: A7695 | BA96: 642 | BB96: A7995 | BC96: 667 | BD96: A8295 | BE96: 692 | BF96: A8595 | BG96: 717 | BH96: A8895 | BI96: 742 | BJ96: A9195 | BK96: 767 | BL96: A9495 | BM96: 792 | BN96: A9495 | BO96: 17
AX97: A7407 | AY97: 618 | AZ97: A7707 | BA97: 643 | BB97: A8007 | BC97: 668 | BD97: A8307 | BE97: 693 | BF97: A8607 | BG97: 718 | BH97: A8907 | BI97: 743 | BJ97: A9207 | BK97: 768 | BL97: A9507 | BM97: 793 | BN97: A9507 | BO97: 18
AX98: A7419 | AY98: 619 | AZ98: A7719 | BA98: 644 | BB98: A8019 | BC98: 669 | BD98: A8319 | BE98: 694 | BF98: A8619 | BG98: 719 | BH98: A8919 | BI98: 744 | BJ98: A9219 | BK98: 769 | BL98: A9519 | BM98: 794 | BN98: A9519 | BO98: 19
AX99: A7431 | AY99: 620 | AZ99: A7731 | BA99: 645 | BB99: A8031 | BC99: 670 | BD99: A8331 | BE99: 695 | BF99: A8631 | BG99: 720 | BH99: A8931 | BI99: 745 | BJ99: A9231 | BK99: 770 | BL99: A9531 | BM99: 795 | BN99: A9531 | BO99: 20
AX100: A7443 | AY100: 621 | AZ100: A7743 | BA100: 646 | BB100: A8043 | BC100: 671 | BD100: A8343 | BE100: 696 | BF100: A8643 | BG100: 721 | BH100: A8943 | BI100: 746 | BJ100: A9243 | BK100: 771 | BL100: A9543 | BM100: 796 | BN100: A9543 | BO100: 21
AX101: A7455 | AY101: 622 | AZ101: A7755 | BA101: 647 | BB101: A8055 | BC101: 672 | BD101: A8355 | BE101: 697 | BF101: A8655 | BG101: 722 | BH101: A8955 | BI101: 747 | BJ101: A9255 | BK101: 772 | BL101: A9555 | BM101: 797 | BN101: A9555 | BO101: 22
AX102: A7467 | AY102: 623 | AZ102: A7767 | BA102: 648 | BB102: A8067 | BC102: 673 | BD102: A8367 | BE102: 698 | BF102: A8667 | BG102: 723 | BH102: A8967 | BI102: 748 | BJ102: A9267 | BK102: 773 | BL102: A9567 | BM102: 798 | BN102: A9567 | BO102: 23
AX103: A7479 | AY103: 624 | AZ103: A7779 | BA103: 649 | BB103: A8079 | BC103: 674 | BD103: A8379 | BE103: 699 | BF103: A8679 | BG103: 724 | BH103: A8979 | BI103: 749 | BJ103: A9279 | BK103: 774 | BL103: A9579 | BM103: 799 | BN103: A9579 | BO103: 24
AX104: A7491 | AY104: 625 | AZ104: A7791 | BA104: 650 | BB104: A8091 | BC104: 675 | BD104: A8391 | BE104: 700 | BF104: A8691 | BG104: 725 | BH104: A8991 | BI104: 750 | BJ104: A9291 | BK104: 775 | BL104: A9591 | BM104: 800 | BN104: =LEFT(BN103,1)&RIGHT(BN103,4)+12 -> A9591 | BO104: 25
BN105: A11691
AX106: A9603 | AY106: 801 | AZ106: A9903 | BA106: 826 | BB106: A10203 | BC106: 851 | BD106: A10503 | BE106: 876 | BF106: A10803 | BG106: 901 | BH106: A11103 | BI106: 926 | BJ106: A11403 | BK106: 951 | BL106: A11703 | BM106: 976 | BN106: =LEFT(BN105,1)&RIGHT(BN105,5)+12 -> A11703 | BO106: 1
AX107: A9615 | AY107: 802 | AZ107: A9915 | BA107: 827 | BB107: A10215 | BC107: 852 | BD107: A10515 | BE107: 877 | BF107: A10815 | BG107: 902 | BH107: A11115 | BI107: 927 | BJ107: A11415 | BK107: 952 | BL107: A11715 | BM107: 977 | BN107: =LEFT(BN106,1)&RIGHT(BN106,5)+12 -> A11715 | BO107: 2
AX108: A9627 | AY108: 803 | AZ108: A9927 | BA108: 828 | BB108: A10227 | BC108: 853 | BD108: A10527 | BE108: 878 | BF108: A10827 | BG108: 903 | BH108: A11127 | BI108: 928 | BJ108: A11427 | BK108: 953 | BL108: A11727 | BM108: 978 | BN108: A11727 | BO108: 3
AX109: A9639 | AY109: 804 | AZ109: A9939 | BA109: 829 | BB109: A10239 | BC109: 854 | BD109: A10539 | BE109: 879 | BF109: A10839 | BG109: 904 | BH109: A11139 | BI109: 929 | BJ109: A11439 | BK109: 954 | BL109: A11739 | BM109: 979 | BN109: A11739 | BO109: 4
AX110: A9651 | AY110: 805 | AZ110: A9951 | BA110: 830 | BB110: A10251 | BC110: 855 | BD110: A10551 | BE110: 880 | BF110: A10851 | BG110: 905 | BH110: A11151 | BI110: 930 | BJ110: A11451 | BK110: 955 | BL110: A11751 | BM110: 980 | BN110: A11751 | BO110: 5
AX111: A9663 | AY111: 806 | AZ111: A9963 | BA111: 831 | BB111: A10263 | BC111: 856 | BD111: A10563 | BE111: 881 | BF111: A10863 | BG111: 906 | BH111: A11163 | BI111: 931 | BJ111: A11463 | BK111: 956 | BL111: A11763 | BM111: 981 | BN111: A11763 | BO111: 6
AX112: A9675 | AY112: 807 | AZ112: A9975 | BA112: 832 | BB112: A10275 | BC112: 857 | BD112: A10575 | BE112: 882 | BF112: A10875 | BG112: 907 | BH112: A11175 | BI112: 932 | BJ112: A11475 | BK112: 957 | BL112: A11775 | BM112: 982 | BN112: A11775 | BO112: 7
AX113: A9687 | AY113: 808 | AZ113: A9987 | BA113: 833 | BB113: A10287 | BC113: 858 | BD113: A10587 | BE113: 883 | BF113: A10887 | BG113: 908 | BH113: A11187 | BI113: 933 | BJ113: A11487 | BK113: 958 | BL113: A11787 | BM113: 983 | BN113: A11787 | BO113: 8
AX114: A9699 | AY114: 809 | AZ114: A9999 | BA114: 834 | BB114: A10299 | BC114: 859 | BD114: A10599 | BE114: 884 | BF114: A10899 | BG114: 909 | BH114: A11199 | BI114: 934 | BJ114: A11499 | BK114: 959 | BL114: A11799 | BM114: 984 | BN114: A11799 | BO114: 9
AX115: A9711 | AY115: 810 | AZ115: A10011 | BA115: 835 | BB115: A10311 | BC115: 860 | BD115: A10611 | BE115: 885 | BF115: A10911 | BG115: 910 | BH115: A11211 | BI115: 935 | BJ115: A11511 | BK115: 960 | BL115: A11811 | BM115: 985 | BN115: A11811 | BO115: 10
AX116: A9723 | AY116: 811 | AZ116: A10023 | BA116: 836 | BB116: A10323 | BC116: 861 | BD116: A10623 | BE116: 886 | BF116: A10923 | BG116: 911 | BH116: A11223 | BI116: 936 | BJ116: A11523 | BK116: 961 | BL116: A11823 | BM116: 986 | BN116: A11823 | BO116: 11
AX117: A9735 | AY117: 812 | AZ117: A10035 | BA117: 837 | BB117: A10335 | BC117: 862 | BD117: A10635 | BE117: 887 | BF117: A10935 | BG117: 912 | BH117: A11235 | BI117: 937 | BJ117: A11535 | BK117: 962 | BL117: A11835 | BM117: 987 | BN117: A11835 | BO117: 12
AX118: A9747 | AY118: 813 | AZ118: A10047 | BA118: 838 | BB118: A10347 | BC118: 863 | BD118: A10647 | BE118: 888 | BF118: A10947 | BG118: 913 | BH118: A11247 | BI118: 938 | BJ118: A11547 | BK118: 963 | BL118: A11847 | BM118: 988 | BN118: A11847 | BO118: 13
AX119: A9759 | AY119: 814 | AZ119: A10059 | BA119: 839 | BB119: A10359 | BC119: 864 | BD119: A10659 | BE119: 889 | BF119: A10959 | BG119: 914 | BH119: A11259 | BI119: 939 | BJ119: A11559 | BK119: 964 | BL119: A11859 | BM119: 989 | BN119: A11859 | BO119: 14
AX120: A9771 | AY120: 815 | AZ120: A10071 | BA120: 840 | BB120: A10371 | BC120: 865 | BD120: A10671 | BE120: 890 | BF120: A10971 | BG120: 915 | BH120: A11271 | BI120: 940 | BJ120: A11571 | BK120: 965 | BL120: A11871 | BM120: 990 | BN120: A11871 | BO120: 15
AX121: A9783 | AY121: 816 | AZ121: A10083 | BA121: 841 | BB121: A10383 | BC121: 866 | BD121: A10683 | BE121: 891 | BF121: A10983 | BG121: 916 | BH121: A11283 | BI121: 941 | BJ121: A11583 | BK121: 966 | BL121: A11883 | BM121: 991 | BN121: A11883 | BO121: 16
AX122: A9795 | AY122: 817 | AZ122: A10095 | BA122: 842 | BB122: A10395 | BC122: 867 | BD122: A10695 | BE122: 892 | BF122: A10995 | BG122: 917 | BH122: A11295 | BI122: 942 | BJ122: A11595 | BK122: 967 | BL122: A11895 | BM122: 992 | BN122: A11895 | BO122: 17
AX123: A9807 | AY123: 818 | AZ123: A10107 | BA123: 843 | BB123: A10407 | BC123: 868 | BD123: A10707 | BE123: 893 | BF123: A11007 | BG123: 918 | BH123: A11307 | BI123: 943 | BJ123: A11607 | BK123: 968 | BL123: A11907 | BM123: 993 | BN123: A11907 | BO123: 18
AX124: A9819 | AY124: 819 | AZ124: A10119 | BA124: 844 | BB124: A10419 | BC124: 869 | BD124: A10719 | BE124: 894 | BF124: A11019 | BG124: 919 | BH124: A11319 | BI124: 944 | BJ124: A11619 | BK124: 969 | BL124: A11919 | BM124: 994 | BN124: A11919 | BO124: 19
AX125: A9831 | AY125: 820 | AZ125: A10131 | BA125: 845 | BB125: A10431 | BC125: 870 | BD125: A10731 | BE125: 895 | BF125: A11031 | BG125: 920 | BH125: A11331 | BI125: 945 | BJ125: A11631 | BK125: 970 | BL125: A11931 | BM125: 995 | BN125: A11931 | BO125: 20
AX126: A9843 | AY126: 821 | AZ126: A10143 | BA126: 846 | BB126: A10443 | BC126: 871 | BD126: A10743 | BE126: 896 | BF126: A11043 | BG126: 921 | BH126: A11343 | BI126: 946 | BJ126: A11643 | BK126: 971 | BL126: A11943 | BM126: 996 | BN126: A11943 | BO126: 21
AX127: A9855 | AY127: 822 | AZ127: A10155 | BA127: 847 | BB127: A10455 | BC127: 872 | BD127: A10755 | BE127: 897 | BF127: A11055 | BG127: 922 | BH127: A11355 | BI127: 947 | BJ127: A11655 | BK127: 972 | BL127: A11955 | BM127: 997 | BN127: A11955 | BO127: 22
AX128: A9867 | AY128: 823 | AZ128: A10167 | BA128: 848 | BB128: A10467 | BC128: 873 | BD128: A10767 | BE128: 898 | BF128: A11067 | BG128: 923 | BH128: A11367 | BI128: 948 | BJ128: A11667 | BK128: 973 | BL128: A11967 | BM128: 998 | BN128: A11967 | BO128: 23
AX129: A9879 | AY129: 824 | AZ129: A10179 | BA129: 849 | BB129: A10479 | BC129: 874 | BD129: A10779 | BE129: 899 | BF129: A11079 | BG129: 924 | BH129: A11379 | BI129: 949 | BJ129: A11679 | BK129: 974 | BL129: A11979 | BM129: 999 | BN129: A11979 | BO129: 24
AX130: A9891 | AY130: 825 | AZ130: A10191 | BA130: 850 | BB130: A10491 | BC130: 875 | BD130: A10791 | BE130: 900 | BF130: A11091 | BG130: 925 | BH130: A11391 | BI130: 950 | BJ130: A11691 | BK130: 975 | BL130: A11991 | BM130: 1000 | BN130: A11991 | BO130: 25
BN131: A14091
AX132: A12003 | AY132: 1001 | AZ132: A12303 | BA132: 1026 | BB132: A12603 | BC132: 1051 | BD132: A12903 | BE132: 1076 | BF132: A13203 | BG132: 1101 | BH132: A13503 | BI132: 1126 | BJ132: A13803 | BK132: 1151 | BL132: A14103 | BM132: 1176 | BN132: =LEFT(BN131,1)&RIGHT(BN131,5)+12 -> A14103 | BO132: 1
AX133: A12015 | AY133: 1002 | AZ133: A12315 | BA133: 1027 | BB133: A12615 | BC133: 1052 | BD133: A12915 | BE133: 1077 | BF133: A13215 | BG133: 1102 | BH133: A13515 | BI133: 1127 | BJ133: A13815 | BK133: 1152 | BL133: A14115 | BM133: 1177 | BN133: =LEFT(BN132,1)&RIGHT(BN132,5)+12 -> A14115 | BO133: 2
AX134: A12027 | AY134: 1003 | AZ134: A12327 | BA134: 1028 | BB134: A12627 | BC134: 1053 | BD134: A12927 | BE134: 1078 | BF134: A13227 | BG134: 1103 | BH134: A13527 | BI134: 1128 | BJ134: A13827 | BK134: 1153 | BL134: A14127 | BM134: 1178 | BN134: A14127 | BO134: 3
AX135: A12039 | AY135: 1004 | AZ135: A12339 | BA135: 1029 | BB135: A12639 | BC135: 1054 | BD135: A12939 | BE135: 1079 | BF135: A13239 | BG135: 1104 | BH135: A13539 | BI135: 1129 | BJ135: A13839 | BK135: 1154 | BL135: A14139 | BM135: 1179 | BN135: A14139 | BO135: 4
AX136: A12051 | AY136: 1005 | AZ136: A12351 | BA136: 1030 | BB136: A12651 | BC136: 1055 | BD136: A12951 | BE136: 1080 | BF136: A13251 | BG136: 1105 | BH136: A13551 | BI136: 1130 | BJ136: A13851 | BK136: 1155 | BL136: A14151 | BM136: 1180 | BN136: A14151 | BO136: 5
AX137: A12063 | AY137: 1006 | AZ137: A12363 | BA137: 1031 | BB137: A12663 | BC137: 1056 | BD137: A12963 | BE137: 1081 | BF137: A13263 | BG137: 1106 | BH137: A13563 | BI137: 1131 | BJ137: A13863 | BK137: 1156 | BL137: A14163 | BM137: 1181 | BN137: A14163 | BO137: 6
AX138: A12075 | AY138: 1007 | AZ138: A12375 | BA138: 1032 | BB138: A12675 | BC138: 1057 | BD138: A12975 | BE138: 1082 | BF138: A13275 | BG138: 1107 | BH138: A13575 | BI138: 1132 | BJ138: A13875 | BK138: 1157 | BL138: A14175 | BM138: 1182 | BN138: A14175 | BO138: 7
AX139: A12087 | AY139: 1008 | AZ139: A12387 | BA139: 1033 | BB139: A12687 | BC139: 1058 | BD139: A12987 | BE139: 1083 | BF139: A13287 | BG139: 1108 | BH139: A13587 | BI139: 1133 | BJ139: A13887 | BK139: 1158 | BL139: A14187 | BM139: 1183 | BN139: A14187 | BO139: 8
AX140: A12099 | AY140: 1009 | AZ140: A12399 | BA140: 1034 | BB140: A12699 | BC140: 1059 | BD140: A12999 | BE140: 1084 | BF140: A13299 | BG140: 1109 | BH140: A13599 | BI140: 1134 | BJ140: A13899 | BK140: 1159 | BL140: A14199 | BM140: 1184 | BN140: A14199 | BO140: 9
AX141: A12111 | AY141: 1010 | AZ141: A12411 | BA141: 1035 | BB141: A12711 | BC141: 1060 | BD141: A13011 | BE141: 1085 | BF141: A13311 | BG141: 1110 | BH141: A13611 | BI141: 1135 | BJ141: A13911 | BK141: 1160 | BL141: A14211 | BM141: 1185 | BN141: A14211 | BO141: 10
AX142: A12123 | AY142: 1011 | AZ142: A12423 | BA142: 1036 | BB142: A12723 | BC142: 1061 | BD142: A13023 | BE142: 1086 | BF142: A13323 | BG142: 1111 | BH142: A13623 | BI142: 1136 | BJ142: A13923 | BK142: 1161 | BL142: A14223 | BM142: 1186 | BN142: A14223 | BO142: 11
AX143: A12135 | AY143: 1012 | AZ143: A12435 | BA143: 1037 | BB143: A12735 | BC143: 1062 | BD143: A13035 | BE143: 1087 | BF143: A13335 | BG143: 1112 | BH143: A13635 | BI143: 1137 | BJ143: A13935 | BK143: 1162 | BL143: A14235 | BM143: 1187 | BN143: A14235 | BO143: 12
AX144: A12147 | AY144: 1013 | AZ144: A12447 | BA144: 1038 | BB144: A12747 | BC144: 1063 | BD144: A13047 | BE144: 1088 | BF144: A13347 | BG144: 1113 | BH144: A13647 | BI144: 1138 | BJ144: A13947 | BK144: 1163 | BL144: A14247 | BM144: 1188 | BN144: A14247 | BO144: 13
AX145: A12159 | AY145: 1014 | AZ145: A12459 | BA145: 1039 | BB145: A12759 | BC145: 1064 | BD145: A13059 | BE145: 1089 | BF145: A13359 | BG145: 1114 | BH145: A13659 | BI145: 1139 | BJ145: A13959 | BK145: 1164 | BL145: A14259 | BM145: 1189 | BN145: A14259 | BO145: 14
AX146: A12171 | AY146: 1015 | AZ146: A12471 | BA146: 1040 | BB146: A12771 | BC146: 1065 | BD146: A13071 | BE146: 1090 | BF146: A13371 | BG146: 1115 | BH146: A13671 | BI146: 1140 | BJ146: A13971 | BK146: 1165 | BL146: A14271 | BM146: 1190 | BN146: A14271 | BO146: 15
AX147: A12183 | AY147: 1016 | AZ147: A12483 | BA147: 1041 | BB147: A12783 | BC147: 1066 | BD147: A13083 | BE147: 1091 | BF147: A13383 | BG147: 1116 | BH147: A13683 | BI147: 1141 | BJ147: A13983 | BK147: 1166 | BL147: A14283 | BM147: 1191 | BN147: A14283 | BO147: 16
AX148: A12195 | AY148: 1017 | AZ148: A12495 | BA148: 1042 | BB148: A12795 | BC148: 1067 | BD148: A13095 | BE148: 1092 | BF148: A13395 | BG148: 1117 | BH148: A13695 | BI148: 1142 | BJ148: A13995 | BK148: 1167 | BL148: A14295 | BM148: 1192 | BN148: A14295 | BO148: 17
AX149: A12207 | AY149: 1018 | AZ149: A12507 | BA149: 1043 | BB149: A12807 | BC149: 1068 | BD149: A13107 | BE149: 1093 | BF149: A13407 | BG149: 1118 | BH149: A13707 | BI149: 1143 | BJ149: A14007 | BK149: 1168 | BL149: A14307 | BM149: 1193 | BN149: A14307 | BO149: 18
AX150: A12219 | AY150: 1019 | AZ150: A12519 | BA150: 1044 | BB150: A12819 | BC150: 1069 | BD150: A13119 | BE150: 1094 | BF150: A13419 | BG150: 1119 | BH150: A13719 | BI150: 1144 | BJ150: A14019 | BK150: 1169 | BL150: A14319 | BM150: 1194 | BN150: A14319 | BO150: 19
AX151: A12231 | AY151: 1020 | AZ151: A12531 | BA151: 1045 | BB151: A12831 | BC151: 1070 | BD151: A13131 | BE151: 1095 | BF151: A13431 | BG151: 1120 | BH151: A13731 | BI151: 1145 | BJ151: A14031 | BK151: 1170 | BL151: A14331 | BM151: 1195 | BN151: A14331 | BO151: 20
AX152: A12243 | AY152: 1021 | AZ152: A12543 | BA152: 1046 | BB152: A12843 | BC152: 1071 | BD152: A13143 | BE152: 1096 | BF152: A13443 | BG152: 1121 | BH152: A13743 | BI152: 1146 | BJ152: A14043 | BK152: 1171 | BL152: A14343 | BM152: 1196 | BN152: A14343 | BO152: 21
AX153: A12255 | AY153: 1022 | AZ153: A12555 | BA153: 1047 | BB153: A12855 | BC153: 1072 | BD153: A13155 | BE153: 1097 | BF153: A13455 | BG153: 1122 | BH153: A13755 | BI153: 1147 | BJ153: A14055 | BK153: 1172 | BL153: A14355 | BM153: 1197 | BN153: A14355 | BO153: 22
AX154: A12267 | AY154: 1023 | AZ154: A12567 | BA154: 1048 | BB154: A12867 | BC154: 1073 | BD154: A13167 | BE154: 1098 | BF154: A13467 | BG154: 1123 | BH154: A13767 | BI154: 1148 | BJ154: A14067 | BK154: 1173 | BL154: A14367 | BM154: 1198 | BN154: A14367 | BO154: 23
AX155: A12279 | AY155: 1024 | AZ155: A12579 | BA155: 1049 | BB155: A12879 | BC155: 1074 | BD155: A13179 | BE155: 1099 | BF155: A13479 | BG155: 1124 | BH155: A13779 | BI155: 1149 | BJ155: A14079 | BK155: 1174 | BL155: A14379 | BM155: 1199 | BN155: A14379 | BO155: 24
AX156: A12291 | AY156: 1025 | AZ156: A12591 | BA156: 1050 | BB156: A12891 | BC156: 1075 | BD156: A13191 | BE156: 1100 | BF156: A13491 | BG156: 1125 | BH156: A13791 | BI156: 1150 | BJ156: A14091 | BK156: 1175 | BL156: A14391 | BM156: 1200 | BN156: A14391 | BO156: 25
BN157: A16491
AX158: A14403 | AY158: 1201 | AZ158: A14703 | BA158: 1226 | BB158: A15003 | BC158: 1251 | BD158: A15303 | BE158: 1276 | BF158: A15603 | BG158: 1301 | BH158: A15903 | BI158: 1326 | BJ158: A16203 | BK158: 1351 | BL158: A16503 | BM158: 1376 | BN158: =LEFT(BN157,1)&RIGHT(BN157,5)+12 -> A16503 | BO158: 1
AX159: A14415 | AY159: 1202 | AZ159: A14715 | BA159: 1227 | BB159: A15015 | BC159: 1252 | BD159: A15315 | BE159: 1277 | BF159: A15615 | BG159: 1302 | BH159: A15915 | BI159: 1327 | BJ159: A16215 | BK159: 1352 | BL159: A16515 | BM159: 1377 | BN159: =LEFT(BN158,1)&RIGHT(BN158,5)+12 -> A16515 | BO159: 2
AX160: A14427 | AY160: 1203 | AZ160: A14727 | BA160: 1228 | BB160: A15027 | BC160: 1253 | BD160: A15327 | BE160: 1278 | BF160: A15627 | BG160: 1303 | BH160: A15927 | BI160: 1328 | BJ160: A16227 | BK160: 1353 | BL160: A16527 | BM160: 1378 | BN160: A16527 | BO160: 3
AX161: A14439 | AY161: 1204 | AZ161: A14739 | BA161: 1229 | BB161: A15039 | BC161: 1254 | BD161: A15339 | BE161: 1279 | BF161: A15639 | BG161: 1304 | BH161: A15939 | BI161: 1329 | BJ161: A16239 | BK161: 1354 | BL161: A16539 | BM161: 1379 | BN161: A16539 | BO161: 4
AX162: A14451 | AY162: 1205 | AZ162: A14751 | BA162: 1230 | BB162: A15051 | BC162: 1255 | BD162: A15351 | BE162: 1280 | BF162: A15651 | BG162: 1305 | BH162: A15951 | BI162: 1330 | BJ162: A16251 | BK162: 1355 | BL162: A16551 | BM162: 1380 | BN162: A16551 | BO162: 5
AX163: A14463 | AY163: 1206 | AZ163: A14763 | BA163: 1231 | BB163: A15063 | BC163: 1256 | BD163: A15363 | BE163: 1281 | BF163: A15663 | BG163: 1306 | BH163: A15963 | BI163: 1331 | BJ163: A16263 | BK163: 1356 | BL163: A16563 | BM163: 1381 | BN163: A16563 | BO163: 6
AX164: A14475 | AY164: 1207 | AZ164: A14775 | BA164: 1232 | BB164: A15075 | BC164: 1257 | BD164: A15375 | BE164: 1282 | BF164: A15675 | BG164: 1307 | BH164: A15975 | BI164: 1332 | BJ164: A16275 | BK164: 1357 | BL164: A16575 | BM164: 1382 | BN164: A16575 | BO164: 7
AX165: A14487 | AY165: 1208 | AZ165: A14787 | BA165: 1233 | BB165: A15087 | BC165: 1258 | BD165: A15387 | BE165: 1283 | BF165: A15687 | BG165: 1308 | BH165: A15987 | BI165: 1333 | BJ165: A16287 | BK165: 1358 | BL165: A16587 | BM165: 1383 | BN165: A16587 | BO165: 8
AX166: A14499 | AY166: 1209 | AZ166: A14799 | BA166: 1234 | BB166: A15099 | BC166: 1259 | BD166: A15399 | BE166: 1284 | BF166: A15699 | BG166: 1309 | BH166: A15999 | BI166: 1334 | BJ166: A16299 | BK166: 1359 | BL166: A16599 | BM166: 1384 | BN166: A16599 | BO166: 9
AX167: A14511 | AY167: 1210 | AZ167: A14811 | BA167: 1235 | BB167: A15111 | BC167: 1260 | BD167: A15411 | BE167: 1285 | BF167: A15711 | BG167: 1310 | BH167: A16011 | BI167: 1335 | BJ167: A16311 | BK167: 1360 | BL167: A16611 | BM167: 1385 | BN167: A16611 | BO167: 10
AX168: A14523 | AY168: 1211 | AZ168: A14823 | BA168: 1236 | BB168: A15123 | BC168: 1261 | BD168: A15423 | BE168: 1286 | BF168: A15723 | BG168: 1311 | BH168: A16023 | BI168: 1336 | BJ168: A16323 | BK168: 1361 | BL168: A16623 | BM168: 1386 | BN168: A16623 | BO168: 11
AX169: A14535 | AY169: 1212 | AZ169: A14835 | BA169: 1237 | BB169: A15135 | BC169: 1262 | BD169: A15435 | BE169: 1287 | BF169: A15735 | BG169: 1312 | BH169: A16035 | BI169: 1337 | BJ169: A16335 | BK169: 1362 | BL169: A16635 | BM169: 1387 | BN169: A16635 | BO169: 12
AX170: A14547 | AY170: 1213 | AZ170: A14847 | BA170: 1238 | BB170: A15147 | BC170: 1263 | BD170: A15447 | BE170: 1288 | BF170: A15747 | BG170: 1313 | BH170: A16047 | BI170: 1338 | BJ170: A16347 | BK170: 1363 | BL170: A16647 | BM170: 1388 | BN170: A16647 | BO170: 13
AX171: A14559 | AY171: 1214 | AZ171: A14859 | BA171: 1239 | BB171: A15159 | BC171: 1264 | BD171: A15459 | BE171: 1289 | BF171: A15759 | BG171: 1314 | BH171: A16059 | BI171: 1339 | BJ171: A16359 | BK171: 1364 | BL171: A16659 | BM171: 1389 | BN171: A16659 | BO171: 14
AX172: A14571 | AY172: 1215 | AZ172: A14871 | BA172: 1240 | BB172: A15171 | BC172: 1265 | BD172: A15471 | BE172: 1290 | BF172: A15771 | BG172: 1315 | BH172: A16071 | BI172: 1340 | BJ172: A16371 | BK172: 1365 | BL172: A16671 | BM172: 1390 | BN172: A16671 | BO172: 15
AX173: A14583 | AY173: 1216 | AZ173: A14883 | BA173: 1241 | BB173: A15183 | BC173: 1266 | BD173: A15483 | BE173: 1291 | BF173: A15783 | BG173: 1316 | BH173: A16083 | BI173: 1341 | BJ173: A16383 | BK173: 1366 | BL173: A16683 | BM173: 1391 | BN173: A16683 | BO173: 16
AX174: A14595 | AY174: 1217 | AZ174: A14895 | BA174: 1242 | BB174: A15195 | BC174: 1267 | BD174: A15495 | BE174: 1292 | BF174: A15795 | BG174: 1317 | BH174: A16095 | BI174: 1342 | BJ174: A16395 | BK174: 1367 | BL174: A16695 | BM174: 1392 | BN174: A16695 | BO174: 17
AX175: A14607 | AY175: 1218 | AZ175: A14907 | BA175: 1243 | BB175: A15207 | BC175: 1268 | BD175: A15507 | BE175: 1293 | BF175: A15807 | BG175: 1318 | BH175: A16107 | BI175: 1343 | BJ175: A16407 | BK175: 1368 | BL175: A16707 | BM175: 1393 | BN175: A16707 | BO175: 18
AX176: A14619 | AY176: 1219 | AZ176: A14919 | BA176: 1244 | BB176: A15219 | BC176: 1269 | BD176: A15519 | BE176: 1294 | BF176: A15819 | BG176: 1319 | BH176: A16119 | BI176: 1344 | BJ176: A16419 | BK176: 1369 | BL176: A16719 | BM176: 1394 | BN176: A16719 | BO176: 19
AX177: A14631 | AY177: 1220 | AZ177: A14931 | BA177: 1245 | BB177: A15231 | BC177: 1270 | BD177: A15531 | BE177: 1295 | BF177: A15831 | BG177: 1320 | BH177: A16131 | BI177: 1345 | BJ177: A16431 | BK177: 1370 | BL177: A16731 | BM177: 1395 | BN177: A16731 | BO177: 20
AX178: A14643 | AY178: 1221 | AZ178: A14943 | BA178: 1246 | BB178: A15243 | BC178: 1271 | BD178: A15543 | BE178: 1296 | BF178: A15843 | BG178: 1321 | BH178: A16143 | BI178: 1346 | BJ178: A16443 | BK178: 1371 | BL178: A16743 | BM178: 1396 | BN178: A16743 | BO178: 21
AX179: A14655 | AY179: 1222 | AZ179: A14955 | BA179: 1247 | BB179: A15255 | BC179: 1272 | BD179: A15555 | BE179: 1297 | BF179: A15855 | BG179: 1322 | BH179: A16155 | BI179: 1347 | BJ179: A16455 | BK179: 1372 | BL179: A16755 | BM179: 1397 | BN179: A16755 | BO179: 22
AX180: A14667 | AY180: 1223 | AZ180: A14967 | BA180: 1248 | BB180: A15267 | BC180: 1273 | BD180: A15567 | BE180: 1298 | BF180: A15867 | BG180: 1323 | BH180: A16167 | BI180: 1348 | BJ180: A16467 | BK180: 1373 | BL180: A16767 | BM180: 1398 | BN180: A16767 | BO180: 23
AX181: A14679 | AY181: 1224 | AZ181: A14979 | BA181: 1249 | BB181: A15279 | BC181: 1274 | BD181: A15579 | BE181: 1299 | BF181: A15879 | BG181: 1324 | BH181: A16179 | BI181: 1349 | BJ181: A16479 | BK181: 1374 | BL181: A16779 | BM181: 1399 | BN181: A16779 | BO181: 24
AX182: A14691 | AY182: 1225 | AZ182: A14991 | BA182: 1250 | BB182: A15291 | BC182: 1275 | BD182: A15591 | BE182: 1300 | BF182: A15891 | BG182: 1325 | BH182: A16191 | BI182: 1350 | BJ182: A16491 | BK182: 1375 | BL182: A16791 | BM182: 1400 | BN182: A16791 | BO182: 25
BN183: A17091
AX184: A16803 | AY184: 1401 | BA184: =AY184+25 -> 1426 | BC184: =BA184+25 -> 1451 | BE184: =BC184+25 -> 1476 | BG184: =BE184+25 -> 1501 | BI184: =BG184+25 -> 1526 | BK184: =BI184+25 -> 1551 | BM184: =BK184+25 -> 1576 | BN184: =LEFT(BN183,1)&RIGHT(BN183,5)+12 -> A17103 | BO184: 1
AX185: A16815 | AY185: 1402 | BA185: =AY185+25 -> 1427 | BC185: 1452 | BE185: 1477 | BG185: 1502 | BI185: 1527 | BK185: 1552 | BM185: 1577 | BN185: =LEFT(BN184,1)&RIGHT(BN184,5)+12 -> A17115 | BO185: 2
AX186: A16827 | AY186: 1403 | BA186: 1428 | BC186: =BA186+25 -> 1453 | BE186: =BC186+25 -> 1478 | BG186: =BE186+25 -> 1503 | BI186: =BG186+25 -> 1528 | BK186: =BI186+25 -> 1553 | BM186: =BK186+25 -> 1578 | BN186: A17127 | BO186: 3
AX187: A16839 | AY187: 1404 | BA187: 1429 | BC187: 1453 | BE187: 1478 | BG187: 1503 | BI187: 1528 | BK187: 1553 | BM187: 1578 | BN187: A17139 | BO187: 4
AX188: A16851 | AY188: 1405 | BA188: 1430 | BC188: =BA188+25 -> 1455 | BE188: =BC188+25 -> 1480 | BG188: =BE188+25 -> 1505 | BI188: =BG188+25 -> 1530 | BK188: =BI188+25 -> 1555 | BM188: =BK188+25 -> 1580 | BN188: A17151 | BO188: 5
AX189: A16863 | AY189: 1406 | BA189: 1431 | BC189: 1454 | BE189: 1479 | BG189: 1504 | BI189: 1529 | BK189: 1554 | BM189: 1579 | BN189: A17163 | BO189: 6
AX190: A16875 | AY190: 1407 | BA190: 1432 | BC190: =BA190+25 -> 1457 | BE190: =BC190+25 -> 1482 | BG190: =BE190+25 -> 1507 | BI190: =BG190+25 -> 1532 | BK190: =BI190+25 -> 1557 | BM190: =BK190+25 -> 1582 | BN190: A17175 | BO190: 7
AX191: A16887 | AY191: 1408 | BA191: 1433 | BC191: 1455 | BE191: 1480 | BG191: 1505 | BI191: 1530 | BK191: 1555 | BM191: 1580 | BN191: A17187 | BO191: 8
AX192: A16899 | AY192: 1409 | BA192: 1434 | BC192: =BA192+25 -> 1459 | BE192: =BC192+25 -> 1484 | BG192: =BE192+25 -> 1509 | BI192: =BG192+25 -> 1534 | BK192: =BI192+25 -> 1559 | BM192: =BK192+25 -> 1584 | BN192: A17199 | BO192: 9
AX193: A16911 | AY193: 1410 | BA193: 1435 | BC193: 1456 | BE193: 1481 | BG193: 1506 | BI193: 1531 | BK193: 1556 | BM193: 1581 | BN193: A17211 | BO193: 10
AX194: A16923 | AY194: 1411 | BA194: 1436 | BC194: =BA194+25 -> 1461 | BE194: =BC194+25 -> 1486 | BG194: =BE194+25 -> 1511 | BI194: =BG194+25 -> 1536 | BK194: =BI194+25 -> 1561 | BM194: =BK194+25 -> 1586 | BN194: A17223 | BO194: 11
AX195: A16935 | AY195: 1412 | BA195: 1437 | BC195: 1457 | BE195: 1482 | BG195: 1507 | BI195: 1532 | BK195: 1557 | BM195: 1582 | BN195: A17235 | BO195: 12
AX196: A16947 | AY196: 1413 | BA196: 1438 | BC196: =BA196+25 -> 1463 | BE196: =BC196+25 -> 1488 | BG196: =BE196+25 -> 1513 | BI196: =BG196+25 -> 1538 | BK196: =BI196+25 -> 1563 | BM196: =BK196+25 -> 1588 | BN196: A17247 | BO196: 13
AX197: A16959 | AY197: 1414 | BA197: 1439 | BC197: 1458 | BE197: 1483 | BG197: 1508 | BI197: 1533 | BK197: 1558 | BM197: 1583 | BN197: A17259 | BO197: 14
AX198: A16971 | AY198: 1415 | BA198: 1440 | BC198: =BA198+25 -> 1465 | BE198: =BC198+25 -> 1490 | BG198: =BE198+25 -> 1515 | BI198: =BG198+25 -> 1540 | BK198: =BI198+25 -> 1565 | BM198: =BK198+25 -> 1590 | BN198: A17271 | BO198: 15
AX199: A16983 | AY199: 1416 | BA199: 1441 | BC199: 1459 | BE199: 1484 | BG199: 1509 | BI199: 1534 | BK199: 1559 | BM199: 1584 | BN199: A17283 | BO199: 16
AX200: A16995 | AY200: 1417 | BA200: 1442 | BC200: =BA200+25 -> 1467 | BE200: =BC200+25 -> 1492 | BG200: =BE200+25 -> 1517 | BI200: =BG200+25 -> 1542 | BK200: =BI200+25 -> 1567 | BM200: =BK200+25 -> 1592 | BN200: A17295 | BO200: 17
... 8 more rows

Sheet Formule
B1: Formule: | D1: Formule: | F1: Formule: | H1: Formule: | J1: Formule: | L1: Formule: | N1: Formule: | P1: Formule: | R1: Formule: | T1: Formule: | V1: Formule: | X1: Formule: | AF1: Formule:
A2: 1 | B2: A3:I11 | C2: 26 | D2: =LEFT(B2,1)&MID(B2,2,1)+300&":"&MID(B2,4,1)&MID(B2,5,2)+300 -> A303:I311 | E2: 51 | F2: =LEFT(D2,1)&MID(D2,2,3)+300&":"&MID(D2,6,1)&MID(D2,7,3)+300 -> A603:I611 | G2: 76 | H2: =LEFT(F2,1)&MID(F2,2,3)+300&":"&MID(F2,6,1)&MID(F2,7,3)+300 -> A903:I911 | I2: 101 | J2: A1203:I1211 | K2: 126 | L2: =LEFT(J2,1)&MID(J2,2,4)+300&":"&MID(J2,7,1)&MID(J2,8,4)+300 -> A1503:I1511 | M2: 151 | N2: =LEFT(L2,1)&MID(L2,2,4)+300&":"&MID(L2,7,1)&MID(L2,8,4)+300 -> A1803:I1811 | O2: 176 | P2: =LEFT(N2,1)&MID(N2,2,4)+300&":"&MID(N2,7,1)&MID(N2,8,4)+300 -> A2103:I2111 | Q2: 201 | R2: =LEFT(P2,1)&MID(P2,2,4)+300&":"&MID(P2,7,1)&MID(P2,8,4)+300 -> A2403:I2411 | S2: 226 | T2: =LEFT(R2,1)&MID(R2,2,4)+300&":"&MID(R2,7,1)&MID(R2,8,4)+300 -> A2703:I2711 | U2: 251 | V2: =LEFT(T2,1)&MID(T2,2,4)+300&":"&MID(T2,7,1)&MID(T2,8,4)+300 -> A3003:I3011 | W2: 276 | X2: =LEFT(V2,1)&MID(V2,2,4)+300&":"&MID(V2,7,1)&MID(V2,8,4)+300 -> A3303:I3311 | AE2: A3:I11 | AF2: =LEFT(AE2,1)&MID(AE2,2,1)+300&":"&MID(AE2,4,1)&MID(AE2,5,2)+300 -> A303:I311 | AG2: LINKS(AE2;1)&DEEL(AE2;2;1)+300&":"&DEEL(AE2;4;1)&DEEL(AE2;5;2)+300
A3: 2 | B3: A15:I23 | C3: 27 | D3: =LEFT(B3,1)&MID(B3,2,2)+300&":"&MID(B3,5,1)&MID(B3,6,2)+300 -> A315:I323 | E3: 52 | F3: A615:I623 | G3: 77 | H3: A915:I923 | I3: 102 | J3: A1215:I1223 | K3: 127 | L3: =LEFT(J3,1)&MID(J3,2,4)+300&":"&MID(J3,7,1)&MID(J3,8,4)+300 -> A1515:I1523 | M3: 152 | N3: =LEFT(L3,1)&MID(L3,2,4)+300&":"&MID(L3,7,1)&MID(L3,8,4)+300 -> A1815:I1823 | O3: 177 | P3: =LEFT(N3,1)&MID(N3,2,4)+300&":"&MID(N3,7,1)&MID(N3,8,4)+300 -> A2115:I2123 | Q3: 202 | R3: =LEFT(P3,1)&MID(P3,2,4)+300&":"&MID(P3,7,1)&MID(P3,8,4)+300 -> A2415:I2423 | S3: 227 | T3: =LEFT(R3,1)&MID(R3,2,4)+300&":"&MID(R3,7,1)&MID(R3,8,4)+300 -> A2715:I2723 | U3: 252 | V3: =LEFT(T3,1)&MID(T3,2,4)+300&":"&MID(T3,7,1)&MID(T3,8,4)+300 -> A3015:I3023 | W3: 277 | X3: =LEFT(V3,1)&MID(V3,2,4)+300&":"&MID(V3,7,1)&MID(V3,8,4)+300 -> A3315:I3323 | AE3: A15:I23 | AF3: =LEFT(AE3,1)&MID(AE3,2,2)+300&":"&MID(AE3,5,1)&MID(AE3,6,2)+300 -> A315:I323 | AG3: LINKS(AE3;1)&DEEL(AE3;2;2)+300&":"&DEEL(AE3;4;1)&DEEL(AE3;5;2)+300
A4: 3 | B4: A27:I35 | C4: 28 | D4: =LEFT(B4,1)&MID(B4,2,2)+300&":"&MID(B4,5,1)&MID(B4,6,2)+300 -> A327:I335 | E4: 53 | F4: A627:I635 | G4: 78 | H4: A927:I935 | I4: 103 | J4: A1227:I1235 | K4: 128 | L4: A1527:I1535 | M4: 153 | N4: A1827:I1835 | O4: 178 | P4: A2127:I2135 | Q4: 203 | R4: A2427:I2435 | S4: 228 | T4: A2727:I2735 | U4: 253 | V4: A3027:I3035 | W4: 278 | X4: A3327:I3335 | AE4: A99:I107 | AF4: =LEFT(B10,1)&MID(B10,2,2)+300&":"&MID(B10,5,1)&MID(B10,6,3)+300 -> A399:I407 | AG4: LINKS(AE4;1)&DEEL(AE4;2;2)+300&":"&DEEL(AE4;5;1)&DEEL(AE4;6;3)+300
A5: 4 | B5: A39:I47 | C5: 29 | D5: A339:I347 | E5: 54 | F5: A639:I647 | G5: 79 | H5: A939:I947 | I5: 104 | J5: A1239:I1247 | K5: 129 | L5: A1539:I1547 | M5: 154 | N5: A1839:I1847 | O5: 179 | P5: A2139:I2147 | Q5: 204 | R5: A2439:I2447 | S5: 229 | T5: A2739:I2747 | U5: 254 | V5: A3039:I3047 | W5: 279 | X5: A3339:I3347 | AE5: A111:I119 | AF5: =LEFT(AE5,1)&MID(AE5,2,3)+300&":"&MID(AE5,6,1)&MID(AE5,7,3)+300 -> A411:I419 | AG5: LINKS(AE5;1)&DEEL(AE5;2;3)+300&":"&DEEL(AE5;6;1)&DEEL(AE5;7;3)+300
A6: 5 | B6: A51:I59 | C6: 30 | D6: A351:I359 | E6: 55 | F6: A651:I659 | G6: 80 | H6: A951:I959 | I6: 105 | J6: A1251:I1259 | K6: 130 | L6: A1551:I1559 | M6: 155 | N6: A1851:I1859 | O6: 180 | P6: A2151:I2159 | Q6: 205 | R6: A2451:I2459 | S6: 230 | T6: A2751:I2759 | U6: 255 | V6: A3051:I3059 | W6: 280 | X6: A3351:I3359 | AE6: A999:I1007 | AF6: =LEFT(AE6,1)&MID(AE6,2,3)+300&":"&MID(AE6,6,1)&MID(AE6,7,4)+300 -> A1299:I1307 | AG6: LINKS(AE6;1)&DEEL(AE6;2;3)+300&":"&DEEL(AE6;6;1)&DEEL(AE6;7;4)+300
A7: 6 | B7: A63:I71 | C7: 31 | D7: A363:I371 | E7: 56 | F7: A663:I671 | G7: 81 | H7: A963:I971 | I7: 106 | J7: A1263:I1271 | K7: 131 | L7: A1563:I1571 | M7: 156 | N7: A1863:I1871 | O7: 181 | P7: A2163:I2171 | Q7: 206 | R7: A2463:I2471 | S7: 231 | T7: A2763:I2771 | U7: 256 | V7: A3063:I3071 | W7: 281 | X7: A3363:I3371 | AE7: A1011:I1019 | AF7: =LEFT(AE7,1)&MID(AE7,2,4)+300&":"&MID(AE7,7,1)&MID(AE7,8,4)+300 -> A1311:I1319 | AG7: LINKS(AE7;1)&DEEL(AE7;2;4)+300&":"&DEEL(AE7;7;1)&DEEL(AE7;8;4)+300
A8: 7 | B8: A75:I83 | C8: 32 | D8: A375:I383 | E8: 57 | F8: A675:I683 | G8: 82 | H8: A975:I983 | I8: 107 | J8: A1275:I1283 | K8: 132 | L8: A1575:I1583 | M8: 157 | N8: A1875:I1883 | O8: 182 | P8: A2175:I2183 | Q8: 207 | R8: A2475:I2483 | S8: 232 | T8: A2775:I2783 | U8: 257 | V8: A3075:I3083 | W8: 282 | X8: A3375:I3383 | AE8: A10011:I10019 | AF8: =LEFT(AE8,1)&MID(AE8,2,5)+300&":"&MID(AE8,8,1)&MID(AE8,9,5)+300 -> A10311:I10319 | AG8: LINKS(AE8;1)&DEEL(AE8;2;5)+300&":"&DEEL(AE8;8;1)&DEEL(AE8;9;5)+300
A9: 8 | B9: A87:I95 | C9: 33 | D9: A387:I395 | E9: 58 | F9: A687:I695 | G9: 83 | H9: A987:I995 | I9: 108 | J9: A1287:I1295 | K9: 133 | L9: A1587:I1595 | M9: 158 | N9: A1887:I1895 | O9: 183 | P9: A2187:I2195 | Q9: 208 | R9: A2487:I2495 | S9: 233 | T9: A2787:I2795 | U9: 258 | V9: A3087:I3095 | W9: 283 | X9: A3387:I3395 | AE9: A9998:I10008 | AF9: =LEFT(AE9,1)&MID(AE9,2,4)+300&":"&MID(AE9,7,1)&MID(AE9,8,5)+300 -> A10298:I10308 | AG9: LINKS(AE9;1)&DEEL(AE9;2;4)+300&":"&DEEL(AE9;7;1)&DEEL(AE9;8;5)+300
A10: 9 | B10: A99:I107 | C10: 34 | D10: =LEFT(B10,1)&MID(B10,2,2)+300&":"&MID(B10,5,1)&MID(B10,6,3)+300 -> A399:I407 | E10: 59 | F10: A699:I707 | G10: 84 | H10: A999:I1007 | I10: 109 | J10: =LEFT(H10,1)&MID(H10,2,3)+300&":"&MID(H10,6,1)&MID(H10,7,4)+300 -> A1299:I1307 | K10: 134 | L10: A1599:I1607 | M10: 159 | N10: A1899:I1907 | O10: 184 | P10: A2199:I2207 | Q10: 209 | R10: A2499:I2507 | S10: 234 | T10: A2799:I2807 | U10: 259 | V10: A3099:I3107 | W10: 284 | X10: A3399:I3407
A11: 10 | B11: A111:I119 | C11: 35 | D11: =LEFT(B11,1)&MID(B11,2,3)+300&":"&MID(B11,6,1)&MID(B11,7,3)+300 -> A411:I419 | E11: 60 | F11: A711:I719 | G11: 85 | H11: A1011:I1019 | I11: 110 | J11: =LEFT(H11,1)&MID(H11,2,4)+300&":"&MID(H11,7,1)&MID(H11,8,4)+300 -> A1311:I1319 | K11: 135 | L11: A1611:I1619 | M11: 160 | N11: A1911:I1919 | O11: 185 | P11: A2211:I2219 | Q11: 210 | R11: A2511:I2519 | S11: 235 | T11: A2811:I2819 | U11: 260 | V11: A3111:I3119 | W11: 285 | X11: A3411:I3419
A12: 11 | B12: A123:I131 | C12: 36 | D12: =LEFT(B12,1)&MID(B12,2,3)+300&":"&MID(B12,6,1)&MID(B12,7,3)+300 -> A423:I431 | E12: 61 | F12: A723:I731 | G12: 86 | H12: A1023:I1031 | I12: 111 | J12: =LEFT(H12,1)&MID(H12,2,4)+300&":"&MID(H12,7,1)&MID(H12,8,4)+300 -> A1323:I1331 | K12: 136 | L12: A1623:I1631 | M12: 161 | N12: A1923:I1931 | O12: 186 | P12: A2223:I2231 | Q12: 211 | R12: A2523:I2531 | S12: 236 | T12: A2823:I2831 | U12: 261 | V12: A3123:I3131 | W12: 286 | X12: A3423:I3431
A13: 12 | B13: A135:I143 | C13: 37 | D13: A435:I443 | E13: 62 | F13: A735:I743 | G13: 87 | H13: A1035:I1043 | I13: 112 | J13: A1335:I1343 | K13: 137 | L13: A1635:I1643 | M13: 162 | N13: A1935:I1943 | O13: 187 | P13: A2235:I2243 | Q13: 212 | R13: A2535:I2543 | S13: 237 | T13: A2835:I2843 | U13: 262 | V13: A3135:I3143 | W13: 287 | X13: A3435:I3443
A14: 13 | B14: A147:I155 | C14: 38 | D14: A447:I455 | E14: 63 | F14: A747:I755 | G14: 88 | H14: A1047:I1055 | I14: 113 | J14: A1347:I1355 | K14: 138 | L14: A1647:I1655 | M14: 163 | N14: A1947:I1955 | O14: 188 | P14: A2247:I2255 | Q14: 213 | R14: A2547:I2555 | S14: 238 | T14: =LEFT(R14,1)&MID(R14,2,4)+300&":"&MID(R14,7,1)&MID(R14,8,4)+300 -> A2847:I2855 | U14: 263 | V14: A3147:I3155 | W14: 288 | X14: A3447:I3455
A15: 14 | B15: A159:I167 | C15: 39 | D15: A459:I467 | E15: 64 | F15: A759:I767 | G15: 89 | H15: A1059:I1067 | I15: 114 | J15: A1359:I1367 | K15: 139 | L15: A1659:I1667 | M15: 164 | N15: A1959:I1967 | O15: 189 | P15: A2259:I2267 | Q15: 214 | R15: A2559:I2567 | S15: 239 | T15: A2859:I2867 | U15: 264 | V15: A3159:I3167 | W15: 289 | X15: A3459:I3467
A16: 15 | B16: A171:I179 | C16: 40 | D16: A471:I479 | E16: 65 | F16: A771:I779 | G16: 90 | H16: A1071:I1079 | I16: 115 | J16: A1371:I1379 | K16: 140 | L16: A1671:I1679 | M16: 165 | N16: A1971:I1979 | O16: 190 | P16: A2271:I2279 | Q16: 215 | R16: A2571:I2579 | S16: 240 | T16: A2871:I2879 | U16: 265 | V16: A3171:I3179 | W16: 290 | X16: A3471:I3479
A17: 16 | B17: A183:I191 | C17: 41 | D17: A483:I491 | E17: 66 | F17: A783:I791 | G17: 91 | H17: A1083:I1091 | I17: 116 | J17: A1383:I1391 | K17: 141 | L17: A1683:I1691 | M17: 166 | N17: A1983:I1991 | O17: 191 | P17: A2283:I2291 | Q17: 216 | R17: A2583:I2591 | S17: 241 | T17: A2883:I2891 | U17: 266 | V17: A3183:I3191 | W17: 291 | X17: A3483:I3491
A18: 17 | B18: A195:I203 | C18: 42 | D18: A495:I503 | E18: 67 | F18: A795:I803 | G18: 92 | H18: A1095:I1103 | I18: 117 | J18: A1395:I1403 | K18: 142 | L18: A1695:I1703 | M18: 167 | N18: A1995:I2003 | O18: 192 | P18: A2295:I2303 | Q18: 217 | R18: A2595:I2603 | S18: 242 | T18: A2895:I2903 | U18: 267 | V18: A3195:I3203 | W18: 292 | X18: A3495:I3503
A19: 18 | B19: A207:I215 | C19: 43 | D19: A507:I515 | E19: 68 | F19: A807:I815 | G19: 93 | H19: A1107:I1115 | I19: 118 | J19: A1407:I1415 | K19: 143 | L19: A1707:I1715 | M19: 168 | N19: A2007:I2015 | O19: 193 | P19: A2307:I2315 | Q19: 218 | R19: A2607:I2615 | S19: 243 | T19: A2907:I2915 | U19: 268 | V19: A3207:I3215 | W19: 293 | X19: A3507:I3515
A20: 19 | B20: A219:I227 | C20: 44 | D20: A519:I527 | E20: 69 | F20: A819:I827 | G20: 94 | H20: A1119:I1127 | I20: 119 | J20: A1419:I1427 | K20: 144 | L20: A1719:I1727 | M20: 169 | N20: A2019:I2027 | O20: 194 | P20: A2319:I2327 | Q20: 219 | R20: A2619:I2627 | S20: 244 | T20: A2919:I2927 | U20: 269 | V20: A3219:I3227 | W20: 294 | X20: A3519:I3527
A21: 20 | B21: A231:I239 | C21: 45 | D21: A531:I539 | E21: 70 | F21: A831:I839 | G21: 95 | H21: A1131:I1139 | I21: 120 | J21: A1431:I1439 | K21: 145 | L21: A1731:I1739 | M21: 170 | N21: A2031:I2039 | O21: 195 | P21: A2331:I2339 | Q21: 220 | R21: A2631:I2639 | S21: 245 | T21: A2931:I2939 | U21: 270 | V21: A3231:I3239 | W21: 295 | X21: A3531:I3539
A22: 21 | B22: A243:I251 | C22: 46 | D22: A543:I551 | E22: 71 | F22: A843:I851 | G22: 96 | H22: A1143:I1151 | I22: 121 | J22: A1443:I1451 | K22: 146 | L22: A1743:I1751 | M22: 171 | N22: A2043:I2051 | O22: 196 | P22: A2343:I2351 | Q22: 221 | R22: A2643:I2651 | S22: 246 | T22: A2943:I2951 | U22: 271 | V22: A3243:I3251 | W22: 296 | X22: A3543:I3551
A23: 22 | B23: A255:I263 | C23: 47 | D23: A555:I563 | E23: 72 | F23: A855:I863 | G23: 97 | H23: A1155:I1163 | I23: 122 | J23: A1455:I1463 | K23: 147 | L23: A1755:I1763 | M23: 172 | N23: A2055:I2063 | O23: 197 | P23: A2355:I2363 | Q23: 222 | R23: A2655:I2663 | S23: 247 | T23: A2955:I2963 | U23: 272 | V23: A3255:I3263 | W23: 297 | X23: A3555:I3563
A24: 23 | B24: A267:I275 | C24: 48 | D24: A567:I575 | E24: 73 | F24: A867:I875 | G24: 98 | H24: A1167:I1175 | I24: 123 | J24: A1467:I1475 | K24: 148 | L24: A1767:I1775 | M24: 173 | N24: A2067:I2075 | O24: 198 | P24: A2367:I2375 | Q24: 223 | R24: A2667:I2675 | S24: 248 | T24: A2967:I2975 | U24: 273 | V24: A3267:I3275 | W24: 298 | X24: A3567:I3575
A25: 24 | B25: A279:I287 | C25: 49 | D25: A579:I587 | E25: 74 | F25: A879:I887 | G25: 99 | H25: A1179:I1187 | I25: 124 | J25: A1479:I1487 | K25: 149 | L25: A1779:I1787 | M25: 174 | N25: A2079:I2087 | O25: 199 | P25: A2379:I2387 | Q25: 224 | R25: A2679:I2687 | S25: 249 | T25: A2979:I2987 | U25: 274 | V25: A3279:I3287 | W25: 299 | X25: A3579:I3587
A26: 25 | B26: A291:I299 | C26: 50 | D26: A591:I599 | E26: 75 | F26: A891:I899 | G26: 100 | H26: A1191:I1199 | I26: 125 | J26: =LEFT(H26,1)&MID(H26,2,4)+300&":"&MID(H26,7,1)&MID(H26,8,4)+300 -> A1491:I1499 | K26: 150 | L26: A1791:I1799 | M26: 175 | N26: A2091:I2099 | O26: 200 | P26: A2391:I2399 | Q26: 225 | R26: A2691:I2699 | S26: 250 | T26: A2991:I2999 | U26: 275 | V26: A3291:I3299 | W26: 300 | X26: A3591:I3599
B28: Formule: | D28: Formule: | F28: Formule: | H28: Formule: | J28: Formule: | L28: Formule: | N28: Formule: | P28: Formule: | R28: Formule: | T28: Formule: | V28: Formule: | X28: Formule: | AE28: A4491:I4499
A29: 301 | B29: A3603:I3611 | C29: 326 | D29: =LEFT(B29,1)&MID(B29,2,4)+300&":"&MID(B29,7,1)&MID(B29,8,4)+300 -> A3903:I3911 | E29: 351 | F29: =LEFT(D29,1)&MID(D29,2,4)+300&":"&MID(D29,7,1)&MID(D29,8,4)+300 -> A4203:I4211 | G29: 376 | H29: =LEFT(F29,1)&MID(F29,2,4)+300&":"&MID(F29,7,1)&MID(F29,8,4)+300 -> A4503:I4511 | I29: 401 | J29: =LEFT(H29,1)&MID(H29,2,4)+300&":"&MID(H29,7,1)&MID(H29,8,4)+300 -> A4803:I4811 | K29: 426 | L29: =LEFT(J29,1)&MID(J29,2,4)+300&":"&MID(J29,7,1)&MID(J29,8,4)+300 -> A5103:I5111 | M29: 451 | N29: =LEFT(L29,1)&MID(L29,2,4)+300&":"&MID(L29,7,1)&MID(L29,8,4)+300 -> A5403:I5411 | O29: 476 | P29: =LEFT(N29,1)&MID(N29,2,4)+300&":"&MID(N29,7,1)&MID(N29,8,4)+300 -> A5703:I5711 | Q29: 501 | R29: =LEFT(P29,1)&MID(P29,2,4)+300&":"&MID(P29,7,1)&MID(P29,8,4)+300 -> A6003:I6011 | S29: 526 | T29: =LEFT(R29,1)&MID(R29,2,4)+300&":"&MID(R29,7,1)&MID(R29,8,4)+300 -> A6303:I6311 | U29: 551 | V29: =LEFT(T29,1)&MID(T29,2,4)+300&":"&MID(T29,7,1)&MID(T29,8,4)+300 -> A6603:I6611 | W29: 576 | X29: =LEFT(V29,1)&MID(V29,2,4)+300&":"&MID(V29,7,1)&MID(V29,8,4)+300 -> A6903:I6911 | AE29: =LEFT(AE28,1)&MID(AE28,2,4)+300&":"&MID(AE28,7,1)&MID(AE28,8,4)+300 -> A4791:I4799 | AF29: zie formule
A30: 302 | B30: A3615:I3623 | C30: 327 | D30: =LEFT(B30,1)&MID(B30,2,4)+300&":"&MID(B30,7,1)&MID(B30,8,4)+300 -> A3915:I3923 | E30: 352 | F30: =LEFT(D30,1)&MID(D30,2,4)+300&":"&MID(D30,7,1)&MID(D30,8,4)+300 -> A4215:I4223 | G30: 377 | H30: =LEFT(F30,1)&MID(F30,2,4)+300&":"&MID(F30,7,1)&MID(F30,8,4)+300 -> A4515:I4523 | I30: 402 | J30: =LEFT(H30,1)&MID(H30,2,4)+300&":"&MID(H30,7,1)&MID(H30,8,4)+300 -> A4815:I4823 | K30: 427 | L30: =LEFT(J30,1)&MID(J30,2,4)+300&":"&MID(J30,7,1)&MID(J30,8,4)+300 -> A5115:I5123 | M30: 452 | N30: =LEFT(L30,1)&MID(L30,2,4)+300&":"&MID(L30,7,1)&MID(L30,8,4)+300 -> A5415:I5423 | O30: 477 | P30: =LEFT(N30,1)&MID(N30,2,4)+300&":"&MID(N30,7,1)&MID(N30,8,4)+300 -> A5715:I5723 | Q30: 502 | R30: =LEFT(P30,1)&MID(P30,2,4)+300&":"&MID(P30,7,1)&MID(P30,8,4)+300 -> A6015:I6023 | S30: 527 | T30: =LEFT(R30,1)&MID(R30,2,4)+300&":"&MID(R30,7,1)&MID(R30,8,4)+300 -> A6315:I6323 | U30: 552 | V30: =LEFT(T30,1)&MID(T30,2,4)+300&":"&MID(T30,7,1)&MID(T30,8,4)+300 -> A6615:I6623 | W30: 577 | X30: =LEFT(V30,1)&MID(V30,2,4)+300&":"&MID(V30,7,1)&MID(V30,8,4)+300 -> A6915:I6923
A31: 303 | B31: A3627:I3635 | C31: 328 | D31: A3927:I3935 | E31: 353 | F31: A4227:I4235 | G31: 378 | H31: A4527:I4535 | I31: 403 | J31: A4827:I4835 | K31: 428 | L31: A5127:I5135 | M31: 453 | N31: A5427:I5435 | O31: 478 | P31: A5727:I5735 | Q31: 503 | R31: A6027:I6035 | S31: 528 | T31: A6327:I6335 | U31: 553 | V31: A6627:I6635 | W31: 578 | X31: A6927:I6935 | AF31: Nu staat er WAARDE
A32: 304 | B32: A3639:I3647 | C32: 329 | D32: A3939:I3947 | E32: 354 | F32: A4239:I4247 | G32: 379 | H32: A4539:I4547 | I32: 404 | J32: A4839:I4847 | K32: 429 | L32: A5139:I5147 | M32: 454 | N32: A5439:I5447 | O32: 479 | P32: A5739:I5747 | Q32: 504 | R32: A6039:I6047 | S32: 529 | T32: A6339:I6347 | U32: 554 | V32: A6639:I6647 | W32: 579 | X32: A6939:I6947 | AF32: kolomletter en rij nr
A33: 305 | B33: A3651:I3659 | C33: 330 | D33: A3951:I3959 | E33: 355 | F33: A4251:I4259 | G33: 380 | H33: A4551:I4559 | I33: 405 | J33: A4851:I4859 | K33: 430 | L33: A5151:I5159 | M33: 455 | N33: A5451:I5459 | O33: 480 | P33: A5751:I5759 | Q33: 505 | R33: A6051:I6059 | S33: 530 | T33: A6351:I6359 | U33: 555 | V33: A6651:I6659 | W33: 580 | X33: A6951:I6959 | AF33: aanpassen
A34: 306 | B34: A3663:I3671 | C34: 331 | D34: A3963:I3971 | E34: 356 | F34: A4263:I4271 | G34: 381 | H34: A4563:I4571 | I34: 406 | J34: A4863:I4871 | K34: 431 | L34: A5163:I5171 | M34: 456 | N34: A5463:I5471 | O34: 481 | P34: A5763:I5771 | Q34: 506 | R34: A6063:I6071 | S34: 531 | T34: A6363:I6371 | U34: 556 | V34: A6663:I6671 | W34: 581 | X34: A6963:I6971
A35: 307 | B35: A3675:I3683 | C35: 332 | D35: A3975:I3983 | E35: 357 | F35: A4275:I4283 | G35: 382 | H35: A4575:I4583 | I35: 407 | J35: A4875:I4883 | K35: 432 | L35: A5175:I5183 | M35: 457 | N35: A5475:I5483 | O35: 482 | P35: A5775:I5783 | Q35: 507 | R35: A6075:I6083 | S35: 532 | T35: A6375:I6383 | U35: 557 | V35: A6675:I6683 | W35: 582 | X35: A6975:I6983 | AF35: Formule aanpassen(5 cijfers)
A36: 308 | B36: A3687:I3695 | C36: 333 | D36: A3987:I3995 | E36: 358 | F36: A4287:I4295 | G36: 383 | H36: A4587:I4595 | I36: 408 | J36: A4887:I4895 | K36: 433 | L36: A5187:I5195 | M36: 458 | N36: A5487:I5495 | O36: 483 | P36: A5787:I5795 | Q36: 508 | R36: A6087:I6095 | S36: 533 | T36: A6387:I6395 | U36: 558 | V36: A6687:I6695 | W36: 583 | X36: A6987:I6995 | AF36: zie Kruiswoorraadsel
A37: 309 | B37: A3699:I3707 | C37: 334 | D37: A3999:I4007 | E37: 359 | F37: A4299:I4307 | G37: 384 | H37: A4599:I4607 | I37: 409 | J37: A4899:I4907 | K37: 434 | L37: A5199:I5207 | M37: 459 | N37: A5499:I5507 | O37: 484 | P37: A5799:I5807 | Q37: 509 | R37: A6099:I6107 | S37: 534 | T37: A6399:I6407 | U37: 559 | V37: A6699:I6707 | W37: 584 | X37: A6999:I7007 | AF37: of hierboven
A38: 310 | B38: A3711:I3719 | C38: 335 | D38: A4011:I4019 | E38: 360 | F38: A4311:I4319 | G38: 385 | H38: A4611:I4619 | I38: 410 | J38: A4911:I4919 | K38: 435 | L38: A5211:I5219 | M38: 460 | N38: A5511:I5519 | O38: 485 | P38: A5811:I5819 | Q38: 510 | R38: A6111:I6119 | S38: 535 | T38: A6411:I6419 | U38: 560 | V38: A6711:I6719 | W38: 585 | X38: A7011:I7019
A39: 311 | B39: A3723:I3731 | C39: 336 | D39: A4023:I4031 | E39: 361 | F39: A4323:I4331 | G39: 386 | H39: A4623:I4631 | I39: 411 | J39: A4923:I4931 | K39: 436 | L39: A5223:I5231 | M39: 461 | N39: A5523:I5531 | O39: 486 | P39: A5823:I5831 | Q39: 511 | R39: A6123:I6131 | S39: 536 | T39: A6423:I6431 | U39: 561 | V39: A6723:I6731 | W39: 586 | X39: A7023:I7031
A40: 312 | B40: A3735:I3743 | C40: 337 | D40: A4035:I4043 | E40: 362 | F40: A4335:I4343 | G40: 387 | H40: A4635:I4643 | I40: 412 | J40: A4935:I4943 | K40: 437 | L40: A5235:I5243 | M40: 462 | N40: A5535:I5543 | O40: 487 | P40: A5835:I5843 | Q40: 512 | R40: A6135:I6143 | S40: 537 | T40: A6435:I6443 | U40: 562 | V40: A6735:I6743 | W40: 587 | X40: A7035:I7043
A41: 313 | B41: A3747:I3755 | C41: 338 | D41: A4047:I4055 | E41: 363 | F41: A4347:I4355 | G41: 388 | H41: A4647:I4655 | I41: 413 | J41: A4947:I4955 | K41: 438 | L41: A5247:I5255 | M41: 463 | N41: A5547:I5555 | O41: 488 | P41: A5847:I5855 | Q41: 513 | R41: A6147:I6155 | S41: 538 | T41: A6447:I6455 | U41: 563 | V41: A6747:I6755 | W41: 588 | X41: A7047:I7055
A42: 314 | B42: A3759:I3767 | C42: 339 | D42: A4059:I4067 | E42: 364 | F42: A4359:I4367 | G42: 389 | H42: A4659:I4667 | I42: 414 | J42: A4959:I4967 | K42: 439 | L42: A5259:I5267 | M42: 464 | N42: A5559:I5567 | O42: 489 | P42: A5859:I5867 | Q42: 514 | R42: A6159:I6167 | S42: 539 | T42: A6459:I6467 | U42: 564 | V42: A6759:I6767 | W42: 589 | X42: A7059:I7067
A43: 315 | B43: A3771:I3779 | C43: 340 | D43: A4071:I4079 | E43: 365 | F43: A4371:I4379 | G43: 390 | H43: A4671:I4679 | I43: 415 | J43: A4971:I4979 | K43: 440 | L43: A5271:I5279 | M43: 465 | N43: A5571:I5579 | O43: 490 | P43: A5871:I5879 | Q43: 515 | R43: A6171:I6179 | S43: 540 | T43: A6471:I6479 | U43: 565 | V43: A6771:I6779 | W43: 590 | X43: A7071:I7079
A44: 316 | B44: A3783:I3791 | C44: 341 | D44: A4083:I4091 | E44: 366 | F44: A4383:I4391 | G44: 391 | H44: A4683:I4691 | I44: 416 | J44: A4983:I4991 | K44: 441 | L44: A5283:I5291 | M44: 466 | N44: A5583:I5591 | O44: 491 | P44: A5883:I5891 | Q44: 516 | R44: A6183:I6191 | S44: 541 | T44: A6483:I6491 | U44: 566 | V44: A6783:I6791 | W44: 591 | X44: A7083:I7091
A45: 317 | B45: A3795:I3803 | C45: 342 | D45: A4095:I4103 | E45: 367 | F45: A4395:I4403 | G45: 392 | H45: A4695:I4703 | I45: 417 | J45: A4995:I5003 | K45: 442 | L45: A5295:I5303 | M45: 467 | N45: A5595:I5603 | O45: 492 | P45: A5895:I5903 | Q45: 517 | R45: A6195:I6203 | S45: 542 | T45: A6495:I6503 | U45: 567 | V45: A6795:I6803 | W45: 592 | X45: A7095:I7103
A46: 318 | B46: A3807:I3815 | C46: 343 | D46: A4107:I4115 | E46: 368 | F46: A4407:I4415 | G46: 393 | H46: A4707:I4715 | I46: 418 | J46: A5007:I5015 | K46: 443 | L46: A5307:I5315 | M46: 468 | N46: A5607:I5615 | O46: 493 | P46: A5907:I5915 | Q46: 518 | R46: A6207:I6215 | S46: 543 | T46: A6507:I6515 | U46: 568 | V46: A6807:I6815 | W46: 593 | X46: A7107:I7115
A47: 319 | B47: A3819:I3827 | C47: 344 | D47: A4119:I4127 | E47: 369 | F47: A4419:I4427 | G47: 394 | H47: A4719:I4727 | I47: 419 | J47: A5019:I5027 | K47: 444 | L47: A5319:I5327 | M47: 469 | N47: A5619:I5627 | O47: 494 | P47: A5919:I5927 | Q47: 519 | R47: A6219:I6227 | S47: 544 | T47: A6519:I6527 | U47: 569 | V47: A6819:I6827 | W47: 594 | X47: A7119:I7127
A48: 320 | B48: A3831:I3839 | C48: 345 | D48: A4131:I4139 | E48: 370 | F48: A4431:I4439 | G48: 395 | H48: A4731:I4739 | I48: 420 | J48: A5031:I5039 | K48: 445 | L48: A5331:I5339 | M48: 470 | N48: A5631:I5639 | O48: 495 | P48: A5931:I5939 | Q48: 520 | R48: A6231:I6239 | S48: 545 | T48: A6531:I6539 | U48: 570 | V48: A6831:I6839 | W48: 595 | X48: A7131:I7139
A49: 321 | B49: A3843:I3851 | C49: 346 | D49: A4143:I4151 | E49: 371 | F49: A4443:I4451 | G49: 396 | H49: A4743:I4751 | I49: 421 | J49: A5043:I5051 | K49: 446 | L49: A5343:I5351 | M49: 471 | N49: A5643:I5651 | O49: 496 | P49: A5943:I5951 | Q49: 521 | R49: A6243:I6251 | S49: 546 | T49: A6543:I6551 | U49: 571 | V49: A6843:I6851 | W49: 596 | X49: A7143:I7151
A50: 322 | B50: A3855:I3863 | C50: 347 | D50: A4155:I4163 | E50: 372 | F50: A4455:I4463 | G50: 397 | H50: A4755:I4763 | I50: 422 | J50: A5055:I5063 | K50: 447 | L50: A5355:I5363 | M50: 472 | N50: A5655:I5663 | O50: 497 | P50: A5955:I5963 | Q50: 522 | R50: A6255:I6263 | S50: 547 | T50: A6555:I6563 | U50: 572 | V50: A6855:I6863 | W50: 597 | X50: A7155:I7163
A51: 323 | B51: A3867:I3875 | C51: 348 | D51: A4167:I4175 | E51: 373 | F51: A4467:I4475 | G51: 398 | H51: A4767:I4775 | I51: 423 | J51: A5067:I5075 | K51: 448 | L51: A5367:I5375 | M51: 473 | N51: A5667:I5675 | O51: 498 | P51: A5967:I5975 | Q51: 523 | R51: A6267:I6275 | S51: 548 | T51: A6567:I6575 | U51: 573 | V51: A6867:I6875 | W51: 598 | X51: A7167:I7175
A52: 324 | B52: A3879:I3887 | C52: 349 | D52: A4179:I4187 | E52: 374 | F52: A4479:I4487 | G52: 399 | H52: A4779:I4787 | I52: 424 | J52: A5079:I5087 | K52: 449 | L52: A5379:I5387 | M52: 474 | N52: A5679:I5687 | O52: 499 | P52: A5979:I5987 | Q52: 524 | R52: A6279:I6287 | S52: 549 | T52: A6579:I6587 | U52: 574 | V52: A6879:I6887 | W52: 599 | X52: A7179:I7187
A53: 325 | B53: A3891:I3899 | C53: 350 | D53: A4191:I4199 | E53: 375 | F53: A4491:I4499 | G53: 400 | H53: A4791:I4799 | I53: 425 | J53: A5091:I5099 | K53: 450 | L53: A5391:I5399 | M53: 475 | N53: A5691:I5699 | O53: 500 | P53: A5991:I5999 | Q53: 525 | R53: A6291:I6299 | S53: 550 | T53: A6591:I6599 | U53: 575 | V53: A6891:I6899 | W53: 600 | X53: A7191:I7199
B55: Formule: | D55: Formule: | F55: Formule: | H55: Formule: | J55: Formule: | L55: Formule: | N55: Formule: | P55: Formule: | R55: Formule: | T55: Formule: | V55: Formule: | X55: Formule:
A56: 601 | B56: A7203:I7211 | C56: 626 | D56: =LEFT(B56,1)&MID(B56,2,4)+300&":"&MID(B56,7,1)&MID(B56,8,4)+300 -> A7503:I7511 | E56: 651 | F56: =LEFT(D56,1)&MID(D56,2,4)+300&":"&MID(D56,7,1)&MID(D56,8,4)+300 -> A7803:I7811 | G56: 676 | H56: =LEFT(F56,1)&MID(F56,2,4)+300&":"&MID(F56,7,1)&MID(F56,8,4)+300 -> A8103:I8111 | I56: 701 | J56: =LEFT(H56,1)&MID(H56,2,4)+300&":"&MID(H56,7,1)&MID(H56,8,4)+300 -> A8403:I8411 | K56: 726 | L56: =LEFT(J56,1)&MID(J56,2,4)+300&":"&MID(J56,7,1)&MID(J56,8,4)+300 -> A8703:I8711 | M56: 751 | N56: =LEFT(L56,1)&MID(L56,2,4)+300&":"&MID(L56,7,1)&MID(L56,8,4)+300 -> A9003:I9011 | O56: 776 | P56: =LEFT(N56,1)&MID(N56,2,4)+300&":"&MID(N56,7,1)&MID(N56,8,4)+300 -> A9303:I9311 | Q56: 801 | R56: =LEFT(P56,1)&MID(P56,2,4)+300&":"&MID(P56,7,1)&MID(P56,8,4)+300 -> A9603:I9611 | S56: 826 | T56: =LEFT(R56,1)&MID(R56,2,4)+300&":"&MID(R56,7,1)&MID(R56,8,4)+300 -> A9903:I9911 | U56: 851 | V56: =LEFT(T56,1)&MID(T56,2,4)+300&":"&MID(T56,7,1)&MID(T56,8,4)+300 -> A10203:I10211 | W56: 876 | X56: =LEFT(V56,1)&MID(V56,2,5)+300&":"&MID(V56,8,1)&MID(V56,9,5)+300 -> A10503:I10511
A57: 602 | B57: A7215:I7223 | C57: 627 | D57: =LEFT(B57,1)&MID(B57,2,4)+300&":"&MID(B57,7,1)&MID(B57,8,4)+300 -> A7515:I7523 | E57: 652 | F57: =LEFT(D57,1)&MID(D57,2,4)+300&":"&MID(D57,7,1)&MID(D57,8,4)+300 -> A7815:I7823 | G57: 677 | H57: =LEFT(F57,1)&MID(F57,2,4)+300&":"&MID(F57,7,1)&MID(F57,8,4)+300 -> A8115:I8123 | I57: 702 | J57: =LEFT(H57,1)&MID(H57,2,4)+300&":"&MID(H57,7,1)&MID(H57,8,4)+300 -> A8415:I8423 | K57: 727 | L57: =LEFT(J57,1)&MID(J57,2,4)+300&":"&MID(J57,7,1)&MID(J57,8,4)+300 -> A8715:I8723 | M57: 752 | N57: =LEFT(L57,1)&MID(L57,2,4)+300&":"&MID(L57,7,1)&MID(L57,8,4)+300 -> A9015:I9023 | O57: 777 | P57: =LEFT(N57,1)&MID(N57,2,4)+300&":"&MID(N57,7,1)&MID(N57,8,4)+300 -> A9315:I9323 | Q57: 802 | R57: =LEFT(P57,1)&MID(P57,2,4)+300&":"&MID(P57,7,1)&MID(P57,8,4)+300 -> A9615:I9623 | S57: 827 | T57: A9915:I9923 | U57: 852 | V57: A10215:I10223 | W57: 877 | X57: A10515:I10523
A58: 603 | B58: A7227:I7235 | C58: 628 | D58: A7527:I7535 | E58: 653 | F58: A7827:I7835 | G58: 678 | H58: A8127:I8135 | I58: 703 | J58: A8427:I8435 | K58: 728 | L58: A8727:I8735 | M58: 753 | N58: A9027:I9035 | O58: 778 | P58: A9327:I9335 | Q58: 803 | R58: A9627:I9635 | S58: 828 | T58: A9927:I9935 | U58: 853 | V58: A10227:I10235 | W58: 878 | X58: A10527:I10535
A59: 604 | B59: A7239:I7247 | C59: 629 | D59: A7539:I7547 | E59: 654 | F59: A7839:I7847 | G59: 679 | H59: A8139:I8147 | I59: 704 | J59: A8439:I8447 | K59: 729 | L59: A8739:I8747 | M59: 754 | N59: A9039:I9047 | O59: 779 | P59: A9339:I9347 | Q59: 804 | R59: A9639:I9647 | S59: 829 | T59: A9939:I9947 | U59: 854 | V59: A10239:I10247 | W59: 879 | X59: A10539:I10547
A60: 605 | B60: A7251:I7259 | C60: 630 | D60: A7551:I7559 | E60: 655 | F60: A7851:I7859 | G60: 680 | H60: A8151:I8159 | I60: 705 | J60: A8451:I8459 | K60: 730 | L60: A8751:I8759 | M60: 755 | N60: A9051:I9059 | O60: 780 | P60: A9351:I9359 | Q60: 805 | R60: A9651:I9659 | S60: 830 | T60: A9951:I9959 | U60: 855 | V60: A10251:I10259 | W60: 880 | X60: A10551:I10559
A61: 606 | B61: A7263:I7271 | C61: 631 | D61: A7563:I7571 | E61: 656 | F61: A7863:I7871 | G61: 681 | H61: A8163:I8171 | I61: 706 | J61: A8463:I8471 | K61: 731 | L61: A8763:I8771 | M61: 756 | N61: A9063:I9071 | O61: 781 | P61: A9363:I9371 | Q61: 806 | R61: A9663:I9671 | S61: 831 | T61: A9963:I9971 | U61: 856 | V61: A10263:I10271 | W61: 881 | X61: A10563:I10571
A62: 607 | B62: A7275:I7283 | C62: 632 | D62: A7575:I7583 | E62: 657 | F62: A7875:I7883 | G62: 682 | H62: A8175:I8183 | I62: 707 | J62: A8475:I8483 | K62: 732 | L62: A8775:I8783 | M62: 757 | N62: A9075:I9083 | O62: 782 | P62: A9375:I9383 | Q62: 807 | R62: A9675:I9683 | S62: 832 | T62: A9975:I9983 | U62: 857 | V62: A10275:I10283 | W62: 882 | X62: A10575:I10583
A63: 608 | B63: A7287:I7295 | C63: 633 | D63: A7587:I7595 | E63: 658 | F63: A7887:I7895 | G63: 683 | H63: A8187:I8195 | I63: 708 | J63: A8487:I8495 | K63: 733 | L63: A8787:I8795 | M63: 758 | N63: A9087:I9095 | O63: 783 | P63: A9387:I9395 | Q63: 808 | R63: A9687:I9695 | S63: 833 | T63: A9987:I9995 | U63: 858 | V63: A10287:I10295 | W63: 883 | X63: A10587:I10595
A64: 609 | B64: A7299:I7307 | C64: 634 | D64: A7599:I7607 | E64: 659 | F64: A7899:I7907 | G64: 684 | H64: A8199:I8207 | I64: 709 | J64: A8499:I8507 | K64: 734 | L64: A8799:I8807 | M64: 759 | N64: A9099:I9107 | O64: 784 | P64: A9399:I9407 | Q64: 809 | R64: A9699:I9707 | S64: 834 | T64: A9999:I10007 | U64: 859 | V64: =LEFT(T64,1)&MID(T64,2,4)+300&":"&MID(T64,7,1)&MID(T64,8,5)+300 -> A10299:I10307 | W64: 884 | X64: A10599:I10607
A65: 610 | B65: A7311:I7319 | C65: 635 | D65: A7611:I7619 | E65: 660 | F65: A7911:I7919 | G65: 685 | H65: A8211:I8219 | I65: 710 | J65: A8511:I8519 | K65: 735 | L65: A8811:I8819 | M65: 760 | N65: A9111:I9119 | O65: 785 | P65: A9411:I9419 | Q65: 810 | R65: A9711:I9719 | S65: 835 | T65: A10011:I10019 | U65: 860 | V65: =LEFT(T65,1)&MID(T65,2,5)+300&":"&MID(T65,8,1)&MID(T65,9,5)+300 -> A10311:I10319 | W65: 885 | X65: A10611:I10619
A66: 611 | B66: A7323:I7331 | C66: 636 | D66: A7623:I7631 | E66: 661 | F66: A7923:I7931 | G66: 686 | H66: A8223:I8231 | I66: 711 | J66: A8523:I8531 | K66: 736 | L66: A8823:I8831 | M66: 761 | N66: A9123:I9131 | O66: 786 | P66: A9423:I9431 | Q66: 811 | R66: A9723:I9731 | S66: 836 | T66: A10023:I10031 | U66: 861 | V66: =LEFT(T66,1)&MID(T66,2,5)+300&":"&MID(T66,8,1)&MID(T66,9,5)+300 -> A10323:I10331 | W66: 886 | X66: A10623:I10631
A67: 612 | B67: A7335:I7343 | C67: 637 | D67: A7635:I7643 | E67: 662 | F67: A7935:I7943 | G67: 687 | H67: A8235:I8243 | I67: 712 | J67: A8535:I8543 | K67: 737 | L67: A8835:I8843 | M67: 762 | N67: A9135:I9143 | O67: 787 | P67: A9435:I9443 | Q67: 812 | R67: A9735:I9743 | S67: 837 | T67: A10035:I10043 | U67: 862 | V67: A10335:I10343 | W67: 887 | X67: A10635:I10643
A68: 613 | B68: A7347:I7355 | C68: 638 | D68: A7647:I7655 | E68: 663 | F68: A7947:I7955 | G68: 688 | H68: A8247:I8255 | I68: 713 | J68: A8547:I8555 | K68: 738 | L68: A8847:I8855 | M68: 763 | N68: A9147:I9155 | O68: 788 | P68: A9447:I9455 | Q68: 813 | R68: A9747:I9755 | S68: 838 | T68: A10047:I10055 | U68: 863 | V68: A10347:I10355 | W68: 888 | X68: A10647:I10655
A69: 614 | B69: A7359:I7367 | C69: 639 | D69: A7659:I7667 | E69: 664 | F69: A7959:I7967 | G69: 689 | H69: A8259:I8267 | I69: 714 | J69: A8559:I8567 | K69: 739 | L69: A8859:I8867 | M69: 764 | N69: A9159:I9167 | O69: 789 | P69: A9459:I9467 | Q69: 814 | R69: A9759:I9767 | S69: 839 | T69: A10059:I10067 | U69: 864 | V69: A10359:I10367 | W69: 889 | X69: A10659:I10667
A70: 615 | B70: A7371:I7379 | C70: 640 | D70: A7671:I7679 | E70: 665 | F70: A7971:I7979 | G70: 690 | H70: A8271:I8279 | I70: 715 | J70: A8571:I8579 | K70: 740 | L70: A8871:I8879 | M70: 765 | N70: A9171:I9179 | O70: 790 | P70: A9471:I9479 | Q70: 815 | R70: A9771:I9779 | S70: 840 | T70: A10071:I10079 | U70: 865 | V70: A10371:I10379 | W70: 890 | X70: A10671:I10679
A71: 616 | B71: A7383:I7391 | C71: 641 | D71: A7683:I7691 | E71: 666 | F71: A7983:I7991 | G71: 691 | H71: A8283:I8291 | I71: 716 | J71: A8583:I8591 | K71: 741 | L71: A8883:I8891 | M71: 766 | N71: A9183:I9191 | O71: 791 | P71: A9483:I9491 | Q71: 816 | R71: A9783:I9791 | S71: 841 | T71: A10083:I10091 | U71: 866 | V71: A10383:I10391 | W71: 891 | X71: A10683:I10691
A72: 617 | B72: A7395:I7403 | C72: 642 | D72: A7695:I7703 | E72: 667 | F72: A7995:I8003 | G72: 692 | H72: A8295:I8303 | I72: 717 | J72: A8595:I8603 | K72: 742 | L72: A8895:I8903 | M72: 767 | N72: A9195:I9203 | O72: 792 | P72: A9495:I9503 | Q72: 817 | R72: A9795:I9803 | S72: 842 | T72: A10095:I10103 | U72: 867 | V72: A10395:I10403 | W72: 892 | X72: A10695:I10703
A73: 618 | B73: A7407:I7415 | C73: 643 | D73: A7707:I7715 | E73: 668 | F73: A8007:I8015 | G73: 693 | H73: A8307:I8315 | I73: 718 | J73: A8607:I8615 | K73: 743 | L73: A8907:I8915 | M73: 768 | N73: A9207:I9215 | O73: 793 | P73: A9507:I9515 | Q73: 818 | R73: A9807:I9815 | S73: 843 | T73: A10107:I10115 | U73: 868 | V73: A10407:I10415 | W73: 893 | X73: A10707:I10715
A74: 619 | B74: A7419:I7427 | C74: 644 | D74: A7719:I7727 | E74: 669 | F74: A8019:I8027 | G74: 694 | H74: A8319:I8327 | I74: 719 | J74: A8619:I8627 | K74: 744 | L74: A8919:I8927 | M74: 769 | N74: A9219:I9227 | O74: 794 | P74: A9519:I9527 | Q74: 819 | R74: A9819:I9827 | S74: 844 | T74: A10119:I10127 | U74: 869 | V74: A10419:I10427 | W74: 894 | X74: A10719:I10727
A75: 620 | B75: A7431:I7439 | C75: 645 | D75: A7731:I7739 | E75: 670 | F75: A8031:I8039 | G75: 695 | H75: A8331:I8339 | I75: 720 | J75: A8631:I8639 | K75: 745 | L75: A8931:I8939 | M75: 770 | N75: A9231:I9239 | O75: 795 | P75: A9531:I9539 | Q75: 820 | R75: A9831:I9839 | S75: 845 | T75: A10131:I10139 | U75: 870 | V75: A10431:I10439 | W75: 895 | X75: A10731:I10739
A76: 621 | B76: A7443:I7451 | C76: 646 | D76: A7743:I7751 | E76: 671 | F76: A8043:I8051 | G76: 696 | H76: A8343:I8351 | I76: 721 | J76: A8643:I8651 | K76: 746 | L76: A8943:I8951 | M76: 771 | N76: A9243:I9251 | O76: 796 | P76: A9543:I9551 | Q76: 821 | R76: A9843:I9851 | S76: 846 | T76: A10143:I10151 | U76: 871 | V76: A10443:I10451 | W76: 896 | X76: A10743:I10751
A77: 622 | B77: A7455:I7463 | C77: 647 | D77: A7755:I7763 | E77: 672 | F77: A8055:I8063 | G77: 697 | H77: A8355:I8363 | I77: 722 | J77: A8655:I8663 | K77: 747 | L77: A8955:I8963 | M77: 772 | N77: A9255:I9263 | O77: 797 | P77: A9555:I9563 | Q77: 822 | R77: A9855:I9863 | S77: 847 | T77: A10155:I10163 | U77: 872 | V77: A10455:I10463 | W77: 897 | X77: A10755:I10763
A78: 623 | B78: A7467:I7475 | C78: 648 | D78: A7767:I7775 | E78: 673 | F78: A8067:I8075 | G78: 698 | H78: A8367:I8375 | I78: 723 | J78: A8667:I8675 | K78: 748 | L78: A8967:I8975 | M78: 773 | N78: A9267:I9275 | O78: 798 | P78: A9567:I9575 | Q78: 823 | R78: A9867:I9875 | S78: 848 | T78: A10167:I10175 | U78: 873 | V78: A10467:I10475 | W78: 898 | X78: A10767:I10775
A79: 624 | B79: A7479:I7487 | C79: 649 | D79: A7779:I7787 | E79: 674 | F79: A8079:I8087 | G79: 699 | H79: A8379:I8387 | I79: 724 | J79: A8679:I8687 | K79: 749 | L79: A8979:I8987 | M79: 774 | N79: A9279:I9287 | O79: 799 | P79: A9579:I9587 | Q79: 824 | R79: A9879:I9887 | S79: 849 | T79: A10179:I10187 | U79: 874 | V79: A10479:I10487 | W79: 899 | X79: A10779:I10787
A80: 625 | B80: A7491:I7499 | C80: 650 | D80: A7791:I7799 | E80: 675 | F80: A8091:I8099 | G80: 700 | H80: A8391:I8399 | I80: 725 | J80: A8691:I8699 | K80: 750 | L80: A8991:I8999 | M80: 775 | N80: A9291:I9299 | O80: 800 | P80: A9591:I9599 | Q80: 825 | R80: A9891:I9899 | S80: 850 | T80: A10191:I10199 | U80: 875 | V80: A10491:I10499 | W80: 900 | X80: A10791:I10799
B82: Formule: | D82: Formule: | F82: Formule: | H82: Formule: | J82: Formule: | L82: Formule: | N82: Formule: | P82: Formule: | R82: Formule: | T82: Formule: | V82: Formule: | X82: Formule:
A83: 901 | B83: A10803:I10811 | C83: 926 | D83: =LEFT(B83,1)&MID(B83,2,5)+300&":"&MID(B83,8,1)&MID(B83,9,5)+300 -> A11103:I11111 | E83: 951 | F83: =LEFT(D83,1)&MID(D83,2,5)+300&":"&MID(D83,8,1)&MID(D83,9,5)+300 -> A11403:I11411 | G83: 976 | H83: =LEFT(F83,1)&MID(F83,2,5)+300&":"&MID(F83,8,1)&MID(F83,9,5)+300 -> A11703:I11711 | I83: 1001 | J83: =LEFT(H83,1)&MID(H83,2,5)+300&":"&MID(H83,8,1)&MID(H83,9,5)+300 -> A12003:I12011 | K83: 1026 | L83: =LEFT(J83,1)&MID(J83,2,5)+300&":"&MID(J83,8,1)&MID(J83,9,5)+300 -> A12303:I12311 | M83: 1051 | N83: =LEFT(L83,1)&MID(L83,2,5)+300&":"&MID(L83,8,1)&MID(L83,9,5)+300 -> A12603:I12611 | O83: 1076 | P83: =LEFT(N83,1)&MID(N83,2,5)+300&":"&MID(N83,8,1)&MID(N83,9,5)+300 -> A12903:I12911 | Q83: 1101 | R83: =LEFT(P83,1)&MID(P83,2,5)+300&":"&MID(P83,8,1)&MID(P83,9,5)+300 -> A13203:I13211 | S83: 1126 | T83: =LEFT(R83,1)&MID(R83,2,5)+300&":"&MID(R83,8,1)&MID(R83,9,5)+300 -> A13503:I13511 | U83: 1151 | V83: =LEFT(T83,1)&MID(T83,2,5)+300&":"&MID(T83,8,1)&MID(T83,9,5)+300 -> A13803:I13811 | W83: 1176 | X83: =LEFT(V83,1)&MID(V83,2,5)+300&":"&MID(V83,8,1)&MID(V83,9,5)+300 -> A14103:I14111
A84: 902 | B84: A10815:I10823 | C84: 927 | D84: A11115:I11123 | E84: 952 | F84: A11415:I11423 | G84: 977 | H84: A11715:I11723 | I84: 1002 | J84: A12015:I12023 | K84: 1027 | L84: A12315:I12323 | M84: 1052 | N84: A12615:I12623 | O84: 1077 | P84: A12915:I12923 | Q84: 1102 | R84: A13215:I13223 | S84: 1127 | T84: A13515:I13523 | U84: 1152 | V84: A13815:I13823 | W84: 1177 | X84: A14115:I14123
A85: 903 | B85: A10827:I10835 | C85: 928 | D85: A11127:I11135 | E85: 953 | F85: A11427:I11435 | G85: 978 | H85: A11727:I11735 | I85: 1003 | J85: A12027:I12035 | K85: 1028 | L85: A12327:I12335 | M85: 1053 | N85: A12627:I12635 | O85: 1078 | P85: A12927:I12935 | Q85: 1103 | R85: A13227:I13235 | S85: 1128 | T85: A13527:I13535 | U85: 1153 | V85: A13827:I13835 | W85: 1178 | X85: A14127:I14135
A86: 904 | B86: A10839:I10847 | C86: 929 | D86: A11139:I11147 | E86: 954 | F86: A11439:I11447 | G86: 979 | H86: A11739:I11747 | I86: 1004 | J86: A12039:I12047 | K86: 1029 | L86: A12339:I12347 | M86: 1054 | N86: A12639:I12647 | O86: 1079 | P86: A12939:I12947 | Q86: 1104 | R86: A13239:I13247 | S86: 1129 | T86: A13539:I13547 | U86: 1154 | V86: A13839:I13847 | W86: 1179 | X86: A14139:I14147
A87: 905 | B87: A10851:I10859 | C87: 930 | D87: A11151:I11159 | E87: 955 | F87: A11451:I11459 | G87: 980 | H87: A11751:I11759 | I87: 1005 | J87: A12051:I12059 | K87: 1030 | L87: A12351:I12359 | M87: 1055 | N87: A12651:I12659 | O87: 1080 | P87: A12951:I12959 | Q87: 1105 | R87: A13251:I13259 | S87: 1130 | T87: A13551:I13559 | U87: 1155 | V87: A13851:I13859 | W87: 1180 | X87: A14151:I14159
A88: 906 | B88: A10863:I10871 | C88: 931 | D88: A11163:I11171 | E88: 956 | F88: A11463:I11471 | G88: 981 | H88: A11763:I11771 | I88: 1006 | J88: A12063:I12071 | K88: 1031 | L88: A12363:I12371 | M88: 1056 | N88: A12663:I12671 | O88: 1081 | P88: A12963:I12971 | Q88: 1106 | R88: A13263:I13271 | S88: 1131 | T88: A13563:I13571 | U88: 1156 | V88: A13863:I13871 | W88: 1181 | X88: A14163:I14171
A89: 907 | B89: A10875:I10883 | C89: 932 | D89: A11175:I11183 | E89: 957 | F89: A11475:I11483 | G89: 982 | H89: A11775:I11783 | I89: 1007 | J89: A12075:I12083 | K89: 1032 | L89: A12375:I12383 | M89: 1057 | N89: A12675:I12683 | O89: 1082 | P89: A12975:I12983 | Q89: 1107 | R89: A13275:I13283 | S89: 1132 | T89: A13575:I13583 | U89: 1157 | V89: A13875:I13883 | W89: 1182 | X89: A14175:I14183
A90: 908 | B90: A10887:I10895 | C90: 933 | D90: A11187:I11195 | E90: 958 | F90: A11487:I11495 | G90: 983 | H90: A11787:I11795 | I90: 1008 | J90: A12087:I12095 | K90: 1033 | L90: A12387:I12395 | M90: 1058 | N90: A12687:I12695 | O90: 1083 | P90: A12987:I12995 | Q90: 1108 | R90: A13287:I13295 | S90: 1133 | T90: A13587:I13595 | U90: 1158 | V90: A13887:I13895 | W90: 1183 | X90: A14187:I14195
A91: 909 | B91: A10899:I10907 | C91: 934 | D91: A11199:I11207 | E91: 959 | F91: A11499:I11507 | G91: 984 | H91: A11799:I11807 | I91: 1009 | J91: A12099:I12107 | K91: 1034 | L91: A12399:I12407 | M91: 1059 | N91: A12699:I12707 | O91: 1084 | P91: A12999:I13007 | Q91: 1109 | R91: A13299:I13307 | S91: 1134 | T91: A13599:I13607 | U91: 1159 | V91: A13899:I13907 | W91: 1184 | X91: A14199:I14207
A92: 910 | B92: A10911:I10919 | C92: 935 | D92: A11211:I11219 | E92: 960 | F92: A11511:I11519 | G92: 985 | H92: A11811:I11819 | I92: 1010 | J92: A12111:I12119 | K92: 1035 | L92: A12411:I12419 | M92: 1060 | N92: A12711:I12719 | O92: 1085 | P92: A13011:I13019 | Q92: 1110 | R92: A13311:I13319 | S92: 1135 | T92: A13611:I13619 | U92: 1160 | V92: A13911:I13919 | W92: 1185 | X92: A14211:I14219
A93: 911 | B93: A10923:I10931 | C93: 936 | D93: A11223:I11231 | E93: 961 | F93: A11523:I11531 | G93: 986 | H93: A11823:I11831 | I93: 1011 | J93: A12123:I12131 | K93: 1036 | L93: A12423:I12431 | M93: 1061 | N93: A12723:I12731 | O93: 1086 | P93: A13023:I13031 | Q93: 1111 | R93: A13323:I13331 | S93: 1136 | T93: A13623:I13631 | U93: 1161 | V93: A13923:I13931 | W93: 1186 | X93: A14223:I14231
A94: 912 | B94: A10935:I10943 | C94: 937 | D94: A11235:I11243 | E94: 962 | F94: A11535:I11543 | G94: 987 | H94: A11835:I11843 | I94: 1012 | J94: A12135:I12143 | K94: 1037 | L94: A12435:I12443 | M94: 1062 | N94: A12735:I12743 | O94: 1087 | P94: A13035:I13043 | Q94: 1112 | R94: A13335:I13343 | S94: 1137 | T94: A13635:I13643 | U94: 1162 | V94: A13935:I13943 | W94: 1187 | X94: A14235:I14243
A95: 913 | B95: A10947:I10955 | C95: 938 | D95: A11247:I11255 | E95: 963 | F95: A11547:I11555 | G95: 988 | H95: A11847:I11855 | I95: 1013 | J95: A12147:I12155 | K95: 1038 | L95: A12447:I12455 | M95: 1063 | N95: A12747:I12755 | O95: 1088 | P95: A13047:I13055 | Q95: 1113 | R95: A13347:I13355 | S95: 1138 | T95: A13647:I13655 | U95: 1163 | V95: A13947:I13955 | W95: 1188 | X95: A14247:I14255
A96: 914 | B96: A10959:I10967 | C96: 939 | D96: A11259:I11267 | E96: 964 | F96: A11559:I11567 | G96: 989 | H96: A11859:I11867 | I96: 1014 | J96: A12159:I12167 | K96: 1039 | L96: A12459:I12467 | M96: 1064 | N96: A12759:I12767 | O96: 1089 | P96: A13059:I13067 | Q96: 1114 | R96: A13359:I13367 | S96: 1139 | T96: A13659:I13667 | U96: 1164 | V96: A13959:I13967 | W96: 1189 | X96: A14259:I14267
A97: 915 | B97: A10971:I10979 | C97: 940 | D97: A11271:I11279 | E97: 965 | F97: A11571:I11579 | G97: 990 | H97: A11871:I11879 | I97: 1015 | J97: A12171:I12179 | K97: 1040 | L97: A12471:I12479 | M97: 1065 | N97: A12771:I12779 | O97: 1090 | P97: A13071:I13079 | Q97: 1115 | R97: A13371:I13379 | S97: 1140 | T97: A13671:I13679 | U97: 1165 | V97: A13971:I13979 | W97: 1190 | X97: A14271:I14279
A98: 916 | B98: A10983:I10991 | C98: 941 | D98: A11283:I11291 | E98: 966 | F98: A11583:I11591 | G98: 991 | H98: A11883:I11891 | I98: 1016 | J98: A12183:I12191 | K98: 1041 | L98: A12483:I12491 | M98: 1066 | N98: A12783:I12791 | O98: 1091 | P98: A13083:I13091 | Q98: 1116 | R98: A13383:I13391 | S98: 1141 | T98: A13683:I13691 | U98: 1166 | V98: A13983:I13991 | W98: 1191 | X98: A14283:I14291
A99: 917 | B99: A10995:I11003 | C99: 942 | D99: A11295:I11303 | E99: 967 | F99: A11595:I11603 | G99: 992 | H99: A11895:I11903 | I99: 1017 | J99: A12195:I12203 | K99: 1042 | L99: A12495:I12503 | M99: 1067 | N99: A12795:I12803 | O99: 1092 | P99: A13095:I13103 | Q99: 1117 | R99: A13395:I13403 | S99: 1142 | T99: A13695:I13703 | U99: 1167 | V99: A13995:I14003 | W99: 1192 | X99: A14295:I14303
A100: 918 | B100: A11007:I11015 | C100: 943 | D100: A11307:I11315 | E100: 968 | F100: A11607:I11615 | G100: 993 | H100: A11907:I11915 | I100: 1018 | J100: A12207:I12215 | K100: 1043 | L100: A12507:I12515 | M100: 1068 | N100: A12807:I12815 | O100: 1093 | P100: A13107:I13115 | Q100: 1118 | R100: A13407:I13415 | S100: 1143 | T100: A13707:I13715 | U100: 1168 | V100: A14007:I14015 | W100: 1193 | X100: A14307:I14315
A101: 919 | B101: A11019:I11027 | C101: 944 | D101: A11319:I11327 | E101: 969 | F101: A11619:I11627 | G101: 994 | H101: A11919:I11927 | I101: 1019 | J101: A12219:I12227 | K101: 1044 | L101: A12519:I12527 | M101: 1069 | N101: A12819:I12827 | O101: 1094 | P101: A13119:I13127 | Q101: 1119 | R101: A13419:I13427 | S101: 1144 | T101: A13719:I13727 | U101: 1169 | V101: A14019:I14027 | W101: 1194 | X101: A14319:I14327
A102: 920 | B102: A11031:I11039 | C102: 945 | D102: A11331:I11339 | E102: 970 | F102: A11631:I11639 | G102: 995 | H102: A11931:I11939 | I102: 1020 | J102: A12231:I12239 | K102: 1045 | L102: A12531:I12539 | M102: 1070 | N102: A12831:I12839 | O102: 1095 | P102: A13131:I13139 | Q102: 1120 | R102: A13431:I13439 | S102: 1145 | T102: A13731:I13739 | U102: 1170 | V102: A14031:I14039 | W102: 1195 | X102: A14331:I14339
A103: 921 | B103: A11043:I11051 | C103: 946 | D103: A11343:I11351 | E103: 971 | F103: A11643:I11651 | G103: 996 | H103: A11943:I11951 | I103: 1021 | J103: A12243:I12251 | K103: 1046 | L103: A12543:I12551 | M103: 1071 | N103: A12843:I12851 | O103: 1096 | P103: A13143:I13151 | Q103: 1121 | R103: A13443:I13451 | S103: 1146 | T103: A13743:I13751 | U103: 1171 | V103: A14043:I14051 | W103: 1196 | X103: A14343:I14351
A104: 922 | B104: A11055:I11063 | C104: 947 | D104: A11355:I11363 | E104: 972 | F104: A11655:I11663 | G104: 997 | H104: A11955:I11963 | I104: 1022 | J104: A12255:I12263 | K104: 1047 | L104: A12555:I12563 | M104: 1072 | N104: A12855:I12863 | O104: 1097 | P104: A13155:I13163 | Q104: 1122 | R104: A13455:I13463 | S104: 1147 | T104: A13755:I13763 | U104: 1172 | V104: A14055:I14063 | W104: 1197 | X104: A14355:I14363
A105: 923 | B105: A11067:I11075 | C105: 948 | D105: A11367:I11375 | E105: 973 | F105: A11667:I11675 | G105: 998 | H105: A11967:I11975 | I105: 1023 | J105: A12267:I12275 | K105: 1048 | L105: A12567:I12575 | M105: 1073 | N105: A12867:I12875 | O105: 1098 | P105: A13167:I13175 | Q105: 1123 | R105: A13467:I13475 | S105: 1148 | T105: A13767:I13775 | U105: 1173 | V105: A14067:I14075 | W105: 1198 | X105: A14367:I14375
A106: 924 | B106: A11079:I11087 | C106: 949 | D106: A11379:I11387 | E106: 974 | F106: A11679:I11687 | G106: 999 | H106: A11979:I11987 | I106: 1024 | J106: A12279:I12287 | K106: 1049 | L106: A12579:I12587 | M106: 1074 | N106: A12879:I12887 | O106: 1099 | P106: A13179:I13187 | Q106: 1124 | R106: A13479:I13487 | S106: 1149 | T106: A13779:I13787 | U106: 1174 | V106: A14079:I14087 | W106: 1199 | X106: A14379:I14387
A107: 925 | B107: A11091:I11099 | C107: 950 | D107: A11391:I11399 | E107: 975 | F107: A11691:I11699 | G107: 1000 | H107: A11991:I11999 | I107: 1025 | J107: A12291:I12299 | K107: 1050 | L107: A12591:I12599 | M107: 1075 | N107: A12891:I12899 | O107: 1100 | P107: A13191:I13199 | Q107: 1125 | R107: A13491:I13499 | S107: 1150 | T107: A13791:I13799 | U107: 1175 | V107: A14091:I14099 | W107: 1200 | X107: A14391:I14399
B109: Formule: | D109: Formule: | F109: Formule: | H109: Formule: | J109: Formule: | L109: Formule: | N109: Formule: | P109: Formule: | R109: Formule: | T109: Formule: | V109: Formule: | X109: Formule:
A110: 1201 | B110: A14403:I14411 | C110: =A110+25 -> 1226 | D110: =LEFT(B110,1)&MID(B110,2,5)+300&":"&MID(B110,8,1)&MID(B110,9,5)+300 -> A14703:I14711 | E110: 1251 | F110: =LEFT(D110,1)&MID(D110,2,5)+300&":"&MID(D110,8,1)&MID(D110,9,5)+300 -> A15003:I15011 | G110: 1276 | H110: A15303:I15311 | I110: 1301 | J110: A15603:I15611 | K110: 1326 | L110: A15903:I15911 | M110: 1351 | N110: A16203:I16211 | O110: 1376 | P110: A16503:I16511 | Q110: 1401 | R110: A16803:I16811 | S110: 1426 | T110: A17103:I17111 | U110: 1451 | V110: A17403:I17411 | W110: 1476 | X110: A17703:I17711
A111: 1202 | B111: A14415:I14423 | C111: =A111+25 -> 1227 | D111: A14715:I14723 | E111: 1252 | F111: A15015:I15023 | G111: 1277 | H111: A15315:I15323 | I111: 1302 | J111: A15615:I15623 | K111: 1327 | L111: A15915:I15923 | M111: 1352 | N111: A16215:I16223 | O111: 1377 | P111: A16515:I16523 | Q111: 1402 | R111: A16815:I16823 | S111: 1427 | T111: A17115:I17123 | U111: 1452 | V111: A17415:I17423 | W111: 1477 | X111: A17715:I17723
A112: 1203 | B112: A14427:I14435 | C112: 1228 | D112: A14727:I14735 | E112: 1253 | F112: A15027:I15035 | G112: 1278 | H112: A15327:I15335 | I112: 1303 | J112: A15627:I15635 | K112: 1328 | L112: A15927:I15935 | M112: 1353 | N112: A16227:I16235 | O112: 1378 | P112: A16527:I16535 | Q112: 1403 | R112: A16827:I16835 | S112: 1428 | T112: A17127:I17135 | U112: 1453 | V112: A17427:I17435 | W112: 1478 | X112: A17727:I17735
A113: 1204 | B113: A14439:I14447 | C113: 1229 | D113: A14739:I14747 | E113: 1254 | F113: A15039:I15047 | G113: 1279 | H113: A15339:I15347 | I113: 1304 | J113: A15639:I15647 | K113: 1329 | L113: A15939:I15947 | M113: 1354 | N113: A16239:I16247 | O113: 1379 | P113: A16539:I16547 | Q113: 1404 | R113: A16839:I16847 | S113: 1429 | T113: A17139:I17147 | U113: 1454 | V113: A17439:I17447 | W113: 1479 | X113: A17739:I17747
A114: 1205 | B114: A14451:I14459 | C114: 1230 | D114: A14751:I14759 | E114: 1255 | F114: A15051:I15059 | G114: 1280 | H114: A15351:I15359 | I114: 1305 | J114: A15651:I15659 | K114: 1330 | L114: A15951:I15959 | M114: 1355 | N114: A16251:I16259 | O114: 1380 | P114: A16551:I16559 | Q114: 1405 | R114: A16851:I16859 | S114: 1430 | T114: A17151:I17159 | U114: 1455 | V114: A17451:I17459 | W114: 1480 | X114: A17751:I17759
A115: 1206 | B115: A14463:I14471 | C115: 1231 | D115: A14763:I14771 | E115: 1256 | F115: A15063:I15071 | G115: 1281 | H115: A15363:I15371 | I115: 1306 | J115: A15663:I15671 | K115: 1331 | L115: A15963:I15971 | M115: 1356 | N115: A16263:I16271 | O115: 1381 | P115: A16563:I16571 | Q115: 1406 | R115: A16863:I16871 | S115: 1431 | T115: A17163:I17171 | U115: 1456 | V115: A17463:I17471 | W115: 1481 | X115: A17763:I17771
A116: 1207 | B116: A14475:I14483 | C116: 1232 | D116: A14775:I14783 | E116: 1257 | F116: A15075:I15083 | G116: 1282 | H116: A15375:I15383 | I116: 1307 | J116: A15675:I15683 | K116: 1332 | L116: A15975:I15983 | M116: 1357 | N116: A16275:I16283 | O116: 1382 | P116: A16575:I16583 | Q116: 1407 | R116: A16875:I16883 | S116: 1432 | T116: A17175:I17183 | U116: 1457 | V116: A17475:I17483 | W116: 1482 | X116: A17775:I17783
A117: 1208 | B117: A14487:I14495 | C117: 1233 | D117: A14787:I14795 | E117: 1258 | F117: A15087:I15095 | G117: 1283 | H117: A15387:I15395 | I117: 1308 | J117: A15687:I15695 | K117: 1333 | L117: A15987:I15995 | M117: 1358 | N117: A16287:I16295 | O117: 1383 | P117: A16587:I16595 | Q117: 1408 | R117: A16887:I16895 | S117: 1433 | T117: A17187:I17195 | U117: 1458 | V117: A17487:I17495 | W117: 1483 | X117: A17787:I17795
A118: 1209 | B118: A14499:I14507 | C118: 1234 | D118: A14799:I14807 | E118: 1259 | F118: A15099:I15107 | G118: 1284 | H118: A15399:I15407 | I118: 1309 | J118: A15699:I15707 | K118: 1334 | L118: A15999:I16007 | M118: 1359 | N118: A16299:I16307 | O118: 1384 | P118: A16599:I16607 | Q118: 1409 | R118: A16899:I16907 | S118: 1434 | T118: A17199:I17207 | U118: 1459 | V118: A17499:I17507 | W118: 1484 | X118: A17799:I17807
A119: 1210 | B119: A14511:I14519 | C119: 1235 | D119: A14811:I14819 | E119: 1260 | F119: A15111:I15119 | G119: 1285 | H119: A15411:I15419 | I119: 1310 | J119: A15711:I15719 | K119: 1335 | L119: A16011:I16019 | M119: 1360 | N119: A16311:I16319 | O119: 1385 | P119: A16611:I16619 | Q119: 1410 | R119: A16911:I16919 | S119: 1435 | T119: A17211:I17219 | U119: 1460 | V119: A17511:I17519 | W119: 1485 | X119: A17811:I17819
A120: 1211 | B120: A14523:I14531 | C120: 1236 | D120: A14823:I14831 | E120: 1261 | F120: A15123:I15131 | G120: 1286 | H120: A15423:I15431 | I120: 1311 | J120: A15723:I15731 | K120: 1336 | L120: A16023:I16031 | M120: 1361 | N120: A16323:I16331 | O120: 1386 | P120: A16623:I16631 | Q120: 1411 | R120: A16923:I16931 | S120: 1436 | T120: A17223:I17231 | U120: 1461 | V120: A17523:I17531 | W120: 1486 | X120: A17823:I17831
A121: 1212 | B121: A14535:I14543 | C121: 1237 | D121: A14835:I14843 | E121: 1262 | F121: A15135:I15143 | G121: 1287 | H121: A15435:I15443 | I121: 1312 | J121: A15735:I15743 | K121: 1337 | L121: A16035:I16043 | M121: 1362 | N121: A16335:I16343 | O121: 1387 | P121: A16635:I16643 | Q121: 1412 | R121: A16935:I16943 | S121: 1437 | T121: A17235:I17243 | U121: 1462 | V121: A17535:I17543 | W121: 1487 | X121: A17835:I17843
A122: 1213 | B122: A14547:I14555 | C122: 1238 | D122: A14847:I14855 | E122: 1263 | F122: A15147:I15155 | G122: 1288 | H122: A15447:I15455 | I122: 1313 | J122: A15747:I15755 | K122: 1338 | L122: A16047:I16055 | M122: 1363 | N122: A16347:I16355 | O122: 1388 | P122: A16647:I16655 | Q122: 1413 | R122: A16947:I16955 | S122: 1438 | T122: A17247:I17255 | U122: 1463 | V122: A17547:I17555 | W122: 1488 | X122: A17847:I17855
A123: 1214 | B123: A14559:I14567 | C123: 1239 | D123: A14859:I14867 | E123: 1264 | F123: A15159:I15167 | G123: 1289 | H123: A15459:I15467 | I123: 1314 | J123: A15759:I15767 | K123: 1339 | L123: A16059:I16067 | M123: 1364 | N123: A16359:I16367 | O123: 1389 | P123: A16659:I16667 | Q123: 1414 | R123: A16959:I16967 | S123: 1439 | T123: A17259:I17267 | U123: 1464 | V123: A17559:I17567 | W123: 1489 | X123: A17859:I17867
A124: 1215 | B124: A14571:I14579 | C124: 1240 | D124: A14871:I14879 | E124: 1265 | F124: A15171:I15179 | G124: 1290 | H124: A15471:I15479 | I124: 1315 | J124: A15771:I15779 | K124: 1340 | L124: A16071:I16079 | M124: 1365 | N124: A16371:I16379 | O124: 1390 | P124: A16671:I16679 | Q124: 1415 | R124: A16971:I16979 | S124: 1440 | T124: A17271:I17279 | U124: 1465 | V124: A17571:I17579 | W124: 1490 | X124: A17871:I17879
A125: 1216 | B125: A14583:I14591 | C125: 1241 | D125: A14883:I14891 | E125: 1266 | F125: A15183:I15191 | G125: 1291 | H125: A15483:I15491 | I125: 1316 | J125: A15783:I15791 | K125: 1341 | L125: A16083:I16091 | M125: 1366 | N125: A16383:I16391 | O125: 1391 | P125: A16683:I16691 | Q125: 1416 | R125: A16983:I16991 | S125: 1441 | T125: A17283:I17291 | U125: 1466 | V125: A17583:I17591 | W125: 1491 | X125: A17883:I17891
A126: 1217 | B126: A14595:I14603 | C126: 1242 | D126: A14895:I14903 | E126: 1267 | F126: =LEFT(D126,1)&MID(D126,2,5)+300&":"&MID(D126,8,1)&MID(D126,9,5)+300 -> A15195:I15203 | G126: 1292 | H126: =LEFT(F126,1)&MID(F126,2,5)+300&":"&MID(F126,8,1)&MID(F126,9,5)+300 -> A15495:I15503 | I126: 1317 | J126: =LEFT(H126,1)&MID(H126,2,5)+300&":"&MID(H126,8,1)&MID(H126,9,5)+300 -> A15795:I15803 | K126: 1342 | L126: =LEFT(J126,1)&MID(J126,2,5)+300&":"&MID(J126,8,1)&MID(J126,9,5)+300 -> A16095:I16103 | M126: 1367 | N126: =LEFT(L126,1)&MID(L126,2,5)+300&":"&MID(L126,8,1)&MID(L126,9,5)+300 -> A16395:I16403 | O126: 1392 | P126: =LEFT(N126,1)&MID(N126,2,5)+300&":"&MID(N126,8,1)&MID(N126,9,5)+300 -> A16695:I16703 | Q126: 1417 | R126: =LEFT(P126,1)&MID(P126,2,5)+300&":"&MID(P126,8,1)&MID(P126,9,5)+300 -> A16995:I17003 | S126: 1442 | T126: =LEFT(R126,1)&MID(R126,2,5)+300&":"&MID(R126,8,1)&MID(R126,9,5)+300 -> A17295:I17303 | U126: 1467 | V126: =LEFT(T126,1)&MID(T126,2,5)+300&":"&MID(T126,8,1)&MID(T126,9,5)+300 -> A17595:I17603 | W126: 1492 | X126: =LEFT(V126,1)&MID(V126,2,5)+300&":"&MID(V126,8,1)&MID(V126,9,5)+300 -> A17895:I17903
A127: 1218 | B127: A14607:I14615 | C127: 1243 | D127: A14907:I14915 | E127: 1268 | F127: A15207:I15215 | G127: 1293 | H127: A15507:I15515 | I127: 1318 | J127: A15807:I15815 | K127: 1343 | L127: A16107:I16115 | M127: 1368 | N127: A16407:I16415 | O127: 1393 | P127: A16707:I16715 | Q127: 1418 | R127: A17007:I17015 | S127: 1443 | T127: A17307:I17315 | U127: 1468 | V127: A17607:I17615 | W127: 1493 | X127: A17907:I17915
A128: 1219 | B128: A14619:I14627 | C128: 1244 | D128: A14919:I14927 | E128: 1269 | F128: A15219:I15227 | G128: 1294 | H128: A15519:I15527 | I128: 1319 | J128: A15819:I15827 | K128: 1344 | L128: A16119:I16127 | M128: 1369 | N128: A16419:I16427 | O128: 1394 | P128: A16719:I16727 | Q128: 1419 | R128: A17019:I17027 | S128: 1444 | T128: A17319:I17327 | U128: 1469 | V128: A17619:I17627 | W128: 1494 | X128: A17919:I17927
A129: 1220 | B129: A14631:I14639 | C129: 1245 | D129: A14931:I14939 | E129: 1270 | F129: A15231:I15239 | G129: 1295 | H129: A15531:I15539 | I129: 1320 | J129: A15831:I15839 | K129: 1345 | L129: A16131:I16139 | M129: 1370 | N129: A16431:I16439 | O129: 1395 | P129: A16731:I16739 | Q129: 1420 | R129: A17031:I17039 | S129: 1445 | T129: A17331:I17339 | U129: 1470 | V129: A17631:I17639 | W129: 1495 | X129: A17931:I17939
A130: 1221 | B130: A14643:I14651 | C130: 1246 | D130: A14943:I14951 | E130: 1271 | F130: A15243:I15251 | G130: 1296 | H130: A15543:I15551 | I130: 1321 | J130: A15843:I15851 | K130: 1346 | L130: A16143:I16151 | M130: 1371 | N130: A16443:I16451 | O130: 1396 | P130: A16743:I16751 | Q130: 1421 | R130: A17043:I17051 | S130: 1446 | T130: A17343:I17351 | U130: 1471 | V130: A17643:I17651 | W130: 1496 | X130: A17943:I17951
A131: 1222 | B131: A14655:I14663 | C131: 1247 | D131: A14955:I14963 | E131: 1272 | F131: A15255:I15263 | G131: 1297 | H131: A15555:I15563 | I131: 1322 | J131: A15855:I15863 | K131: 1347 | L131: A16155:I16163 | M131: 1372 | N131: A16455:I16463 | O131: 1397 | P131: A16755:I16763 | Q131: 1422 | R131: A17055:I17063 | S131: 1447 | T131: A17355:I17363 | U131: 1472 | V131: A17655:I17663 | W131: 1497 | X131: A17955:I17963
A132: 1223 | B132: A14667:I14675 | C132: 1248 | D132: A14967:I14975 | E132: 1273 | F132: A15267:I15275 | G132: 1298 | H132: A15567:I15575 | I132: 1323 | J132: A15867:I15875 | K132: 1348 | L132: A16167:I16175 | M132: 1373 | N132: A16467:I16475 | O132: 1398 | P132: A16767:I16775 | Q132: 1423 | R132: A17067:I17075 | S132: 1448 | T132: A17367:I17375 | U132: 1473 | V132: A17667:I17675 | W132: 1498 | X132: A17967:I17975
A133: 1224 | B133: A14679:I14687 | C133: 1249 | D133: A14979:I14987 | E133: 1274 | F133: A15279:I15287 | G133: 1299 | H133: A15579:I15587 | I133: 1324 | J133: A15879:I15887 | K133: 1349 | L133: A16179:I16187 | M133: 1374 | N133: A16479:I16487 | O133: 1399 | P133: A16779:I16787 | Q133: 1424 | R133: A17079:I17087 | S133: 1449 | T133: A17379:I17387 | U133: 1474 | V133: A17679:I17687 | W133: 1499 | X133: A17979:I17987
A134: 1225 | B134: A14691:I14699 | C134: 1250 | D134: A14991:I14999 | E134: 1275 | F134: A15291:I15299 | G134: 1300 | H134: A15591:I15599 | I134: 1325 | J134: A15891:I15899 | K134: 1350 | L134: A16191:I16199 | M134: 1375 | N134: A16491:I16499 | O134: 1400 | P134: A16791:I16799 | Q134: 1425 | R134: A17091:I17099 | S134: 1450 | T134: A17391:I17399 | U134: 1475 | V134: A17691:I17699 | W134: 1500 | X134: A17991:I17999
B136: Formule: | D136: Formule: | F136: Formule: | H136: Formule: | J136: Formule: | L136: Formule: | N136: Formule: | P136: Formule: | R136: Formule: | T136: Formule: | V136: Formule: | X136: Formule:
A137: 1501 | B137: A18003:I18011 | C137: 1526 | D137: =LEFT(B137,1)&MID(B137,2,5)+300&":"&MID(B137,8,1)&MID(B137,9,5)+300 -> A18303:I18311 | E137: 1551 | F137: =LEFT(D137,1)&MID(D137,2,5)+300&":"&MID(D137,8,1)&MID(D137,9,5)+300 -> A18603:I18611 | G137: 1576 | H137: =LEFT(F137,1)&MID(F137,2,5)+300&":"&MID(F137,8,1)&MID(F137,9,5)+300 -> A18903:I18911 | I137: 1601 | J137: =LEFT(H137,1)&MID(H137,2,5)+300&":"&MID(H137,8,1)&MID(H137,9,5)+300 -> A19203:I19211 | K137: 1626 | L137: =LEFT(J137,1)&MID(J137,2,5)+300&":"&MID(J137,8,1)&MID(J137,9,5)+300 -> A19503:I19511 | M137: 1651 | N137: =LEFT(L137,1)&MID(L137,2,5)+300&":"&MID(L137,8,1)&MID(L137,9,5)+300 -> A19803:I19811 | O137: 1676 | P137: =LEFT(N137,1)&MID(N137,2,5)+300&":"&MID(N137,8,1)&MID(N137,9,5)+300 -> A20103:I20111 | Q137: 1701 | R137: =LEFT(P137,1)&MID(P137,2,5)+300&":"&MID(P137,8,1)&MID(P137,9,5)+300 -> A20403:I20411 | S137: 1726 | T137: =LEFT(R137,1)&MID(R137,2,5)+300&":"&MID(R137,8,1)&MID(R137,9,5)+300 -> A20703:I20711 | U137: 1751 | V137: =LEFT(T137,1)&MID(T137,2,5)+300&":"&MID(T137,8,1)&MID(T137,9,5)+300 -> A21003:I21011 | W137: 1776 | X137: =LEFT(V137,1)&MID(V137,2,5)+300&":"&MID(V137,8,1)&MID(V137,9,5)+300 -> A21303:I21311
A138: 1502 | B138: A18015:I18023 | C138: 1527 | D138: =LEFT(B138,1)&MID(B138,2,5)+300&":"&MID(B138,8,1)&MID(B138,9,5)+300 -> A18315:I18323 | E138: 1552 | F138: =LEFT(D138,1)&MID(D138,2,5)+300&":"&MID(D138,8,1)&MID(D138,9,5)+300 -> A18615:I18623 | G138: 1577 | H138: A18915:I18923 | I138: 1602 | J138: A19215:I19223 | K138: 1627 | L138: A19515:I19523 | M138: 1652 | N138: A19815:I19823 | O138: 1677 | P138: A20115:I20123 | Q138: 1702 | R138: A20415:I20423 | S138: 1727 | T138: A20715:I20723 | U138: 1752 | V138: A21015:I21023 | W138: 1777 | X138: A21315:I21323
A139: 1503 | B139: A18027:I18035 | C139: 1528 | D139: A18327:I18335 | E139: 1553 | F139: A18627:I18635 | G139: 1578 | H139: A18927:I18935 | I139: 1603 | J139: A19227:I19235 | K139: 1628 | L139: A19527:I19535 | M139: 1653 | N139: A19827:I19835 | O139: 1678 | P139: A20127:I20135 | Q139: 1703 | R139: A20427:I20435 | S139: 1728 | T139: A20727:I20735 | U139: 1753 | V139: A21027:I21035 | W139: 1778 | X139: A21327:I21335
A140: 1504 | B140: A18039:I18047 | C140: 1529 | D140: A18339:I18347 | E140: 1554 | F140: A18639:I18647 | G140: 1579 | H140: A18939:I18947 | I140: 1604 | J140: A19239:I19247 | K140: 1629 | L140: A19539:I19547 | M140: 1654 | N140: A19839:I19847 | O140: 1679 | P140: A20139:I20147 | Q140: 1704 | R140: A20439:I20447 | S140: 1729 | T140: A20739:I20747 | U140: 1754 | V140: A21039:I21047 | W140: 1779 | X140: A21339:I21347
A141: 1505 | B141: A18051:I18059 | C141: 1530 | D141: A18351:I18359 | E141: 1555 | F141: A18651:I18659 | G141: 1580 | H141: A18951:I18959 | I141: 1605 | J141: A19251:I19259 | K141: 1630 | L141: A19551:I19559 | M141: 1655 | N141: A19851:I19859 | O141: 1680 | P141: A20151:I20159 | Q141: 1705 | R141: A20451:I20459 | S141: 1730 | T141: A20751:I20759 | U141: 1755 | V141: A21051:I21059 | W141: 1780 | X141: A21351:I21359
A142: 1506 | B142: A18063:I18071 | C142: 1531 | D142: A18363:I18371 | E142: 1556 | F142: A18663:I18671 | G142: 1581 | H142: A18963:I18971 | I142: 1606 | J142: A19263:I19271 | K142: 1631 | L142: A19563:I19571 | M142: 1656 | N142: A19863:I19871 | O142: 1681 | P142: A20163:I20171 | Q142: 1706 | R142: A20463:I20471 | S142: 1731 | T142: A20763:I20771 | U142: 1756 | V142: A21063:I21071 | W142: 1781 | X142: A21363:I21371
A143: 1507 | B143: A18075:I18083 | C143: 1532 | D143: A18375:I18383 | E143: 1557 | F143: A18675:I18683 | G143: 1582 | H143: A18975:I18983 | I143: 1607 | J143: A19275:I19283 | K143: 1632 | L143: A19575:I19583 | M143: 1657 | N143: A19875:I19883 | O143: 1682 | P143: A20175:I20183 | Q143: 1707 | R143: A20475:I20483 | S143: 1732 | T143: A20775:I20783 | U143: 1757 | V143: A21075:I21083 | W143: 1782 | X143: A21375:I21383
A144: 1508 | B144: A18087:I18095 | C144: 1533 | D144: A18387:I18395 | E144: 1558 | F144: A18687:I18695 | G144: 1583 | H144: A18987:I18995 | I144: 1608 | J144: A19287:I19295 | K144: 1633 | L144: A19587:I19595 | M144: 1658 | N144: A19887:I19895 | O144: 1683 | P144: A20187:I20195 | Q144: 1708 | R144: A20487:I20495 | S144: 1733 | T144: A20787:I20795 | U144: 1758 | V144: A21087:I21095 | W144: 1783 | X144: A21387:I21395
A145: 1509 | B145: A18099:I18107 | C145: 1534 | D145: A18399:I18407 | E145: 1559 | F145: A18699:I18707 | G145: 1584 | H145: A18999:I19007 | I145: 1609 | J145: A19299:I19307 | K145: 1634 | L145: A19599:I19607 | M145: 1659 | N145: A19899:I19907 | O145: 1684 | P145: A20199:I20207 | Q145: 1709 | R145: A20499:I20507 | S145: 1734 | T145: A20799:I20807 | U145: 1759 | V145: A21099:I21107 | W145: 1784 | X145: A21399:I21407
A146: 1510 | B146: A18111:I18119 | C146: 1535 | D146: A18411:I18419 | E146: 1560 | F146: A18711:I18719 | G146: 1585 | H146: A19011:I19019 | I146: 1610 | J146: A19311:I19319 | K146: 1635 | L146: A19611:I19619 | M146: 1660 | N146: A19911:I19919 | O146: 1685 | P146: A20211:I20219 | Q146: 1710 | R146: A20511:I20519 | S146: 1735 | T146: A20811:I20819 | U146: 1760 | V146: A21111:I21119 | W146: 1785 | X146: A21411:I21419
A147: 1511 | B147: A18123:I18131 | C147: 1536 | D147: A18423:I18431 | E147: 1561 | F147: A18723:I18731 | G147: 1586 | H147: A19023:I19031 | I147: 1611 | J147: A19323:I19331 | K147: 1636 | L147: A19623:I19631 | M147: 1661 | N147: A19923:I19931 | O147: 1686 | P147: A20223:I20231 | Q147: 1711 | R147: A20523:I20531 | S147: 1736 | T147: A20823:I20831 | U147: 1761 | V147: A21123:I21131 | W147: 1786 | X147: A21423:I21431
A148: 1512 | B148: A18135:I18143 | C148: 1537 | D148: A18435:I18443 | E148: 1562 | F148: A18735:I18743 | G148: 1587 | H148: A19035:I19043 | I148: 1612 | J148: A19335:I19343 | K148: 1637 | L148: A19635:I19643 | M148: 1662 | N148: A19935:I19943 | O148: 1687 | P148: A20235:I20243 | Q148: 1712 | R148: A20535:I20543 | S148: 1737 | T148: A20835:I20843 | U148: 1762 | V148: A21135:I21143 | W148: 1787 | X148: A21435:I21443
A149: 1513 | B149: A18147:I18155 | C149: 1538 | D149: A18447:I18455 | E149: 1563 | F149: A18747:I18755 | G149: 1588 | H149: A19047:I19055 | I149: 1613 | J149: A19347:I19355 | K149: 1638 | L149: A19647:I19655 | M149: 1663 | N149: A19947:I19955 | O149: 1688 | P149: A20247:I20255 | Q149: 1713 | R149: A20547:I20555 | S149: 1738 | T149: A20847:I20855 | U149: 1763 | V149: A21147:I21155 | W149: 1788 | X149: A21447:I21455
A150: 1514 | B150: A18159:I18167 | C150: 1539 | D150: A18459:I18467 | E150: 1564 | F150: A18759:I18767 | G150: 1589 | H150: A19059:I19067 | I150: 1614 | J150: A19359:I19367 | K150: 1639 | L150: A19659:I19667 | M150: 1664 | N150: A19959:I19967 | O150: 1689 | P150: A20259:I20267 | Q150: 1714 | R150: A20559:I20567 | S150: 1739 | T150: A20859:I20867 | U150: 1764 | V150: A21159:I21167 | W150: 1789 | X150: A21459:I21467
A151: 1515 | B151: A18171:I18179 | C151: 1540 | D151: A18471:I18479 | E151: 1565 | F151: A18771:I18779 | G151: 1590 | H151: A19071:I19079 | I151: 1615 | J151: A19371:I19379 | K151: 1640 | L151: A19671:I19679 | M151: 1665 | N151: A19971:I19979 | O151: 1690 | P151: A20271:I20279 | Q151: 1715 | R151: A20571:I20579 | S151: 1740 | T151: A20871:I20879 | U151: 1765 | V151: A21171:I21179 | W151: 1790 | X151: A21471:I21479
A152: 1516 | B152: A18183:I18191 | C152: 1541 | D152: A18483:I18491 | E152: 1566 | F152: A18783:I18791 | G152: 1591 | H152: A19083:I19091 | I152: 1616 | J152: A19383:I19391 | K152: 1641 | L152: A19683:I19691 | M152: 1666 | N152: A19983:I19991 | O152: 1691 | P152: A20283:I20291 | Q152: 1716 | R152: A20583:I20591 | S152: 1741 | T152: A20883:I20891 | U152: 1766 | V152: A21183:I21191 | W152: 1791 | X152: A21483:I21491
A153: 1517 | B153: A18195:I18203 | C153: 1542 | D153: A18495:I18503 | E153: 1567 | F153: A18795:I18803 | G153: 1592 | H153: A19095:I19103 | I153: 1617 | J153: A19395:I19403 | K153: 1642 | L153: A19695:I19703 | M153: 1667 | N153: A19995:I20003 | O153: 1692 | P153: A20295:I20303 | Q153: 1717 | R153: A20595:I20603 | S153: 1742 | T153: A20895:I20903 | U153: 1767 | V153: A21195:I21203 | W153: 1792 | X153: A21495:I21503
A154: 1518 | B154: A18207:I18215 | C154: 1543 | D154: A18507:I18515 | E154: 1568 | F154: A18807:I18815 | G154: 1593 | H154: A19107:I19115 | I154: 1618 | J154: A19407:I19415 | K154: 1643 | L154: A19707:I19715 | M154: 1668 | N154: A20007:I20015 | O154: 1693 | P154: A20307:I20315 | Q154: 1718 | R154: A20607:I20615 | S154: 1743 | T154: A20907:I20915 | U154: 1768 | V154: A21207:I21215 | W154: 1793 | X154: A21507:I21515
A155: 1519 | B155: A18219:I18227 | C155: 1544 | D155: A18519:I18527 | E155: 1569 | F155: A18819:I18827 | G155: 1594 | H155: A19119:I19127 | I155: 1619 | J155: A19419:I19427 | K155: 1644 | L155: A19719:I19727 | M155: 1669 | N155: A20019:I20027 | O155: 1694 | P155: A20319:I20327 | Q155: 1719 | R155: A20619:I20627 | S155: 1744 | T155: A20919:I20927 | U155: 1769 | V155: A21219:I21227 | W155: 1794 | X155: A21519:I21527
A156: 1520 | B156: A18231:I18239 | C156: 1545 | D156: A18531:I18539 | E156: 1570 | F156: A18831:I18839 | G156: 1595 | H156: A19131:I19139 | I156: 1620 | J156: A19431:I19439 | K156: 1645 | L156: A19731:I19739 | M156: 1670 | N156: A20031:I20039 | O156: 1695 | P156: A20331:I20339 | Q156: 1720 | R156: A20631:I20639 | S156: 1745 | T156: A20931:I20939 | U156: 1770 | V156: A21231:I21239 | W156: 1795 | X156: A21531:I21539
A157: 1521 | B157: A18243:I18251 | C157: 1546 | D157: A18543:I18551 | E157: 1571 | F157: A18843:I18851 | G157: 1596 | H157: A19143:I19151 | I157: 1621 | J157: A19443:I19451 | K157: 1646 | L157: A19743:I19751 | M157: 1671 | N157: A20043:I20051 | O157: 1696 | P157: A20343:I20351 | Q157: 1721 | R157: A20643:I20651 | S157: 1746 | T157: A20943:I20951 | U157: 1771 | V157: A21243:I21251 | W157: 1796 | X157: A21543:I21551
A158: 1522 | B158: A18255:I18263 | C158: 1547 | D158: A18555:I18563 | E158: 1572 | F158: A18855:I18863 | G158: 1597 | H158: A19155:I19163 | I158: 1622 | J158: A19455:I19463 | K158: 1647 | L158: A19755:I19763 | M158: 1672 | N158: A20055:I20063 | O158: 1697 | P158: A20355:I20363 | Q158: 1722 | R158: A20655:I20663 | S158: 1747 | T158: A20955:I20963 | U158: 1772 | V158: A21255:I21263 | W158: 1797 | X158: A21555:I21563
A159: 1523 | B159: A18267:I18275 | C159: 1548 | D159: A18567:I18575 | E159: 1573 | F159: A18867:I18875 | G159: 1598 | H159: A19167:I19175 | I159: 1623 | J159: A19467:I19475 | K159: 1648 | L159: A19767:I19775 | M159: 1673 | N159: A20067:I20075 | O159: 1698 | P159: A20367:I20375 | Q159: 1723 | R159: A20667:I20675 | S159: 1748 | T159: A20967:I20975 | U159: 1773 | V159: A21267:I21275 | W159: 1798 | X159: A21567:I21575
A160: 1524 | B160: A18279:I18287 | C160: 1549 | D160: A18579:I18587 | E160: 1574 | F160: A18879:I18887 | G160: 1599 | H160: A19179:I19187 | I160: 1624 | J160: A19479:I19487 | K160: 1649 | L160: A19779:I19787 | M160: 1674 | N160: A20079:I20087 | O160: 1699 | P160: A20379:I20387 | Q160: 1724 | R160: A20679:I20687 | S160: 1749 | T160: A20979:I20987 | U160: 1774 | V160: A21279:I21287 | W160: 1799 | X160: A21579:I21587
A161: 1525 | B161: A18291:I18299 | C161: 1550 | D161: A18591:I18599 | E161: 1575 | F161: A18891:I18899 | G161: 1600 | H161: A19191:I19199 | I161: 1625 | J161: A19491:I19499 | K161: 1650 | L161: A19791:I19799 | M161: 1675 | N161: A20091:I20099 | O161: 1700 | P161: A20391:I20399 | Q161: 1725 | R161: A20691:I20699 | S161: 1750 | T161: A20991:I20999 | U161: 1775 | V161: A21291:I21299 | W161: 1800 | X161: A21591:I21599
B163: Formule: | D163: Formule: | F163: Formule: | H163: Formule: | J163: Formule: | L163: Formule: | N163: Formule: | P163: Formule: | R163: Formule: | T163: Formule: | V163: Formule: | X163: Formule: | AA163: A21591 | AB163: I21599
A164: 1801 | B164: A21603:I21611 | C164: 1826 | D164: =LEFT(B164,1)&MID(B164,2,5)+300&":"&MID(B164,8,1)&MID(B164,9,5)+300 -> A21903:I21911 | E164: 1851 | F164: =LEFT(D164,1)&MID(D164,2,5)+300&":"&MID(D164,8,1)&MID(D164,9,5)+300 -> A22203:I22211 | H164: =LEFT(F164,1)&MID(F164,2,5)+300&":"&MID(F164,8,1)&MID(F164,9,5)+300 -> A22503:I22511 | J164: =LEFT(H164,1)&MID(H164,2,5)+300&":"&MID(H164,8,1)&MID(H164,9,5)+300 -> A22803:I22811 | L164: =LEFT(J164,1)&MID(J164,2,5)+300&":"&MID(J164,8,1)&MID(J164,9,5)+300 -> A23103:I23111 | N164: =LEFT(L164,1)&MID(L164,2,5)+300&":"&MID(L164,8,1)&MID(L164,9,5)+300 -> A23403:I23411 | P164: =LEFT(N164,1)&MID(N164,2,5)+300&":"&MID(N164,8,1)&MID(N164,9,5)+300 -> A23703:I23711 | R164: =LEFT(P164,1)&MID(P164,2,5)+300&":"&MID(P164,8,1)&MID(P164,9,5)+300 -> A24003:I24011 | T164: =LEFT(R164,1)&MID(R164,2,5)+300&":"&MID(R164,8,1)&MID(R164,9,5)+300 -> A24303:I24311 | V164: =LEFT(T164,1)&MID(T164,2,5)+300&":"&MID(T164,8,1)&MID(T164,9,5)+300 -> A24603:I24611 | X164: =LEFT(V164,1)&MID(V164,2,5)+300&":"&MID(V164,8,1)&MID(V164,9,5)+300 -> A24903:I24911 | AA164: =LEFT(AA163,1)&RIGHT(AA163,5)+12 -> A21603 | AB164: =LEFT(AB163,1)&RIGHT(AB163,5)+12 -> I21611 | AC164: =_xlfn.CONCAT(AA164,":",AB164) -> A21603:I21611
A165: 1802 | B165: A21615:I21623 | C165: 1827 | E165: 1852 | AA165: =LEFT(AA164,1)&RIGHT(AA164,5)+12 -> A21615 | AB165: I21623 | AC165: =_xlfn.CONCAT(AA165,":",AB165) -> A21615:I21623
A166: 1803 | B166: A21627:I21635 | C166: 1828 | E166: 1853 | AA166: =LEFT(AA165,1)&RIGHT(AA165,5)+12 -> A21627 | AB166: I21635 | AC166: A21627:I21635
A167: 1804 | B167: A21639:I21647 | C167: 1829 | E167: 1854 | AA167: =LEFT(AA166,1)&RIGHT(AA166,5)+12 -> A21639 | AB167: I21647 | AC167: A21639:I21647
A168: 1805 | B168: A21651:I21659 | C168: 1830 | E168: 1855 | AA168: =LEFT(AA167,1)&RIGHT(AA167,5)+12 -> A21651 | AB168: I21659 | AC168: A21651:I21659
A169: 1806 | B169: A21663:I21671 | C169: 1831 | E169: 1856 | AA169: =LEFT(AA168,1)&RIGHT(AA168,5)+12 -> A21663 | AB169: I21671 | AC169: A21663:I21671
A170: 1807 | B170: A21675:I21683 | C170: 1832 | E170: 1857 | AA170: =LEFT(AA169,1)&RIGHT(AA169,5)+12 -> A21675 | AB170: I21683 | AC170: A21675:I21683
A171: 1808 | B171: A21687:I21695 | C171: 1833 | E171: 1858 | AA171: =LEFT(AA170,1)&RIGHT(AA170,5)+12 -> A21687 | AB171: I21695 | AC171: A21687:I21695
A172: 1809 | B172: A21699:I21707 | C172: 1834 | E172: 1859 | AA172: =LEFT(AA171,1)&RIGHT(AA171,5)+12 -> A21699 | AB172: I21707 | AC172: A21699:I21707
A173: 1810 | B173: A21711:I21719 | C173: 1835 | E173: 1860 | AA173: =LEFT(AA172,1)&RIGHT(AA172,5)+12 -> A21711 | AB173: I21719 | AC173: A21711:I21719
A174: 1811 | B174: A21723:I21731 | C174: 1836 | E174: 1861 | AA174: =LEFT(AA173,1)&RIGHT(AA173,5)+12 -> A21723 | AB174: I21731 | AC174: A21723:I21731
A175: 1812 | B175: A21735:I21743 | C175: 1837 | E175: 1862 | AA175: =LEFT(AA174,1)&RIGHT(AA174,5)+12 -> A21735 | AB175: I21743 | AC175: A21735:I21743
A176: 1813 | B176: A21747:I21755 | C176: 1838 | E176: 1863 | AA176: =LEFT(AA175,1)&RIGHT(AA175,5)+12 -> A21747 | AB176: I21755 | AC176: A21747:I21755
A177: 1814 | B177: A21759:I21767 | C177: 1839 | E177: 1864 | AA177: =LEFT(AA176,1)&RIGHT(AA176,5)+12 -> A21759 | AB177: I21767 | AC177: A21759:I21767
A178: 1815 | B178: A21771:I21779 | C178: 1840 | E178: 1865 | AA178: =LEFT(AA177,1)&RIGHT(AA177,5)+12 -> A21771 | AB178: I21779 | AC178: A21771:I21779
A179: 1816 | B179: A21783:I21791 | C179: 1841 | E179: 1866 | AA179: =LEFT(AA178,1)&RIGHT(AA178,5)+12 -> A21783 | AB179: I21791 | AC179: A21783:I21791
A180: 1817 | B180: A21795:I21803 | C180: 1842 | E180: 1867 | AA180: =LEFT(AA179,1)&RIGHT(AA179,5)+12 -> A21795 | AB180: I21803 | AC180: A21795:I21803
A181: 1818 | B181: A21807:I21815 | C181: 1843 | E181: 1868 | AA181: =LEFT(AA180,1)&RIGHT(AA180,5)+12 -> A21807 | AB181: I21815 | AC181: A21807:I21815
A182: 1819 | B182: A21819:I21827 | C182: 1844 | E182: 1869 | AA182: =LEFT(AA181,1)&RIGHT(AA181,5)+12 -> A21819 | AB182: I21827 | AC182: A21819:I21827
A183: 1820 | B183: A21831:I21839 | C183: 1845 | E183: 1870 | AA183: =LEFT(AA182,1)&RIGHT(AA182,5)+12 -> A21831 | AB183: I21839 | AC183: A21831:I21839
A184: 1821 | B184: A21843:I21851 | C184: 1846 | E184: 1871 | AA184: =LEFT(AA183,1)&RIGHT(AA183,5)+12 -> A21843 | AB184: I21851 | AC184: A21843:I21851
A185: 1822 | B185: A21855:I21863 | C185: 1847 | E185: 1872 | AA185: =LEFT(AA184,1)&RIGHT(AA184,5)+12 -> A21855 | AB185: I21863 | AC185: A21855:I21863
A186: 1823 | B186: A21867:I21875 | C186: 1848 | E186: 1873 | AA186: =LEFT(AA185,1)&RIGHT(AA185,5)+12 -> A21867 | AB186: I21875 | AC186: A21867:I21875
A187: 1824 | B187: A21879:I21887 | C187: 1849 | E187: 1874 | AA187: =LEFT(AA186,1)&RIGHT(AA186,5)+12 -> A21879 | AB187: I21887 | AC187: A21879:I21887
A188: 1825 | B188: A21891:I21899 | C188: 1850 | E188: 1875 | AA188: =LEFT(AA187,1)&RIGHT(AA187,5)+12 -> A21891 | AB188: I21899 | AC188: A21891:I21899
B190: Formule: | D190: Formule: | F190: Formule: | H190: Formule: | J190: Formule: | L190: Formule: | N190: Formule: | P190: Formule: | R190: Formule: | T190: Formule: | V190: Formule: | X190: Formule:

Sheet Opgaven
B1: Opgave: | D1: 1
C3: 8 | E3: 3 | G3: 9
C4: 5 | D4: 2 | E4: 9 | G4: 1 | H4: 4
B5: 4 | E5: 1 | G5: 2
A6: 7 | C6: 2 | D6: 4
A8: 4 | B8: 9 | F8: 5 | G8: 3
C9: 9 | I9: 8
A10: 2 | B10: 8
F11: 1 | G11: 4 | H11: 9 | I11: 6
B13: Opgave: | D13: 2
C15: 6 | E15: 2 | F15: 9 | G15: 3
B16: 3 | C16: 4 | D16: 7 | F16: 6 | G16: 2
E17: 8
A18: 1 | G18: 9
F19: 4
B20: 5 | E20: 1 | H20: 3
A21: 7 | G21: 4 | I21: 5
A22: 2 | H22: 6
B23: 4 | C23: 5 | E23: 3 | G23: 7 | H23: 8 | I23: 2
B25: Opgave: | D25: 3
A27: 9 | B27: 7 | D27: 5 | F27: 6
A28: 8 | B28: 4 | C28: 5 | G28: 6
B29: 6 | D29: 1 | I29: 7
B30: 8 | G30: 7
F31: 9 | G31: 5 | H31: 2
B32: 3 | H32: 4 | I32: 8
B33: 9 | D33: 6 | F33: 5 | G33: 2
E34: 4
C35: 4 | E35: 9 | F35: 8 | H35: 7 | I35: 6
B37: Opgave: | D37: 4
A39: 8 | B39: 5 | F39: 6 | I39: 2
A40: 6 | C40: 1 | E40: 4
D41: 8 | G41: 3
A42: 9 | D42: 2 | H42: 5
D43: 1 | G43: 4
B44: 2 | D44: 5 | E44: 8 | G44: 1 | I44: 3
B45: 4 | G45: 6
B46: 8 | D46: 6 | H46: 9
C47: 2 | H47: 3 | I47: 8
B49: Opgave: | D49: 5
F51: 8
B52: 6 | E52: 2
B53: 8 | C53: 1 | H53: 3 | I53: 5
B54: 5 | G54: 1
A55: 6 | C55: 7 | E55: 8
B56: 9 | C56: 4 | E56: 7 | G56: 6
B57: 1 | F57: 4 | I57: 7
B58: 7 | F58: 5 | H58: 8 | I58: 6
C59: 3 | F59: 9 | I59: 1
B61: Opgave: | D61: 6
A63: 1 | D63: 4 | G63: 5 | I63: 2
D64: 9 | H64: 8 | I64: 3
F65: 3
B66: 6 | E66: 8 | H66: 5
G67: 3 | I67: 9
D68: 1 | F68: 7 | G68: 2 | H68: 4
B69: 4 | C69: 1 | D69: 2
A70: 7 | D70: 8 | F70: 4
A71: 6 | C71: 2 | D71: 7 | I71: 4
B73: Opgave: | D73: 7
C75: 2 | H75: 7 | I75: 1
C76: 1 | D76: 9 | F76: 2 | G76: 4
B77: 3 | E77: 8 | I77: 2
B78: 6 | D78: 5 | F78: 7 | H78: 9
A79: 5 | D79: 6 | G79: 2 | H79: 4
C80: 3 | I80: 6
E81: 7 | F81: 8 | G81: 1
D83: 3 | E83: 6 | F83: 4 | G83: 8
B85: Opgave: | D85: 8
A88: 7 | B88: 1 | C88: 2 | G88: 6
B89: 5 | D89: 4 | I89: 7
D90: 1 | E90: 4 | F90: 6 | G90: 8 | I90: 3
B91: 4 | C91: 8 | E91: 7 | G91: 9
C92: 3 | G92: 7 | H92: 1
E93: 1
C94: 9 | F94: 3 | H94: 5
B95: 2 | D95: 7 | E95: 9
B97: Opgave: | D97: 9
A99: 5 | D99: 6 | I99: 3
D100: 4 | F100: 3 | I100: 1
B101: 1 | C101: 8 | D101: 2 | E101: 9
B102: 3 | C102: 6 | E102: 1
A103: 7 | D103: 5 | F103: 9
G104: 9
A105: 4 | C105: 9 | E105: 7 | H105: 6
A106: 8 | B106: 5 | H106: 3
G107: 8 | H107: 2
B109: Opgave: | D109: 10
C111: 8 | E111: 1 | H111: 2
D112: 7 | F112: 6
A113: 6 | B113: 9 | F113: 2
B114: 1 | G114: 3 | H114: 4 | I114: 7
C115: 5 | D115: 4 | F115: 8
D116: 6 | E116: 7
C117: 1 | G117: 9
C118: 9 | E118: 5 | F118: 4 | I118: 8
A119: 4 | D119: 8 | F119: 9 | G119: 6 | H119: 1
B121: Opgave: | D121: 11
A123: 6 | D123: 3 | F123: 4 | G123: 8
F124: 7
B125: 8 | C125: 3 | F125: 6
A126: 2 | E126: 7 | F126: 5 | I126: 6
C127: 9 | G127: 4
E128: 6 | F128: 2 | H128: 1
A129: 5 | H129: 7 | I129: 8
B130: 7 | D130: 8 | E130: 2 | H130: 6
B131: 1 | G131: 9 | I131: 4
B133: Opgave: | D133: 12
C135: 1 | E135: 2
B136: 6 | F136: 3
G137: 5 | H137: 1 | I137: 3
F138: 1
A139: 3 | B139: 8 | C139: 9 | E139: 7 | H139: 2 | I139: 1
C140: 6 | D140: 4 | E140: 3
A141: 2 | E141: 5 | F141: 7 | G141: 8 | H141: 6
G142: 7 | H142: 9
A143: 9 | E143: 8 | F143: 6
B145: Opgave: | D145: 13
C147: 3
D148: 3 | E148: 2 | H148: 6
A149: 6 | B149: 4 | C149: 2 | E149: 9
A150: 1 | C150: 5 | E150: 6 | I150: 2
D151: 8 | G151: 3
E152: 5 | F152: 7 | G152: 1 | I152: 6
A153: 9 | F153: 4 | I153: 3
D154: 7 | I154: 1
B155: 5 | E155: 3 | H155: 9
B157: Opgave: | D157: 14
A159: 3 | D159: 9 | E159: 2 | G159: 6 | H159: 5
A160: 8 | C160: 6 | D160: 5
A161: 4 | B161: 9 | E161: 6 | G161: 1
B163: 7 | D163: 4 | E163: 5 | H163: 9
D164: 3 | F164: 8 | G164: 7
A165: 2 | B165: 4 | G165: 3 | H165: 1
A166: 6 | E166: 9
D167: 1 | H167: 8
B169: Opgave: | D169: 15
A171: 9 | B171: 6 | F171: 5 | H171: 1 | I171: 3
B172: 1 | C172: 5 | F172: 6 | G172: 7
C173: 7 | I173: 4
B174: 8 | D174: 6 | E174: 1 | F174: 3
F175: 9 | H175: 8
D176: 7 | H176: 3 | I176: 6
E177: 3
D178: 2 | F178: 1 | G178: 9 | I178: 7
A179: 4 | C179: 6
B181: Opgave: | D181: 16
A183: 1 | C183: 7 | E183: 6 | F183: 9 | I183: 2
C184: 3 | D184: 2
A185: 5 | B185: 6 | D185: 8 | F185: 1 | H185: 7
B186: 2 | F186: 8 | G186: 5
A187: 3 | G187: 8 | H187: 6 | I187: 1
I188: 9
A189: 7 | H189: 8 | I189: 5
A191: 2 | D191: 4 | E191: 9 | F191: 7
B193: Opgave: | D193: 17
A195: 7 | D195: 1 | F195: 6
C196: 2 | G196: 1
C197: 1 | F197: 5 | H197: 2
A198: 4 | C198: 7 | D198: 3 | F198: 2
G199: 9 | I199: 7
D200: 9 | F200: 8
A201: 2 | C201: 5 | F201: 9 | G201: 4
I202: 6
A203: 1 | C203: 8 | F203: 4 | G203: 2 | I203: 5
B205: Opgave: | D205: 18
D208: 9 | E208: 3 | H208: 4
A209: 9 | C209: 3 | D209: 2 | E209: 8 | F209: 7
A210: 7 | H210: 9
I211: 6
B212: 8 | D212: 6 | E212: 4 | G212: 3 | H212: 7
C213: 8 | I213: 2
C214: 9 | D214: 3 | E214: 2 | G214: 6
C215: 6 | E215: 5 | F215: 1 | G215: 4
B217: Opgave: | D217: 19
F219: 5 | H219: 4
B220: 3 | G220: 9
D221: 3 | G221: 7
A222: 4 | B222: 5 | C222: 2 | E222: 7 | G222: 8
B223: 1 | D223: 6 | G223: 4 | I223: 5
A224: 3
A225: 1 | B225: 7 | F225: 9 | I225: 8
A226: 9 | E226: 3 | F226: 2
A227: 2 | F227: 4 | H227: 6
B229: Opgave: | D229: 20
C231: 1 | F231: 6 | H231: 9
A232: 2 | B232: 5
E233: 1 | F233: 4 | I233: 7
A234: 5 | C234: 4 | D234: 2
C235: 8 | E235: 6
E236: 9 | G236: 8 | I236: 2
B237: 1 | C237: 5 | E237: 7 | F237: 3 | G237: 9
H238: 4 | I238: 1
D239: 8 | G239: 7 | I239: 3
B241: Opgave: | D241: 21
D243: 5
E244: 9 | G244: 8 | I244: 3
A245: 9 | C245: 4 | D245: 8 | G245: 6 | H245: 7 | I245: 2
B246: 6 | H246: 8 | I246: 5
D247: 1 | G247: 9
... 3407 more rows

Sheet Oplossingen
B1: Opgave: | D1: 1
A3: 1 | B3: 2 | C3: 8 | D3: 7 | E3: 3 | F3: 4 | G3: 9 | H3: 6 | I3: 5
A4: 3 | B4: 6 | C4: 5 | D4: 2 | E4: 9 | F4: 8 | G4: 1 | H4: 4 | I4: 7
A5: 9 | B5: 4 | C5: 7 | D5: 5 | E5: 1 | F5: 6 | G5: 2 | H5: 8 | I5: 3
A6: 7 | B6: 5 | C6: 2 | D6: 4 | E6: 6 | F6: 3 | G6: 8 | H6: 1 | I6: 9
A7: 8 | B7: 3 | C7: 1 | D7: 9 | E7: 7 | F7: 2 | G7: 6 | H7: 5 | I7: 4
A8: 4 | B8: 9 | C8: 6 | D8: 1 | E8: 8 | F8: 5 | G8: 3 | H8: 7 | I8: 2
A9: 6 | B9: 1 | C9: 9 | D9: 3 | E9: 4 | F9: 7 | G9: 5 | H9: 2 | I9: 8
A10: 2 | B10: 8 | C10: 4 | D10: 6 | E10: 5 | F10: 9 | G10: 7 | H10: 3 | I10: 1
A11: 5 | B11: 7 | C11: 3 | D11: 8 | E11: 2 | F11: 1 | G11: 4 | H11: 9 | I11: 6
B13: Opgave: | D13: 2
A15: 8 | B15: 7 | C15: 6 | D15: 1 | E15: 2 | F15: 9 | G15: 3 | H15: 5 | I15: 4
A16: 9 | B16: 3 | C16: 4 | D16: 7 | E16: 5 | F16: 6 | G16: 2 | H16: 1 | I16: 8
A17: 5 | B17: 2 | C17: 1 | D17: 4 | E17: 8 | F17: 3 | G17: 6 | H17: 7 | I17: 9
A18: 1 | B18: 8 | C18: 2 | D18: 3 | E18: 7 | F18: 5 | G18: 9 | H18: 4 | I18: 6
A19: 3 | B19: 6 | C19: 7 | D19: 8 | E19: 9 | F19: 4 | G19: 5 | H19: 2 | I19: 1
A20: 4 | B20: 5 | C20: 9 | D20: 6 | E20: 1 | F20: 2 | G20: 8 | H20: 3 | I20: 7
A21: 7 | B21: 1 | C21: 3 | D21: 2 | E21: 6 | F21: 8 | G21: 4 | H21: 9 | I21: 5
A22: 2 | B22: 9 | C22: 8 | D22: 5 | E22: 4 | F22: 7 | G22: 1 | H22: 6 | I22: 3
A23: 6 | B23: 4 | C23: 5 | D23: 9 | E23: 3 | F23: 1 | G23: 7 | H23: 8 | I23: 2
B25: Opgave: | D25: 3
A27: 9 | B27: 7 | C27: 1 | D27: 5 | E27: 3 | F27: 6 | G27: 4 | H27: 8 | I27: 2
A28: 8 | B28: 4 | C28: 5 | D28: 9 | E28: 2 | F28: 7 | G28: 6 | H28: 3 | I28: 1
A29: 2 | B29: 6 | C29: 3 | D29: 1 | E29: 8 | F29: 4 | G29: 9 | H29: 5 | I29: 7
A30: 5 | B30: 8 | C30: 2 | D30: 4 | E30: 1 | F30: 3 | G30: 7 | H30: 6 | I30: 9
A31: 4 | B31: 1 | C31: 7 | D31: 8 | E31: 6 | F31: 9 | G31: 5 | H31: 2 | I31: 3
A32: 6 | B32: 3 | C32: 9 | D32: 7 | E32: 5 | F32: 2 | G32: 1 | H32: 4 | I32: 8
A33: 3 | B33: 9 | C33: 8 | D33: 6 | E33: 7 | F33: 5 | G33: 2 | H33: 1 | I33: 4
A34: 7 | B34: 2 | C34: 6 | D34: 3 | E34: 4 | F34: 1 | G34: 8 | H34: 9 | I34: 5
A35: 1 | B35: 5 | C35: 4 | D35: 2 | E35: 9 | F35: 8 | G35: 3 | H35: 7 | I35: 6
B37: Opgave: | D37: 4
A39: 8 | B39: 5 | C39: 7 | D39: 3 | E39: 1 | F39: 6 | G39: 9 | H39: 4 | I39: 2
A40: 6 | B40: 3 | C40: 1 | D40: 9 | E40: 4 | F40: 2 | G40: 5 | H40: 8 | I40: 7
A41: 2 | B41: 9 | C41: 4 | D41: 8 | E41: 5 | F41: 7 | G41: 3 | H41: 6 | I41: 1
A42: 9 | B42: 1 | C42: 3 | D42: 2 | E42: 7 | F42: 4 | G42: 8 | H42: 5 | I42: 6
A43: 5 | B43: 7 | C43: 8 | D43: 1 | E43: 6 | F43: 3 | G43: 4 | H43: 2 | I43: 9
A44: 4 | B44: 2 | C44: 6 | D44: 5 | E44: 8 | F44: 9 | G44: 1 | H44: 7 | I44: 3
A45: 3 | B45: 4 | C45: 9 | D45: 7 | E45: 2 | F45: 8 | G45: 6 | H45: 1 | I45: 5
A46: 7 | B46: 8 | C46: 5 | D46: 6 | E46: 3 | F46: 1 | G46: 2 | H46: 9 | I46: 4
A47: 1 | B47: 6 | C47: 2 | D47: 4 | E47: 9 | F47: 5 | G47: 7 | H47: 3 | I47: 8
B49: Opgave: | D49: 5
A51: 3 | B51: 4 | C51: 2 | D51: 1 | E51: 5 | F51: 8 | G51: 7 | H51: 6 | I51: 9
A52: 7 | B52: 6 | C52: 5 | D52: 9 | E52: 2 | F52: 3 | G52: 8 | H52: 1 | I52: 4
A53: 9 | B53: 8 | C53: 1 | D53: 6 | E53: 4 | F53: 7 | G53: 2 | H53: 3 | I53: 5
A54: 2 | B54: 5 | C54: 8 | D54: 4 | E54: 9 | F54: 6 | G54: 1 | H54: 7 | I54: 3
A55: 6 | B55: 3 | C55: 7 | D55: 5 | E55: 8 | F55: 1 | G55: 4 | H55: 9 | I55: 2
A56: 1 | B56: 9 | C56: 4 | D56: 3 | E56: 7 | F56: 2 | G56: 6 | H56: 5 | I56: 8
A57: 5 | B57: 1 | C57: 6 | D57: 8 | E57: 3 | F57: 4 | G57: 9 | H57: 2 | I57: 7
A58: 4 | B58: 7 | C58: 9 | D58: 2 | E58: 1 | F58: 5 | G58: 3 | H58: 8 | I58: 6
A59: 8 | B59: 2 | C59: 3 | D59: 7 | E59: 6 | F59: 9 | G59: 5 | H59: 4 | I59: 1
B61: Opgave: | D61: 6
A63: 1 | B63: 3 | C63: 6 | D63: 4 | E63: 7 | F63: 8 | G63: 5 | H63: 9 | I63: 2
A64: 4 | B64: 7 | C64: 5 | D64: 9 | E64: 2 | F64: 1 | G64: 6 | H64: 8 | I64: 3
A65: 9 | B65: 2 | C65: 8 | D65: 6 | E65: 5 | F65: 3 | G65: 4 | H65: 1 | I65: 7
A66: 2 | B66: 6 | C66: 4 | D66: 3 | E66: 8 | F66: 9 | G66: 7 | H66: 5 | I66: 1
A67: 8 | B67: 1 | C67: 7 | D67: 5 | E67: 4 | F67: 2 | G67: 3 | H67: 6 | I67: 9
A68: 5 | B68: 9 | C68: 3 | D68: 1 | E68: 6 | F68: 7 | G68: 2 | H68: 4 | I68: 8
A69: 3 | B69: 4 | C69: 1 | D69: 2 | E69: 9 | F69: 6 | G69: 8 | H69: 7 | I69: 5
A70: 7 | B70: 5 | C70: 9 | D70: 8 | E70: 3 | F70: 4 | G70: 1 | H70: 2 | I70: 6
A71: 6 | B71: 8 | C71: 2 | D71: 7 | E71: 1 | F71: 5 | G71: 9 | H71: 3 | I71: 4
B73: Opgave: | D73: 7
A75: 8 | B75: 5 | C75: 2 | D75: 4 | E75: 3 | F75: 6 | G75: 9 | H75: 7 | I75: 1
A76: 6 | B76: 7 | C76: 1 | D76: 9 | E76: 5 | F76: 2 | G76: 4 | H76: 8 | I76: 3
A77: 4 | B77: 3 | C77: 9 | D77: 7 | E77: 8 | F77: 1 | G77: 6 | H77: 5 | I77: 2
A78: 1 | B78: 6 | C78: 4 | D78: 5 | E78: 2 | F78: 7 | G78: 3 | H78: 9 | I78: 8
A79: 5 | B79: 9 | C79: 8 | D79: 6 | E79: 1 | F79: 3 | G79: 2 | H79: 4 | I79: 7
A80: 7 | B80: 2 | C80: 3 | D80: 8 | E80: 4 | F80: 9 | G80: 5 | H80: 1 | I80: 6
A81: 3 | B81: 4 | C81: 5 | D81: 2 | E81: 7 | F81: 8 | G81: 1 | H81: 6 | I81: 9
A82: 2 | B82: 8 | C82: 6 | D82: 1 | E82: 9 | F82: 5 | G82: 7 | H82: 3 | I82: 4
A83: 9 | B83: 1 | C83: 7 | D83: 3 | E83: 6 | F83: 4 | G83: 8 | H83: 2 | I83: 5
B85: Opgave: | D85: 8
A87: 8 | B87: 3 | C87: 4 | D87: 6 | E87: 2 | F87: 7 | G87: 5 | H87: 9 | I87: 1
A88: 7 | B88: 1 | C88: 2 | D88: 5 | E88: 3 | F88: 9 | G88: 6 | H88: 4 | I88: 8
A89: 9 | B89: 5 | C89: 6 | D89: 4 | E89: 8 | F89: 1 | G89: 2 | H89: 3 | I89: 7
A90: 5 | B90: 9 | C90: 7 | D90: 1 | E90: 4 | F90: 6 | G90: 8 | H90: 2 | I90: 3
A91: 1 | B91: 4 | C91: 8 | D91: 3 | E91: 7 | F91: 2 | G91: 9 | H91: 6 | I91: 5
A92: 2 | B92: 6 | C92: 3 | D92: 9 | E92: 5 | F92: 8 | G92: 7 | H92: 1 | I92: 4
A93: 6 | B93: 8 | C93: 5 | D93: 2 | E93: 1 | F93: 4 | G93: 3 | H93: 7 | I93: 9
A94: 4 | B94: 7 | C94: 9 | D94: 8 | E94: 6 | F94: 3 | G94: 1 | H94: 5 | I94: 2
A95: 3 | B95: 2 | C95: 1 | D95: 7 | E95: 9 | F95: 5 | G95: 4 | H95: 8 | I95: 6
B97: Opgave: | D97: 9
A99: 5 | B99: 7 | C99: 4 | D99: 6 | E99: 8 | F99: 1 | G99: 2 | H99: 9 | I99: 3
A100: 6 | B100: 9 | C100: 2 | D100: 4 | E100: 5 | F100: 3 | G100: 7 | H100: 8 | I100: 1
A101: 3 | B101: 1 | C101: 8 | D101: 2 | E101: 9 | F101: 7 | G101: 6 | H101: 5 | I101: 4
A102: 9 | B102: 3 | C102: 6 | D102: 8 | E102: 1 | F102: 4 | G102: 5 | H102: 7 | I102: 2
A103: 7 | B103: 8 | C103: 1 | D103: 5 | E103: 2 | F103: 9 | G103: 3 | H103: 4 | I103: 6
A104: 2 | B104: 4 | C104: 5 | D104: 7 | E104: 3 | F104: 6 | G104: 9 | H104: 1 | I104: 8
A105: 4 | B105: 2 | C105: 9 | D105: 3 | E105: 7 | F105: 8 | G105: 1 | H105: 6 | I105: 5
A106: 8 | B106: 5 | C106: 7 | D106: 1 | E106: 6 | F106: 2 | G106: 4 | H106: 3 | I106: 9
A107: 1 | B107: 6 | C107: 3 | D107: 9 | E107: 4 | F107: 5 | G107: 8 | H107: 2 | I107: 7
B109: Opgave: | D109: 10
A111: 5 | B111: 7 | C111: 8 | D111: 9 | E111: 1 | F111: 3 | G111: 4 | H111: 2 | I111: 6
A112: 1 | B112: 3 | C112: 2 | D112: 7 | E112: 4 | F112: 6 | G112: 8 | H112: 9 | I112: 5
A113: 6 | B113: 9 | C113: 4 | D113: 5 | E113: 8 | F113: 2 | G113: 7 | H113: 3 | I113: 1
A114: 8 | B114: 1 | C114: 6 | D114: 2 | E114: 9 | F114: 5 | G114: 3 | H114: 4 | I114: 7
A115: 7 | B115: 2 | C115: 5 | D115: 4 | E115: 3 | F115: 8 | G115: 1 | H115: 6 | I115: 9
A116: 9 | B116: 4 | C116: 3 | D116: 6 | E116: 7 | F116: 1 | G116: 5 | H116: 8 | I116: 2
A117: 2 | B117: 8 | C117: 1 | D117: 3 | E117: 6 | F117: 7 | G117: 9 | H117: 5 | I117: 4
A118: 3 | B118: 6 | C118: 9 | D118: 1 | E118: 5 | F118: 4 | G118: 2 | H118: 7 | I118: 8
A119: 4 | B119: 5 | C119: 7 | D119: 8 | E119: 2 | F119: 9 | G119: 6 | H119: 1 | I119: 3
B121: Opgave: | D121: 11
A123: 6 | B123: 2 | C123: 7 | D123: 3 | E123: 1 | F123: 4 | G123: 8 | H123: 9 | I123: 5
A124: 4 | B124: 9 | C124: 5 | D124: 2 | E124: 8 | F124: 7 | G124: 6 | H124: 3 | I124: 1
A125: 1 | B125: 8 | C125: 3 | D125: 5 | E125: 9 | F125: 6 | G125: 2 | H125: 4 | I125: 7
A126: 2 | B126: 4 | C126: 1 | D126: 9 | E126: 7 | F126: 5 | G126: 3 | H126: 8 | I126: 6
A127: 7 | B127: 6 | C127: 9 | D127: 1 | E127: 3 | F127: 8 | G127: 4 | H127: 5 | I127: 2
A128: 3 | B128: 5 | C128: 8 | D128: 4 | E128: 6 | F128: 2 | G128: 7 | H128: 1 | I128: 9
A129: 5 | B129: 3 | C129: 2 | D129: 6 | E129: 4 | F129: 9 | G129: 1 | H129: 7 | I129: 8
A130: 9 | B130: 7 | C130: 4 | D130: 8 | E130: 2 | F130: 1 | G130: 5 | H130: 6 | I130: 3
A131: 8 | B131: 1 | C131: 6 | D131: 7 | E131: 5 | F131: 3 | G131: 9 | H131: 2 | I131: 4
B133: Opgave: | D133: 12
A135: 8 | B135: 3 | C135: 1 | D135: 5 | E135: 2 | F135: 9 | G135: 6 | H135: 4 | I135: 7
A136: 7 | B136: 6 | C136: 5 | D136: 1 | E136: 4 | F136: 3 | G136: 2 | H136: 8 | I136: 9
A137: 4 | B137: 9 | C137: 2 | D137: 7 | E137: 6 | F137: 8 | G137: 5 | H137: 1 | I137: 3
A138: 5 | B138: 2 | C138: 4 | D138: 8 | E138: 9 | F138: 1 | G138: 3 | H138: 7 | I138: 6
A139: 3 | B139: 8 | C139: 9 | D139: 6 | E139: 7 | F139: 5 | G139: 4 | H139: 2 | I139: 1
A140: 1 | B140: 7 | C140: 6 | D140: 4 | E140: 3 | F140: 2 | G140: 9 | H140: 5 | I140: 8
A141: 2 | B141: 1 | C141: 3 | D141: 9 | E141: 5 | F141: 7 | G141: 8 | H141: 6 | I141: 4
A142: 6 | B142: 5 | C142: 8 | D142: 3 | E142: 1 | F142: 4 | G142: 7 | H142: 9 | I142: 2
A143: 9 | B143: 4 | C143: 7 | D143: 2 | E143: 8 | F143: 6 | G143: 1 | H143: 3 | I143: 5
B145: Opgave: | D145: 13
A147: 8 | B147: 9 | C147: 3 | D147: 4 | E147: 7 | F147: 6 | G147: 2 | H147: 1 | I147: 5
A148: 5 | B148: 1 | C148: 7 | D148: 3 | E148: 2 | F148: 8 | G148: 9 | H148: 6 | I148: 4
A149: 6 | B149: 4 | C149: 2 | D149: 1 | E149: 9 | F149: 5 | G149: 8 | H149: 3 | I149: 7
A150: 1 | B150: 8 | C150: 5 | D150: 9 | E150: 6 | F150: 3 | G150: 7 | H150: 4 | I150: 2
A151: 2 | B151: 7 | C151: 6 | D151: 8 | E151: 4 | F151: 1 | G151: 3 | H151: 5 | I151: 9
A152: 4 | B152: 3 | C152: 9 | D152: 2 | E152: 5 | F152: 7 | G152: 1 | H152: 8 | I152: 6
A153: 9 | B153: 2 | C153: 8 | D153: 5 | E153: 1 | F153: 4 | G153: 6 | H153: 7 | I153: 3
A154: 3 | B154: 6 | C154: 4 | D154: 7 | E154: 8 | F154: 9 | G154: 5 | H154: 2 | I154: 1
A155: 7 | B155: 5 | C155: 1 | D155: 6 | E155: 3 | F155: 2 | G155: 4 | H155: 9 | I155: 8
B157: Opgave: | D157: 14
A159: 3 | B159: 1 | C159: 7 | D159: 9 | E159: 2 | F159: 4 | G159: 6 | H159: 5 | I159: 8
A160: 8 | B160: 2 | C160: 6 | D160: 5 | E160: 3 | F160: 1 | G160: 4 | H160: 7 | I160: 9
A161: 4 | B161: 9 | C161: 5 | D161: 8 | E161: 6 | F161: 7 | G161: 1 | H161: 3 | I161: 2
A162: 5 | B162: 3 | C162: 4 | D162: 2 | E162: 7 | F162: 9 | G162: 8 | H162: 6 | I162: 1
A163: 1 | B163: 7 | C163: 8 | D163: 4 | E163: 5 | F163: 6 | G163: 2 | H163: 9 | I163: 3
A164: 9 | B164: 6 | C164: 2 | D164: 3 | E164: 1 | F164: 8 | G164: 7 | H164: 4 | I164: 5
A165: 2 | B165: 4 | C165: 9 | D165: 6 | E165: 8 | F165: 5 | G165: 3 | H165: 1 | I165: 7
A166: 6 | B166: 8 | C166: 1 | D166: 7 | E166: 9 | F166: 3 | G166: 5 | H166: 2 | I166: 4
A167: 7 | B167: 5 | C167: 3 | D167: 1 | E167: 4 | F167: 2 | G167: 9 | H167: 8 | I167: 6
B169: Opgave: | D169: 15
A171: 9 | B171: 6 | C171: 4 | D171: 8 | E171: 7 | F171: 5 | G171: 2 | H171: 1 | I171: 3
A172: 2 | B172: 1 | C172: 5 | D172: 3 | E172: 4 | F172: 6 | G172: 7 | H172: 9 | I172: 8
A173: 8 | B173: 3 | C173: 7 | D173: 1 | E173: 9 | F173: 2 | G173: 6 | H173: 5 | I173: 4
A174: 5 | B174: 8 | C174: 2 | D174: 6 | E174: 1 | F174: 3 | G174: 4 | H174: 7 | I174: 9
A175: 6 | B175: 7 | C175: 3 | D175: 4 | E175: 5 | F175: 9 | G175: 1 | H175: 8 | I175: 2
A176: 1 | B176: 4 | C176: 9 | D176: 7 | E176: 2 | F176: 8 | G176: 5 | H176: 3 | I176: 6
A177: 7 | B177: 2 | C177: 1 | D177: 9 | E177: 3 | F177: 4 | G177: 8 | H177: 6 | I177: 5
A178: 3 | B178: 5 | C178: 8 | D178: 2 | E178: 6 | F178: 1 | G178: 9 | H178: 4 | I178: 7
A179: 4 | B179: 9 | C179: 6 | D179: 5 | E179: 8 | F179: 7 | G179: 3 | H179: 2 | I179: 1
B181: Opgave: | D181: 16
A183: 1 | B183: 8 | C183: 7 | D183: 3 | E183: 6 | F183: 9 | G183: 4 | H183: 5 | I183: 2
A184: 4 | B184: 9 | C184: 3 | D184: 2 | E184: 7 | F184: 5 | G184: 6 | H184: 1 | I184: 8
A185: 5 | B185: 6 | C185: 2 | D185: 8 | E185: 4 | F185: 1 | G185: 9 | H185: 7 | I185: 3
A186: 9 | B186: 2 | C186: 6 | D186: 1 | E186: 3 | F186: 8 | G186: 5 | H186: 4 | I186: 7
A187: 3 | B187: 7 | C187: 5 | D187: 9 | E187: 2 | F187: 4 | G187: 8 | H187: 6 | I187: 1
A188: 8 | B188: 1 | C188: 4 | D188: 7 | E188: 5 | F188: 6 | G188: 3 | H188: 2 | I188: 9
A189: 7 | B189: 4 | C189: 9 | D189: 6 | E189: 1 | F189: 3 | G189: 2 | H189: 8 | I189: 5
A190: 6 | B190: 3 | C190: 1 | D190: 5 | E190: 8 | F190: 2 | G190: 7 | H190: 9 | I190: 4
A191: 2 | B191: 5 | C191: 8 | D191: 4 | E191: 9 | F191: 7 | G191: 1 | H191: 3 | I191: 6
B193: Opgave: | D193: 17
A195: 7 | B195: 8 | C195: 4 | D195: 1 | E195: 2 | F195: 6 | G195: 3 | H195: 5 | I195: 9
A196: 9 | B196: 5 | C196: 2 | D196: 7 | E196: 8 | F196: 3 | G196: 1 | H196: 6 | I196: 4
A197: 6 | B197: 3 | C197: 1 | D197: 4 | E197: 9 | F197: 5 | G197: 7 | H197: 2 | I197: 8
A198: 4 | B198: 9 | C198: 7 | D198: 3 | E198: 6 | F198: 2 | G198: 5 | H198: 8 | I198: 1
A199: 8 | B199: 2 | C199: 6 | D199: 5 | E199: 4 | F199: 1 | G199: 9 | H199: 3 | I199: 7
A200: 5 | B200: 1 | C200: 3 | D200: 9 | E200: 7 | F200: 8 | G200: 6 | H200: 4 | I200: 2
A201: 2 | B201: 6 | C201: 5 | D201: 8 | E201: 1 | F201: 9 | G201: 4 | H201: 7 | I201: 3
A202: 3 | B202: 4 | C202: 9 | D202: 2 | E202: 5 | F202: 7 | G202: 8 | H202: 1 | I202: 6
A203: 1 | B203: 7 | C203: 8 | D203: 6 | E203: 3 | F203: 4 | G203: 2 | H203: 9 | I203: 5
B205: Opgave: | D205: 18
A207: 8 | B207: 5 | C207: 7 | D207: 1 | E207: 6 | F207: 4 | G207: 9 | H207: 2 | I207: 3
A208: 6 | B208: 2 | C208: 1 | D208: 9 | E208: 3 | F208: 5 | G208: 7 | H208: 4 | I208: 8
A209: 9 | B209: 4 | C209: 3 | D209: 2 | E209: 8 | F209: 7 | G209: 5 | H209: 6 | I209: 1
A210: 7 | B210: 6 | C210: 5 | D210: 8 | E210: 1 | F210: 3 | G210: 2 | H210: 9 | I210: 4
A211: 3 | B211: 9 | C211: 4 | D211: 5 | E211: 7 | F211: 2 | G211: 8 | H211: 1 | I211: 6
A212: 1 | B212: 8 | C212: 2 | D212: 6 | E212: 4 | F212: 9 | G212: 3 | H212: 7 | I212: 5
A213: 5 | B213: 7 | C213: 8 | D213: 4 | E213: 9 | F213: 6 | G213: 1 | H213: 3 | I213: 2
A214: 4 | B214: 1 | C214: 9 | D214: 3 | E214: 2 | F214: 8 | G214: 6 | H214: 5 | I214: 7
A215: 2 | B215: 3 | C215: 6 | D215: 7 | E215: 5 | F215: 1 | G215: 4 | H215: 8 | I215: 9
B217: Opgave: | D217: 19
A219: 7 | B219: 2 | C219: 9 | D219: 1 | E219: 8 | F219: 5 | G219: 6 | H219: 4 | I219: 3
A220: 6 | B220: 3 | C220: 8 | D220: 2 | E220: 4 | F220: 7 | G220: 9 | H220: 5 | I220: 1
A221: 5 | B221: 4 | C221: 1 | D221: 3 | E221: 9 | F221: 6 | G221: 7 | H221: 8 | I221: 2
A222: 4 | B222: 5 | C222: 2 | D222: 9 | E222: 7 | F222: 1 | G222: 8 | H222: 3 | I222: 6
A223: 8 | B223: 1 | C223: 7 | D223: 6 | E223: 2 | F223: 3 | G223: 4 | H223: 9 | I223: 5
A224: 3 | B224: 9 | C224: 6 | D224: 4 | E224: 5 | F224: 8 | G224: 2 | H224: 1 | I224: 7
A225: 1 | B225: 7 | C225: 4 | D225: 5 | E225: 6 | F225: 9 | G225: 3 | H225: 2 | I225: 8
A226: 9 | B226: 6 | C226: 5 | D226: 8 | E226: 3 | F226: 2 | G226: 1 | H226: 7 | I226: 4
A227: 2 | B227: 8 | C227: 3 | D227: 7 | E227: 1 | F227: 4 | G227: 5 | H227: 6 | I227: 9
B229: Opgave: | D229: 20
A231: 8 | B231: 4 | C231: 1 | D231: 7 | E231: 2 | F231: 6 | G231: 3 | H231: 9 | I231: 5
A232: 2 | B232: 5 | C232: 7 | D232: 3 | E232: 8 | F232: 9 | G232: 4 | H232: 1 | I232: 6
A233: 3 | B233: 6 | C233: 9 | D233: 5 | E233: 1 | F233: 4 | G233: 2 | H233: 8 | I233: 7
A234: 5 | B234: 7 | C234: 4 | D234: 2 | E234: 3 | F234: 8 | G234: 1 | H234: 6 | I234: 9
A235: 9 | B235: 2 | C235: 8 | D235: 1 | E235: 6 | F235: 7 | G235: 5 | H235: 3 | I235: 4
A236: 1 | B236: 3 | C236: 6 | D236: 4 | E236: 9 | F236: 5 | G236: 8 | H236: 7 | I236: 2
A237: 4 | B237: 1 | C237: 5 | D237: 6 | E237: 7 | F237: 3 | G237: 9 | H237: 2 | I237: 8
A238: 7 | B238: 8 | C238: 3 | D238: 9 | E238: 5 | F238: 2 | G238: 6 | H238: 4 | I238: 1
A239: 6 | B239: 9 | C239: 2 | D239: 8 | E239: 4 | F239: 1 | G239: 7 | H239: 5 | I239: 3
... 3451 more rows
